Body Name,Body,Service Label,Service Code,Service Division Label,Service Division Code,Expenditure Category,Expenditure Code,CIPFA Detailed Expenditure Type,CIPFA Detailed Expenditure Code,Date,Transaction Number,CC 43 TBM Section,CCN 43 TBM Section,Net Amount,Capital and Revenue,Creditor Name
Brighton & Hove City Council,http://statistics.data.gov.uk/id/local-authority/00ML,Central Services to the Public,BVACEN,Elections,ELE,Premises Related,C,Rents Payable,CC,16/10/2019,PAY01210476,ELEC,Elections,440,Revenue,14th Hove Scout Group
Brighton & Hove City Council,http://statistics.data.gov.uk/id/local-authority/00ML,Environment & Regulatory Serv,BVAERS,Environmental Health,EVH,Supplies and Services,E,Equip't Furniture n Materials,EA,16/10/2019,PAY01210908,SCOM,Safer Communties,643.48,Revenue,1env Solutions Ltd
Brighton & Hove City Council,http://statistics.data.gov.uk/id/local-authority/00ML,Adult Social Care,BVASOC,ASC Memory Cognition Support,MEM,Customer n Client Receipts,M,Fees n Charges,MB,25/10/2019,PAY01215164,COGN,Memory Cognition Support,-569,Revenue,A & L Care Homes Ltd
Brighton & Hove City Council,http://statistics.data.gov.uk/id/local-authority/00ML,Adult Social Care,BVASOC,ASC Memory Cognition Support,MEM,Third Party Payments,F,Other Establishments,FH,25/10/2019,PAY01215164,COGN,Memory Cognition Support,2204,Revenue,A & L Care Homes Ltd
Brighton & Hove City Council,http://statistics.data.gov.uk/id/local-authority/00ML,Cultural and Related Serv,BVACUL,Culture and Heritage,CHG,Supplies and Services,E,Equip't Furniture n Materials,EA,23/10/2019,PAY01213843,RPMU,Royal Pavilion and Museums,231,Revenue,A J  Access Platforms Ltd
Brighton & Hove City Council,http://statistics.data.gov.uk/id/local-authority/00ML,Central Support and Overheads,BVACEN,Support Services (SSC),PPT,Premises Related,C,Repair Maint n Alterations,CA,11/10/2019,PAY01208797,PROP,Property and Design,1599.53,Revenue,A J Taylor Electrical Contractors Ltd
Brighton & Hove City Council,http://statistics.data.gov.uk/id/local-authority/00ML,Non I&E,BVANON,Cap - Housing Services - HRA,4HR,New Construction n Conversion,PB,New Construction n Conversion,PBL5,11/10/2019,PAY01208797,HREG,Head of Regeneration,18731.57,Capital,A J Taylor Electrical Contractors Ltd
Brighton & Hove City Council,http://statistics.data.gov.uk/id/local-authority/00ML,Children`s & Education Serv,BVAEDU,Ed Ed Other Other,ENF,Premises Related,C,Repair Maint n Alterations,CA,16/10/2019,PAY01209902,PROP,Property and Design,2491,Revenue,A J Taylor Electrical Contractors Ltd
Brighton & Hove City Council,http://statistics.data.gov.uk/id/local-authority/00ML,Planning and Development,BVAPLA,Economic Development,ECD,Supplies and Services,E,Grants n Subscriptions,EK,23/10/2019,PAY01213738,CMNY,Communities and Equalities,2000,Revenue,A Network of International Women
Brighton & Hove City Council,http://statistics.data.gov.uk/id/local-authority/00ML,Housing General Fund,BVAHOG,Homelessness,HML,Third Party Payments,F,Other Establishments,FH,02/10/2019,PAY01206863,TAAS,Temp Accom and Allocations,600,Revenue,A&R Lettings
Brighton & Hove City Council,http://statistics.data.gov.uk/id/local-authority/00ML,Cultural and Related Serv,BVACUL,Culture and Heritage,CHG,Supplies and Services,E,Miscellaneous Expenses,EM,18/10/2019,PAY01212959,RPMU,Royal Pavilion and Museums,1018,Revenue,Abama Displays Ltd
Brighton & Hove City Council,http://statistics.data.gov.uk/id/local-authority/00ML,Adult Social Care,BVASOC,ASC Learning Disabilities,ALD,Customer n Client Receipts,M,Fees n Charges,MB,25/10/2019,PAY01214411,LDIS,Adults LD Community Care,-414.2,Revenue,Abbey Care Group Ltd-Saxon Court
Brighton & Hove City Council,http://statistics.data.gov.uk/id/local-authority/00ML,Adult Social Care,BVASOC,ASC Learning Disabilities,ALD,Third Party Payments,F,Other Establishments,FH,25/10/2019,PAY01214411,LDIS,Adults LD Community Care,6296.6,Revenue,Abbey Care Group Ltd-Saxon Court
Brighton & Hove City Council,http://statistics.data.gov.uk/id/local-authority/00ML,Adult Social Care,BVASOC,ASC Memory Cognition Support,MEM,Customer n Client Receipts,M,Fees n Charges,MB,25/10/2019,PAY01215006,COGN,Memory Cognition Support,-947.08,Revenue,Abbey Retirement Home
Brighton & Hove City Council,http://statistics.data.gov.uk/id/local-authority/00ML,Adult Social Care,BVASOC,ASC Memory Cognition Support,MEM,Third Party Payments,F,Other Establishments,FH,25/10/2019,PAY01215006,COGN,Memory Cognition Support,2180,Revenue,Abbey Retirement Home
Brighton & Hove City Council,http://statistics.data.gov.uk/id/local-authority/00ML,Highways and Transportation,BVAHRT,Traffic Mgmnt and Road Safety,TMR,Supplies and Services,E,Miscellaneous Expenses,EM,11/10/2019,PAY01208826,TPRS,Transport Projects and Eng,250,Revenue,ABC Magazine Sussex
Brighton & Hove City Council,http://statistics.data.gov.uk/id/local-authority/00ML,Adult Social Care,BVASOC,ASC Learning Disabilities,ALD,Customer n Client Receipts,M,Fees n Charges,MB,25/10/2019,PAY01214549,LDIS,Adults LD Community Care,-414.2,Revenue,Abi House
Brighton & Hove City Council,http://statistics.data.gov.uk/id/local-authority/00ML,Adult Social Care,BVASOC,ASC Learning Disabilities,ALD,Third Party Payments,F,Other Establishments,FH,25/10/2019,PAY01214549,LDIS,Adults LD Community Care,5220.2,Revenue,Abi House
Brighton & Hove City Council,http://statistics.data.gov.uk/id/local-authority/00ML,Non I&E,BVANON,Cap - Housing Services - HRA,4HR,New Construction n Conversion,PB,New Construction n Conversion,PBL5,16/10/2019,PAY01210378,HPAI,Property & Investment,600,Capital,ABIR Architects Ltd
Brighton & Hove City Council,http://statistics.data.gov.uk/id/local-authority/00ML,Non I&E,BVANON,Cap - Housing Services - HRA,4HR,New Construction n Conversion,PB,New Construction n Conversion,PBL5,25/10/2019,PAY01214558,HPAI,Property & Investment,955,Capital,ABIR Architects Ltd
Brighton & Hove City Council,http://statistics.data.gov.uk/id/local-authority/00ML,Non I&E,BVANON,Cap - Housing Services - HRA,4HR,New Construction n Conversion,PB,New Construction n Conversion,PBL5,30/10/2019,PAY01215673,HPAI,Property & Investment,307.5,Capital,ABIR Architects Ltd
Brighton & Hove City Council,http://statistics.data.gov.uk/id/local-authority/00ML,Housing Revenue Account,BVAHOU,Hsing Management - HRA,HGM,Supplies and Services,E,Equip't Furniture n Materials,EA,16/10/2019,PAY01210657,HPAI,Property & Investment,1174.56,Revenue,Abmec Ltd T/A Abbamechatronics
Brighton & Hove City Council,http://statistics.data.gov.uk/id/local-authority/00ML,Children`s & Education Serv,BVAEDU,Child Srvcs - Residential Svcs,FLR,Third Party Payments,F,Other Establishments,FH,16/10/2019,PAY01210953,AVFM,Agency Placements\VFM,15323.4,Revenue,Above and Beyond Residential Care Ltd
Brighton & Hove City Council,http://statistics.data.gov.uk/id/local-authority/00ML,Central Support and Overheads,BVACEN,Holding Accounts,PPH,Premises Related,C,Repair Maint n Alterations,CA,11/10/2019,PAY01209551,PROP,Property and Design,279.2,Revenue,ABS Electrical Supplies Ltd t/a SELS
Brighton & Hove City Council,http://statistics.data.gov.uk/id/local-authority/00ML,Central Support and Overheads,BVACEN,Support Services (SSC),PPT,Premises Related,C,Repair Maint n Alterations,CA,11/10/2019,PAY01209551,PROP,Property and Design,333.95,Revenue,ABS Electrical Supplies Ltd t/a SELS
Brighton & Hove City Council,http://statistics.data.gov.uk/id/local-authority/00ML,Central Support and Overheads,BVACEN,Holding Accounts,PPH,Premises Related,C,Repair Maint n Alterations,CA,16/10/2019,PAY01210865,PROP,Property and Design,214.55,Revenue,ABS Electrical Supplies Ltd t/a SELS
Brighton & Hove City Council,http://statistics.data.gov.uk/id/local-authority/00ML,Central Support and Overheads,BVACEN,Support Services (SSC),PPT,Premises Related,C,Repair Maint n Alterations,CA,16/10/2019,PAY01210865,PROP,Property and Design,49.85,Revenue,ABS Electrical Supplies Ltd t/a SELS
Brighton & Hove City Council,http://statistics.data.gov.uk/id/local-authority/00ML,Central Support and Overheads,BVACEN,Holding Accounts,PPH,Premises Related,C,Repair Maint n Alterations,CA,25/10/2019,PAY01215119,PROP,Property and Design,272.03,Revenue,ABS Electrical Supplies Ltd t/a SELS
Brighton & Hove City Council,http://statistics.data.gov.uk/id/local-authority/00ML,Central Support and Overheads,BVACEN,Support Services (SSC),PPT,Premises Related,C,Repair Maint n Alterations,CA,25/10/2019,PAY01215119,PROP,Property and Design,126.96,Revenue,ABS Electrical Supplies Ltd t/a SELS
Brighton & Hove City Council,http://statistics.data.gov.uk/id/local-authority/00ML,Children`s & Education Serv,BVAEDU,Management Services (DEC),MGT,Supplies and Services,E,Miscellaneous Expenses,EM,11/10/2019,PAY01209214,SOCK,Social Work,1493.98,Revenue,Absolute Translations Ltd
Brighton & Hove City Council,http://statistics.data.gov.uk/id/local-authority/00ML,Non I&E,BVANON,CAP Housing Services GF,4HG,Capital Grants,PF,Capital Grants,PFL5,02/10/2019,PAY01206588,PSHG,Private Sector Housing,5573,Capital,Access & Automation Ltd
Brighton & Hove City Council,http://statistics.data.gov.uk/id/local-authority/00ML,Non I&E,BVANON,Cap - Housing Services - HRA,4HR,New Construction n Conversion,PB,New Construction n Conversion,PBL5,02/10/2019,PAY01206588,HPAI,Property & Investment,13883,Capital,Access & Automation Ltd
Brighton & Hove City Council,http://statistics.data.gov.uk/id/local-authority/00ML,Non I&E,BVANON,Cap - Housing Services - HRA,4HR,New Construction n Conversion,PB,New Construction n Conversion,PBL5,11/10/2019,PAY01209217,HPAI,Property & Investment,3068,Capital,Access & Automation Ltd
Brighton & Hove City Council,http://statistics.data.gov.uk/id/local-authority/00ML,Non I&E,BVANON,CAP Housing Services GF,4HG,Capital Grants,PF,Capital Grants,PFL5,30/10/2019,PAY01215767,PSHG,Private Sector Housing,2970,Capital,Access & Automation Ltd
Brighton & Hove City Council,http://statistics.data.gov.uk/id/local-authority/00ML,Highways and Transportation,BVAHRT,Parking Services,PRK,Supplies and Services,E,Services,EF,18/10/2019,PAY01211358,PARK,Parking Services,2240,Revenue,Access Independent Ltd
Brighton & Hove City Council,http://statistics.data.gov.uk/id/local-authority/00ML,Adult Social Care,BVASOC,ASC Mental Health Support,MHP,Third Party Payments,F,Other Establishments,FH,25/10/2019,PAY01214999,MENH,Mental Health Support,8680,Revenue,Accomplish Group
Brighton & Hove City Council,http://statistics.data.gov.uk/id/local-authority/00ML,Non I&E,BVANON,CAP Housing Services GF,4HG,Capital Grants,PF,Capital Grants,PFL5,02/10/2019,PAY01206538,PSHG,Private Sector Housing,4764,Capital,Ace Glass (Southern) Ltd
Brighton & Hove City Council,http://statistics.data.gov.uk/id/local-authority/00ML,Non I&E,BVANON,CAP Housing Services GF,4HG,Capital Grants,PF,Capital Grants,PFL5,09/10/2019,PAY01208253,PSHG,Private Sector Housing,3636.84,Capital,Ace Glass (Southern) Ltd
Brighton & Hove City Council,http://statistics.data.gov.uk/id/local-authority/00ML,Non I&E,BVANON,CAP Housing Services GF,4HG,Capital Grants,PF,Capital Grants,PFL5,23/10/2019,PAY01213502,PSHG,Private Sector Housing,6865.72,Capital,Ace Glass (Southern) Ltd
Brighton & Hove City Council,http://statistics.data.gov.uk/id/local-authority/00ML,Children`s & Education Serv,BVAEDU,Ed Ed Other LA Attrib Sch,ELA,Transport Related,D,Other Transport Costs,DG,25/10/2019,PAY01215199,SCOR,School Organisation,435,Revenue,Ace Taxis West Sussex Ltd
Brighton & Hove City Council,http://statistics.data.gov.uk/id/local-authority/00ML,Children`s & Education Serv,BVAEDU,Ed Ed Other LA Attrib Sch,ELA,Transport Related,D,Other Transport Costs,DG,30/10/2019,PAY01215493,SCOR,School Organisation,18785.6,Revenue,Ace Travel Ltd
Brighton & Hove City Council,http://statistics.data.gov.uk/id/local-authority/00ML,Cultural and Related Serv,BVACUL,Culture and Heritage,CHG,Supplies and Services,E,Equip't Furniture n Materials,EA,30/10/2019,PAY01215839,RPMU,Royal Pavilion and Museums,908.2,Revenue,Acopia Group Ltd
Brighton & Hove City Council,http://statistics.data.gov.uk/id/local-authority/00ML,Adult Social Care,BVASOC,ASC Learning Disabilities,ALD,Customer n Client Receipts,M,Fees n Charges,MB,02/10/2019,PAY01206369,LDIS,Adults LD Community Care,-1300.74,Revenue,Acorn (Watford) Ltd
Brighton & Hove City Council,http://statistics.data.gov.uk/id/local-authority/00ML,Adult Social Care,BVASOC,ASC Learning Disabilities,ALD,Third Party Payments,F,Other Establishments,FH,02/10/2019,PAY01206369,LDIS,Adults LD Community Care,11885.71,Revenue,Acorn (Watford) Ltd
Brighton & Hove City Council,http://statistics.data.gov.uk/id/local-authority/00ML,Adult Social Care,BVASOC,ASC Learning Disabilities,ALD,Customer n Client Receipts,M,Fees n Charges,MB,25/10/2019,PAY01214373,LDIS,Adults LD Community Care,-2162.2,Revenue,Acorn (Watford) Ltd
Brighton & Hove City Council,http://statistics.data.gov.uk/id/local-authority/00ML,Adult Social Care,BVASOC,ASC Learning Disabilities,ALD,Third Party Payments,F,Other Establishments,FH,25/10/2019,PAY01214373,LDIS,Adults LD Community Care,17270,Revenue,Acorn (Watford) Ltd
Brighton & Hove City Council,http://statistics.data.gov.uk/id/local-authority/00ML,Central Support and Overheads,BVACEN,Support Services (SSC),PPT,Premises Related,C,Cleaning n Domestic Supps,CH,09/10/2019,PAY01208245,PROP,Property and Design,1478.03,Revenue,Acorn Environmental
Brighton & Hove City Council,http://statistics.data.gov.uk/id/local-authority/00ML,Children`s & Education Serv,BVAEDU,Child Srvcs - Residential Svcs,FLR,Third Party Payments,F,Other Establishments,FH,02/10/2019,PAY01206671,AVFM,Agency Placements\VFM,23764.2,Revenue,Acorn Homes Uk Ltd
Brighton & Hove City Council,http://statistics.data.gov.uk/id/local-authority/00ML,Children`s & Education Serv,BVAEDU,Child Srvcs - Residential Svcs,FLR,Third Party Payments,F,Other Establishments,FH,09/10/2019,PAY01208390,AVFM,Agency Placements\VFM,16071.3,Revenue,Acorn Homes Uk Ltd
Brighton & Hove City Council,http://statistics.data.gov.uk/id/local-authority/00ML,Non I&E,BVANON,CAP Mgmnt and Suppt Services,4PT,New Construction n Conversion,PB,New Construction n Conversion,PBL5,23/10/2019,PAY01213559,PROP,Property and Design,1959,Capital,Acoustilux Suspended Ceilings Ltd
Brighton & Hove City Council,http://statistics.data.gov.uk/id/local-authority/00ML,Cultural and Related Serv,BVACUL,Recreation and Sport,REC,Supplies and Services,E,Services,EF,23/10/2019,PAY01213543,SPLE,Sport and Leisure,1600.51,Revenue,Actavo (UK) Ltd
Brighton & Hove City Council,http://statistics.data.gov.uk/id/local-authority/00ML,Adult Social Care,BVASOC,Social Care Activities,ACM,Third Party Payments,F,Other Establishments,FH,11/10/2019,PAY01209230,ASIT,Assessment and SIT,350,Revenue,Action Deafness
Brighton & Hove City Council,http://statistics.data.gov.uk/id/local-authority/00ML,Adult Social Care,BVASOC,Social Care Activities,ACM,Supplies and Services,E,Equip't Furniture n Materials,EA,11/10/2019,PAY01209549,ASIT,Assessment and SIT,1495,Revenue,Action First Assessments Ltd
Brighton & Hove City Council,http://statistics.data.gov.uk/id/local-authority/00ML,Adult Social Care,BVASOC,ASC Mental Health Support,MHP,Third Party Payments,F,Other Establishments,FH,16/10/2019,PAY01210716,MENH,Mental Health Support,5853.12,Revenue,Active Prospects
Brighton & Hove City Council,http://statistics.data.gov.uk/id/local-authority/00ML,Adult Social Care,BVASOC,ASC Mental Health Support,MHP,Third Party Payments,F,Other Establishments,FH,30/10/2019,PAY01215923,MENH,Mental Health Support,2926.56,Revenue,Active Prospects
Brighton & Hove City Council,http://statistics.data.gov.uk/id/local-authority/00ML,Adult Social Care,BVASOC,Info & Early Intervention,PRV,Supplies and Services,E,Communications n Computing,EH,04/10/2019,PAY01207619,CONT,Contracts,754,Revenue,adam HTT Ltd t/a adam
Brighton & Hove City Council,http://statistics.data.gov.uk/id/local-authority/00ML,Adult Social Care,BVASOC,Info & Early Intervention,PRV,Supplies and Services,E,Communications n Computing,EH,16/10/2019,PAY01210649,CONT,Contracts,775.4,Revenue,adam HTT Ltd t/a adam
Brighton & Hove City Council,http://statistics.data.gov.uk/id/local-authority/00ML,Environment & Regulatory Serv,BVAERS,Management Services (DEC),MGT,Transport Related,D,Direct Transport Costs,DA,16/10/2019,PAY01210584,CICL,City Clean,373.19,Revenue,Addex Trading
Brighton & Hove City Council,http://statistics.data.gov.uk/id/local-authority/00ML,Adult Social Care,BVASOC,ASC Memory Cognition Support,MEM,Third Party Payments,F,Other Establishments,FH,25/10/2019,PAY01214498,COGN,Memory Cognition Support,7379.64,Revenue,Adelaide Healthcare Ltd
Brighton & Hove City Council,http://statistics.data.gov.uk/id/local-authority/00ML,Adult Social Care,BVASOC,ASC Physical Support,PHY,Third Party Payments,F,Other Establishments,FH,25/10/2019,PAY01214498,PHYS,Physical Support,2430.56,Revenue,Adelaide Healthcare Ltd
Brighton & Hove City Council,http://statistics.data.gov.uk/id/local-authority/00ML,Adult Social Care,BVASOC,ASC Physical Support,PHY,Customer n Client Receipts,M,Fees n Charges,MB,04/10/2019,PAY01207294,PHYS,Physical Support,-1822.46,Revenue,Adelaide Nursing Home
Brighton & Hove City Council,http://statistics.data.gov.uk/id/local-authority/00ML,Adult Social Care,BVASOC,ASC Physical Support,PHY,Third Party Payments,F,Other Establishments,FH,04/10/2019,PAY01207294,PHYS,Physical Support,6142.86,Revenue,Adelaide Nursing Home
Brighton & Hove City Council,http://statistics.data.gov.uk/id/local-authority/00ML,Non-BHC Organisations,BVANON,Trusts,TRT,Supplies and Services,E,Miscellaneous Expenses,EM,04/10/2019,PAY01207294,NBHC,Non Council,30,Revenue,Adelaide Nursing Home
Brighton & Hove City Council,http://statistics.data.gov.uk/id/local-authority/00ML,Non-BHC Organisations,BVANON,Trusts,TRT,Supplies and Services,E,Miscellaneous Expenses,EM,11/10/2019,PAY01208971,NBHC,Non Council,30,Revenue,Adelaide Nursing Home
Brighton & Hove City Council,http://statistics.data.gov.uk/id/local-authority/00ML,Adult Social Care,BVASOC,ASC Learning Disabilities,ALD,Customer n Client Receipts,M,Fees n Charges,MB,25/10/2019,PAY01214374,LDIS,Adults LD Community Care,-555.52,Revenue,Adelaide Nursing Home
Brighton & Hove City Council,http://statistics.data.gov.uk/id/local-authority/00ML,Adult Social Care,BVASOC,ASC Learning Disabilities,ALD,Third Party Payments,F,Other Establishments,FH,25/10/2019,PAY01214374,LDIS,Adults LD Community Care,3669.64,Revenue,Adelaide Nursing Home
Brighton & Hove City Council,http://statistics.data.gov.uk/id/local-authority/00ML,Adult Social Care,BVASOC,ASC Physical Support,PHY,Customer n Client Receipts,M,Fees n Charges,MB,25/10/2019,PAY01214374,PHYS,Physical Support,-8077.84,Revenue,Adelaide Nursing Home
Brighton & Hove City Council,http://statistics.data.gov.uk/id/local-authority/00ML,Adult Social Care,BVASOC,ASC Physical Support,PHY,Third Party Payments,F,Other Establishments,FH,25/10/2019,PAY01214374,PHYS,Physical Support,51901.2,Revenue,Adelaide Nursing Home
Brighton & Hove City Council,http://statistics.data.gov.uk/id/local-authority/00ML,Non-BHC Organisations,BVANON,Trusts,TRT,Supplies and Services,E,Miscellaneous Expenses,EM,25/10/2019,PAY01214374,NBHC,Non Council,30,Revenue,Adelaide Nursing Home
Brighton & Hove City Council,http://statistics.data.gov.uk/id/local-authority/00ML,Central Support and Overheads,BVACEN,Support Services (SSC),PPT,Supplies and Services,E,Communications n Computing,EH,11/10/2019,PAY01209331,ICTA,ICT,1014.88,Revenue,Adept Power Solutions Ltd
Brighton & Hove City Council,http://statistics.data.gov.uk/id/local-authority/00ML,Cultural and Related Serv,BVACUL,Culture and Heritage,CHG,Premises Related,C,Repair Maint n Alterations,CA,25/10/2019,PAY01214429,RPMU,Royal Pavilion and Museums,269,Revenue,ADT Fire & Security Plc
Brighton & Hove City Council,http://statistics.data.gov.uk/id/local-authority/00ML,Planning and Development,BVAPLA,Economic Development,ECD,Supplies and Services,E,Grants n Subscriptions,EK,23/10/2019,PAY01213361,ECOD,Economic Development,6237.5,Revenue,Adur & Worthing Councils
Brighton & Hove City Council,http://statistics.data.gov.uk/id/local-authority/00ML,Planning and Development,BVAPLA,Economic Development,ECD,Supplies and Services,E,Miscellaneous Expenses,EM,23/10/2019,PAY01213879,MJPR,Major Projects,1700,Revenue,Advanced Safety Training Services (ASTS)
Brighton & Hove City Council,http://statistics.data.gov.uk/id/local-authority/00ML,Adult Social Care,BVASOC,ASC Physical Support,PHY,Third Party Payments,F,Other Establishments,FH,16/10/2019,PAY01210682,PHYS,Physical Support,1700.02,Revenue,Agincare Live in Care Ltd
Brighton & Hove City Council,http://statistics.data.gov.uk/id/local-authority/00ML,Adult Social Care,BVASOC,ASC Physical Support,PHY,Third Party Payments,F,Other Establishments,FH,25/10/2019,PAY01214931,PHYS,Physical Support,5867.84,Revenue,Agincare Live in Care Ltd
Brighton & Hove City Council,http://statistics.data.gov.uk/id/local-authority/00ML,Adult Social Care,BVASOC,ASC Learning Disabilities,ALD,Third Party Payments,F,Other Establishments,FH,02/10/2019,PAY01206302,LDIS,Adults LD Community Care,2858.12,Revenue,Agincare UK Ltd
Brighton & Hove City Council,http://statistics.data.gov.uk/id/local-authority/00ML,Adult Social Care,BVASOC,ASC Memory Cognition Support,MEM,Third Party Payments,F,Other Establishments,FH,02/10/2019,PAY01206302,COGN,Memory Cognition Support,3694.62,Revenue,Agincare UK Ltd
Brighton & Hove City Council,http://statistics.data.gov.uk/id/local-authority/00ML,Adult Social Care,BVASOC,ASC Mental Health Support,MHP,Third Party Payments,F,Other Establishments,FH,02/10/2019,PAY01206302,MENH,Mental Health Support,3732.29,Revenue,Agincare UK Ltd
Brighton & Hove City Council,http://statistics.data.gov.uk/id/local-authority/00ML,Adult Social Care,BVASOC,ASC Physical Support,PHY,Third Party Payments,F,Other Establishments,FH,02/10/2019,PAY01206302,PHYS,Physical Support,47611.33,Revenue,Agincare UK Ltd
Brighton & Hove City Council,http://statistics.data.gov.uk/id/local-authority/00ML,Adult Social Care,BVASOC,ASC Sensory Support,AHV,Third Party Payments,F,Other Establishments,FH,02/10/2019,PAY01206302,SORY,Sensory Support,1233.56,Revenue,Agincare UK Ltd
Brighton & Hove City Council,http://statistics.data.gov.uk/id/local-authority/00ML,Adult Social Care,BVASOC,ASC Substance Misuse,ADM,Third Party Payments,F,Other Establishments,FH,02/10/2019,PAY01206302,SUBM,Substance Misuse Support,589.57,Revenue,Agincare UK Ltd
Brighton & Hove City Council,http://statistics.data.gov.uk/id/local-authority/00ML,Adult Social Care,BVASOC,ASC Learning Disabilities,ALD,Third Party Payments,F,Other Establishments,FH,09/10/2019,PAY01208063,LDIS,Adults LD Community Care,567.69,Revenue,Agincare UK Ltd
Brighton & Hove City Council,http://statistics.data.gov.uk/id/local-authority/00ML,Adult Social Care,BVASOC,ASC Memory Cognition Support,MEM,Third Party Payments,F,Other Establishments,FH,09/10/2019,PAY01208063,COGN,Memory Cognition Support,1506.97,Revenue,Agincare UK Ltd
Brighton & Hove City Council,http://statistics.data.gov.uk/id/local-authority/00ML,Adult Social Care,BVASOC,ASC Mental Health Support,MHP,Third Party Payments,F,Other Establishments,FH,09/10/2019,PAY01208063,MENH,Mental Health Support,2399.27,Revenue,Agincare UK Ltd
Brighton & Hove City Council,http://statistics.data.gov.uk/id/local-authority/00ML,Adult Social Care,BVASOC,ASC Physical Support,PHY,Third Party Payments,F,Other Establishments,FH,09/10/2019,PAY01208063,PHYS,Physical Support,22782.9,Revenue,Agincare UK Ltd
Brighton & Hove City Council,http://statistics.data.gov.uk/id/local-authority/00ML,Adult Social Care,BVASOC,ASC Sensory Support,AHV,Third Party Payments,F,Other Establishments,FH,09/10/2019,PAY01208063,SORY,Sensory Support,540.98,Revenue,Agincare UK Ltd
Brighton & Hove City Council,http://statistics.data.gov.uk/id/local-authority/00ML,Adult Social Care,BVASOC,ASC Substance Misuse,ADM,Third Party Payments,F,Other Establishments,FH,09/10/2019,PAY01208063,SUBM,Substance Misuse Support,279.11,Revenue,Agincare UK Ltd
Brighton & Hove City Council,http://statistics.data.gov.uk/id/local-authority/00ML,Adult Social Care,BVASOC,ASC Learning Disabilities,ALD,Third Party Payments,F,Other Establishments,FH,16/10/2019,PAY01210064,LDIS,Adults LD Community Care,1989.96,Revenue,Agincare UK Ltd
Brighton & Hove City Council,http://statistics.data.gov.uk/id/local-authority/00ML,Adult Social Care,BVASOC,ASC Physical Support,PHY,Third Party Payments,F,Other Establishments,FH,16/10/2019,PAY01210064,PHYS,Physical Support,4037.53,Revenue,Agincare UK Ltd
Brighton & Hove City Council,http://statistics.data.gov.uk/id/local-authority/00ML,Adult Social Care,BVASOC,ASC Learning Disabilities,ALD,Third Party Payments,F,Other Establishments,FH,18/10/2019,PAY01211364,LDIS,Adults LD Community Care,1147.82,Revenue,Agincare UK Ltd
Brighton & Hove City Council,http://statistics.data.gov.uk/id/local-authority/00ML,Adult Social Care,BVASOC,ASC Memory Cognition Support,MEM,Third Party Payments,F,Other Establishments,FH,18/10/2019,PAY01211364,COGN,Memory Cognition Support,3084.63,Revenue,Agincare UK Ltd
Brighton & Hove City Council,http://statistics.data.gov.uk/id/local-authority/00ML,Adult Social Care,BVASOC,ASC Mental Health Support,MHP,Third Party Payments,F,Other Establishments,FH,18/10/2019,PAY01211364,MENH,Mental Health Support,4600.49,Revenue,Agincare UK Ltd
Brighton & Hove City Council,http://statistics.data.gov.uk/id/local-authority/00ML,Adult Social Care,BVASOC,ASC Physical Support,PHY,Third Party Payments,F,Other Establishments,FH,18/10/2019,PAY01211364,PHYS,Physical Support,46396.99,Revenue,Agincare UK Ltd
Brighton & Hove City Council,http://statistics.data.gov.uk/id/local-authority/00ML,Adult Social Care,BVASOC,ASC Sensory Support,AHV,Third Party Payments,F,Other Establishments,FH,18/10/2019,PAY01211364,SORY,Sensory Support,1106.56,Revenue,Agincare UK Ltd
Brighton & Hove City Council,http://statistics.data.gov.uk/id/local-authority/00ML,Adult Social Care,BVASOC,ASC Substance Misuse,ADM,Third Party Payments,F,Other Establishments,FH,18/10/2019,PAY01211364,SUBM,Substance Misuse Support,561.22,Revenue,Agincare UK Ltd
Brighton & Hove City Council,http://statistics.data.gov.uk/id/local-authority/00ML,Adult Social Care,BVASOC,ASC Physical Support,PHY,Third Party Payments,F,Other Establishments,FH,23/10/2019,PAY01213347,PHYS,Physical Support,9544.79,Revenue,Agincare UK Ltd
Brighton & Hove City Council,http://statistics.data.gov.uk/id/local-authority/00ML,Adult Social Care,BVASOC,ASC Learning Disabilities,ALD,Third Party Payments,F,Other Establishments,FH,30/10/2019,PAY01215490,LDIS,Adults LD Community Care,2563.01,Revenue,Agincare UK Ltd
Brighton & Hove City Council,http://statistics.data.gov.uk/id/local-authority/00ML,Adult Social Care,BVASOC,ASC Memory Cognition Support,MEM,Third Party Payments,F,Other Establishments,FH,30/10/2019,PAY01215490,COGN,Memory Cognition Support,1586.77,Revenue,Agincare UK Ltd
Brighton & Hove City Council,http://statistics.data.gov.uk/id/local-authority/00ML,Adult Social Care,BVASOC,ASC Mental Health Support,MHP,Third Party Payments,F,Other Establishments,FH,30/10/2019,PAY01215490,MENH,Mental Health Support,2375.93,Revenue,Agincare UK Ltd
Brighton & Hove City Council,http://statistics.data.gov.uk/id/local-authority/00ML,Adult Social Care,BVASOC,ASC Physical Support,PHY,Third Party Payments,F,Other Establishments,FH,30/10/2019,PAY01215490,PHYS,Physical Support,20445.37,Revenue,Agincare UK Ltd
Brighton & Hove City Council,http://statistics.data.gov.uk/id/local-authority/00ML,Adult Social Care,BVASOC,ASC Sensory Support,AHV,Third Party Payments,F,Other Establishments,FH,30/10/2019,PAY01215490,SORY,Sensory Support,561.96,Revenue,Agincare UK Ltd
Brighton & Hove City Council,http://statistics.data.gov.uk/id/local-authority/00ML,Adult Social Care,BVASOC,ASC Substance Misuse,ADM,Third Party Payments,F,Other Establishments,FH,30/10/2019,PAY01215490,SUBM,Substance Misuse Support,276.76,Revenue,Agincare UK Ltd
Brighton & Hove City Council,http://statistics.data.gov.uk/id/local-authority/00ML,Central Support and Overheads,BVACEN,Support Services (SSC),PPT,Premises Related,C,Repair Maint n Alterations,CA,18/10/2019,PAY01213029,PROP,Property and Design,275.58,Revenue,Air Energy Limited
Brighton & Hove City Council,http://statistics.data.gov.uk/id/local-authority/00ML,Adult Social Care,BVASOC,ASC Learning Disabilities,ALD,Customer n Client Receipts,M,Fees n Charges,MB,25/10/2019,PAY01214246,LDIS,Adults LD Community Care,-3274.8,Revenue,Aitch Care Homes (London) Ltd
Brighton & Hove City Council,http://statistics.data.gov.uk/id/local-authority/00ML,Adult Social Care,BVASOC,ASC Learning Disabilities,ALD,Third Party Payments,F,Other Establishments,FH,25/10/2019,PAY01214246,LDIS,Adults LD Community Care,48085.28,Revenue,Aitch Care Homes (London) Ltd
Brighton & Hove City Council,http://statistics.data.gov.uk/id/local-authority/00ML,Cultural and Related Serv,BVACUL,Culture and Heritage,CHG,Premises Related,C,Repair Maint n Alterations,CA,30/10/2019,PAY01215469,RPMU,Royal Pavilion and Museums,279,Revenue,AJ Mobility Ltd t/a AJM Healthcare
Brighton & Hove City Council,http://statistics.data.gov.uk/id/local-authority/00ML,Public Health,BVAPHE,Public Health,PHE,Third Party Payments,F,Other Establishments,FH,25/10/2019,PAY01214089,PHCM,PH Commissioning,2500.19,Revenue,Albion Street Surgery
Brighton & Hove City Council,http://statistics.data.gov.uk/id/local-authority/00ML,Adult Social Care,BVASOC,ASC Memory Cognition Support,MEM,Customer n Client Receipts,M,Fees n Charges,MB,25/10/2019,PAY01215137,COGN,Memory Cognition Support,-853.4,Revenue,Alchemy Care (Greensleeves) LLP
Brighton & Hove City Council,http://statistics.data.gov.uk/id/local-authority/00ML,Adult Social Care,BVASOC,ASC Memory Cognition Support,MEM,Third Party Payments,F,Other Establishments,FH,25/10/2019,PAY01215137,COGN,Memory Cognition Support,3600,Revenue,Alchemy Care (Greensleeves) LLP
Brighton & Hove City Council,http://statistics.data.gov.uk/id/local-authority/00ML,Cultural and Related Serv,BVACUL,Culture and Heritage,CHG,Customer n Client Receipts,M,Fees n Charges,MB,04/10/2019,PAY01207730,VENU,Venues,-13884.4,Revenue,Alchemy Promotions T/A The MJR Group 
Brighton & Hove City Council,http://statistics.data.gov.uk/id/local-authority/00ML,Cultural and Related Serv,BVACUL,Culture and Heritage,CHG,Customer n Client Receipts,M,Sales,MA,04/10/2019,PAY01207730,VENU,Venues,38085,Revenue,Alchemy Promotions T/A The MJR Group 
Brighton & Hove City Council,http://statistics.data.gov.uk/id/local-authority/00ML,Cultural and Related Serv,BVACUL,Culture and Heritage,CHG,Supplies and Services,E,Equip't Furniture n Materials,EA,04/10/2019,PAY01207730,VENU,Venues,-36,Revenue,Alchemy Promotions T/A The MJR Group 
Brighton & Hove City Council,http://statistics.data.gov.uk/id/local-authority/00ML,Cultural and Related Serv,BVACUL,Culture and Heritage,CHG,Supplies and Services,E,Miscellaneous Expenses,EM,04/10/2019,PAY01207730,VENU,Venues,-194.28,Revenue,Alchemy Promotions T/A The MJR Group 
Brighton & Hove City Council,http://statistics.data.gov.uk/id/local-authority/00ML,Children`s & Education Serv,BVAEDU,Child Srvcs Com and Scl Work,FCW,Supplies and Services,E,Services,EF,25/10/2019,PAY01214238,SPEA,Specialist Assessment,616,Revenue,Alere Toxicology PLC
Brighton & Hove City Council,http://statistics.data.gov.uk/id/local-authority/00ML,Children`s & Education Serv,BVAEDU,Child Srvcs Com and Scl Work,FCW,Supplies and Services,E,Services,EF,30/10/2019,PAY01215485,SPEA,Specialist Assessment,616,Revenue,Alere Toxicology PLC
Brighton & Hove City Council,http://statistics.data.gov.uk/id/local-authority/00ML,Adult Social Care,BVASOC,ASC Memory Cognition Support,MEM,Third Party Payments,F,Other Establishments,FH,02/10/2019,PAY01206639,COGN,Memory Cognition Support,539.06,Revenue,Alina Homecare Ltd
Brighton & Hove City Council,http://statistics.data.gov.uk/id/local-authority/00ML,Adult Social Care,BVASOC,ASC Physical Support,PHY,Third Party Payments,F,Other Establishments,FH,02/10/2019,PAY01206639,PHYS,Physical Support,24988.01,Revenue,Alina Homecare Ltd
Brighton & Hove City Council,http://statistics.data.gov.uk/id/local-authority/00ML,Adult Social Care,BVASOC,ASC Memory Cognition Support,MEM,Third Party Payments,F,Other Establishments,FH,09/10/2019,PAY01208355,COGN,Memory Cognition Support,271.91,Revenue,Alina Homecare Ltd
Brighton & Hove City Council,http://statistics.data.gov.uk/id/local-authority/00ML,Adult Social Care,BVASOC,ASC Physical Support,PHY,Third Party Payments,F,Other Establishments,FH,09/10/2019,PAY01208355,PHYS,Physical Support,13119.3,Revenue,Alina Homecare Ltd
Brighton & Hove City Council,http://statistics.data.gov.uk/id/local-authority/00ML,Adult Social Care,BVASOC,ASC Memory Cognition Support,MEM,Third Party Payments,F,Other Establishments,FH,11/10/2019,PAY01209283,COGN,Memory Cognition Support,271.93,Revenue,Alina Homecare Ltd
Brighton & Hove City Council,http://statistics.data.gov.uk/id/local-authority/00ML,Adult Social Care,BVASOC,ASC Physical Support,PHY,Third Party Payments,F,Other Establishments,FH,11/10/2019,PAY01209283,PHYS,Physical Support,12665.54,Revenue,Alina Homecare Ltd
Brighton & Hove City Council,http://statistics.data.gov.uk/id/local-authority/00ML,Adult Social Care,BVASOC,ASC Memory Cognition Support,MEM,Third Party Payments,F,Other Establishments,FH,18/10/2019,PAY01212135,COGN,Memory Cognition Support,860.01,Revenue,Alina Homecare Ltd
Brighton & Hove City Council,http://statistics.data.gov.uk/id/local-authority/00ML,Adult Social Care,BVASOC,ASC Physical Support,PHY,Third Party Payments,F,Other Establishments,FH,18/10/2019,PAY01212135,PHYS,Physical Support,12928.61,Revenue,Alina Homecare Ltd
Brighton & Hove City Council,http://statistics.data.gov.uk/id/local-authority/00ML,Adult Social Care,BVASOC,ASC Memory Cognition Support,MEM,Third Party Payments,F,Other Establishments,FH,25/10/2019,PAY01214785,COGN,Memory Cognition Support,931.63,Revenue,Alina Homecare Ltd
Brighton & Hove City Council,http://statistics.data.gov.uk/id/local-authority/00ML,Adult Social Care,BVASOC,ASC Physical Support,PHY,Third Party Payments,F,Other Establishments,FH,25/10/2019,PAY01214785,PHYS,Physical Support,13285.79,Revenue,Alina Homecare Ltd
Brighton & Hove City Council,http://statistics.data.gov.uk/id/local-authority/00ML,Adult Social Care,BVASOC,ASC Mental Health Support,MHP,Customer n Client Receipts,M,Fees n Charges,MB,25/10/2019,PAY01214892,MENH,Mental Health Support,-414.2,Revenue,Alliance Home Care Ltd
Brighton & Hove City Council,http://statistics.data.gov.uk/id/local-authority/00ML,Adult Social Care,BVASOC,ASC Mental Health Support,MHP,Third Party Payments,F,Other Establishments,FH,25/10/2019,PAY01214892,MENH,Mental Health Support,3920,Revenue,Alliance Home Care Ltd
Brighton & Hove City Council,http://statistics.data.gov.uk/id/local-authority/00ML,Adult Social Care,BVASOC,ASC Learning Disabilities,ALD,Third Party Payments,F,Other Establishments,FH,02/10/2019,PAY01206277,LDIS,Adults LD Community Care,426.4,Revenue,Allied Healthcare
Brighton & Hove City Council,http://statistics.data.gov.uk/id/local-authority/00ML,Adult Social Care,BVASOC,ASC Memory Cognition Support,MEM,Third Party Payments,F,Other Establishments,FH,02/10/2019,PAY01206277,COGN,Memory Cognition Support,1144.81,Revenue,Allied Healthcare
Brighton & Hove City Council,http://statistics.data.gov.uk/id/local-authority/00ML,Adult Social Care,BVASOC,ASC Mental Health Support,MHP,Third Party Payments,F,Other Establishments,FH,02/10/2019,PAY01206277,MENH,Mental Health Support,3052.79,Revenue,Allied Healthcare
Brighton & Hove City Council,http://statistics.data.gov.uk/id/local-authority/00ML,Adult Social Care,BVASOC,ASC Physical Support,PHY,Third Party Payments,F,Other Establishments,FH,02/10/2019,PAY01206277,PHYS,Physical Support,16556.15,Revenue,Allied Healthcare
Brighton & Hove City Council,http://statistics.data.gov.uk/id/local-authority/00ML,Adult Social Care,BVASOC,ASC Sensory Support,AHV,Third Party Payments,F,Other Establishments,FH,02/10/2019,PAY01206277,SORY,Sensory Support,30.6,Revenue,Allied Healthcare
Brighton & Hove City Council,http://statistics.data.gov.uk/id/local-authority/00ML,Adult Social Care,BVASOC,ASC Learning Disabilities,ALD,Third Party Payments,F,Other Establishments,FH,09/10/2019,PAY01208041,LDIS,Adults LD Community Care,144.43,Revenue,Allied Healthcare
Brighton & Hove City Council,http://statistics.data.gov.uk/id/local-authority/00ML,Adult Social Care,BVASOC,ASC Memory Cognition Support,MEM,Third Party Payments,F,Other Establishments,FH,09/10/2019,PAY01208041,COGN,Memory Cognition Support,135.52,Revenue,Allied Healthcare
Brighton & Hove City Council,http://statistics.data.gov.uk/id/local-authority/00ML,Adult Social Care,BVASOC,ASC Mental Health Support,MHP,Third Party Payments,F,Other Establishments,FH,09/10/2019,PAY01208041,MENH,Mental Health Support,1090.4,Revenue,Allied Healthcare
Brighton & Hove City Council,http://statistics.data.gov.uk/id/local-authority/00ML,Adult Social Care,BVASOC,ASC Physical Support,PHY,Third Party Payments,F,Other Establishments,FH,09/10/2019,PAY01208041,PHYS,Physical Support,5621.06,Revenue,Allied Healthcare
Brighton & Hove City Council,http://statistics.data.gov.uk/id/local-authority/00ML,Adult Social Care,BVASOC,ASC Sensory Support,AHV,Third Party Payments,F,Other Establishments,FH,09/10/2019,PAY01208041,SORY,Sensory Support,8.92,Revenue,Allied Healthcare
Brighton & Hove City Council,http://statistics.data.gov.uk/id/local-authority/00ML,Adult Social Care,BVASOC,ASC Learning Disabilities,ALD,Third Party Payments,F,Other Establishments,FH,11/10/2019,PAY01208839,LDIS,Adults LD Community Care,124.51,Revenue,Allied Healthcare
Brighton & Hove City Council,http://statistics.data.gov.uk/id/local-authority/00ML,Adult Social Care,BVASOC,ASC Memory Cognition Support,MEM,Third Party Payments,F,Other Establishments,FH,11/10/2019,PAY01208839,COGN,Memory Cognition Support,128.38,Revenue,Allied Healthcare
Brighton & Hove City Council,http://statistics.data.gov.uk/id/local-authority/00ML,Adult Social Care,BVASOC,ASC Mental Health Support,MHP,Third Party Payments,F,Other Establishments,FH,11/10/2019,PAY01208839,MENH,Mental Health Support,1156.35,Revenue,Allied Healthcare
Brighton & Hove City Council,http://statistics.data.gov.uk/id/local-authority/00ML,Adult Social Care,BVASOC,ASC Physical Support,PHY,Third Party Payments,F,Other Establishments,FH,11/10/2019,PAY01208839,PHYS,Physical Support,5563.14,Revenue,Allied Healthcare
Brighton & Hove City Council,http://statistics.data.gov.uk/id/local-authority/00ML,Adult Social Care,BVASOC,ASC Sensory Support,AHV,Third Party Payments,F,Other Establishments,FH,11/10/2019,PAY01208839,SORY,Sensory Support,9.21,Revenue,Allied Healthcare
Brighton & Hove City Council,http://statistics.data.gov.uk/id/local-authority/00ML,Adult Social Care,BVASOC,ASC Memory Cognition Support,MEM,Third Party Payments,F,Other Establishments,FH,16/10/2019,PAY01209998,COGN,Memory Cognition Support,767.41,Revenue,Allied Healthcare
Brighton & Hove City Council,http://statistics.data.gov.uk/id/local-authority/00ML,Adult Social Care,BVASOC,ASC Learning Disabilities,ALD,Third Party Payments,F,Other Establishments,FH,18/10/2019,PAY01211330,LDIS,Adults LD Community Care,137.3,Revenue,Allied Healthcare
Brighton & Hove City Council,http://statistics.data.gov.uk/id/local-authority/00ML,Adult Social Care,BVASOC,ASC Memory Cognition Support,MEM,Third Party Payments,F,Other Establishments,FH,18/10/2019,PAY01211330,COGN,Memory Cognition Support,128.96,Revenue,Allied Healthcare
Brighton & Hove City Council,http://statistics.data.gov.uk/id/local-authority/00ML,Adult Social Care,BVASOC,ASC Mental Health Support,MHP,Third Party Payments,F,Other Establishments,FH,18/10/2019,PAY01211330,MENH,Mental Health Support,1136.14,Revenue,Allied Healthcare
Brighton & Hove City Council,http://statistics.data.gov.uk/id/local-authority/00ML,Adult Social Care,BVASOC,ASC Physical Support,PHY,Third Party Payments,F,Other Establishments,FH,18/10/2019,PAY01211330,PHYS,Physical Support,5588.41,Revenue,Allied Healthcare
Brighton & Hove City Council,http://statistics.data.gov.uk/id/local-authority/00ML,Adult Social Care,BVASOC,ASC Sensory Support,AHV,Third Party Payments,F,Other Establishments,FH,18/10/2019,PAY01211330,SORY,Sensory Support,9.51,Revenue,Allied Healthcare
Brighton & Hove City Council,http://statistics.data.gov.uk/id/local-authority/00ML,Adult Social Care,BVASOC,ASC Learning Disabilities,ALD,Third Party Payments,F,Other Establishments,FH,25/10/2019,PAY01214190,LDIS,Adults LD Community Care,142.04,Revenue,Allied Healthcare
Brighton & Hove City Council,http://statistics.data.gov.uk/id/local-authority/00ML,Adult Social Care,BVASOC,ASC Memory Cognition Support,MEM,Third Party Payments,F,Other Establishments,FH,25/10/2019,PAY01214190,COGN,Memory Cognition Support,890.74,Revenue,Allied Healthcare
Brighton & Hove City Council,http://statistics.data.gov.uk/id/local-authority/00ML,Adult Social Care,BVASOC,ASC Mental Health Support,MHP,Third Party Payments,F,Other Establishments,FH,25/10/2019,PAY01214190,MENH,Mental Health Support,1207.39,Revenue,Allied Healthcare
Brighton & Hove City Council,http://statistics.data.gov.uk/id/local-authority/00ML,Adult Social Care,BVASOC,ASC Physical Support,PHY,Third Party Payments,F,Other Establishments,FH,25/10/2019,PAY01214190,PHYS,Physical Support,5403.36,Revenue,Allied Healthcare
Brighton & Hove City Council,http://statistics.data.gov.uk/id/local-authority/00ML,Adult Social Care,BVASOC,ASC Sensory Support,AHV,Third Party Payments,F,Other Establishments,FH,25/10/2019,PAY01214190,SORY,Sensory Support,9.5,Revenue,Allied Healthcare
Brighton & Hove City Council,http://statistics.data.gov.uk/id/local-authority/00ML,Public Health,BVAPHE,Public Health,PHE,Third Party Payments,F,Other Establishments,FH,25/10/2019,PAY01214204,PHCM,PH Commissioning,1813.18,Revenue,Allied Medical Practice
Brighton & Hove City Council,http://statistics.data.gov.uk/id/local-authority/00ML,Housing Revenue Account,BVAHOU,Hsing Management - HRA,HGM,Premises Related,C,Repair Maint n Alterations,CA,25/10/2019,PAY01214478,HPAI,Property & Investment,20472.21,Revenue,Allied Protection Ltd
Brighton & Hove City Council,http://statistics.data.gov.uk/id/local-authority/00ML,Highways and Transportation,BVAHRT,Parking Services,PRK,Supplies and Services,E,Print Stat & Gen Office Exps,ED,25/10/2019,PAY01215111,PARK,Parking Services,1246.63,Revenue,Allied Publicity Servcies (Manchester) Ltd
Brighton & Hove City Council,http://statistics.data.gov.uk/id/local-authority/00ML,Adult Social Care,BVASOC,ASC Learning Disabilities,ALD,Supplies and Services,E,Clothing Uniforms n Laundry,EC,16/10/2019,PAY01209967,LDAS,Adults LD Accomodation Service,420,Revenue,Allsop & Francis Ltd
Brighton & Hove City Council,http://statistics.data.gov.uk/id/local-authority/00ML,Central Support and Overheads,BVACEN,Support Services (SSC),PPT,Premises Related,C,Repair Maint n Alterations,CA,16/10/2019,PAY01209967,PROP,Property and Design,248.46,Revenue,Allsop & Francis Ltd
Brighton & Hove City Council,http://statistics.data.gov.uk/id/local-authority/00ML,Planning and Development,BVAPLA,Community Development,CDV,Supplies and Services,E,Grants n Subscriptions,EK,09/10/2019,PAY01208006,CMNY,Communities and Equalities,7922,Revenue,Allsorts Youth Project
Brighton & Hove City Council,http://statistics.data.gov.uk/id/local-authority/00ML,Central Support and Overheads,BVACEN,Holding Accounts,PPH,Transport Related,D,Direct Transport Costs,DA,11/10/2019,PAY01209175,CICL,City Clean,15958.13,Revenue,Allstar Business Solutions Ltd
Brighton & Hove City Council,http://statistics.data.gov.uk/id/local-authority/00ML,Central Support and Overheads,BVACEN,Holding Accounts,PPH,Transport Related,D,Direct Transport Costs,DA,18/10/2019,PAY01211902,CICL,City Clean,6628.77,Revenue,Allstar Business Solutions Ltd
Brighton & Hove City Council,http://statistics.data.gov.uk/id/local-authority/00ML,Non I&E,BVANON,CAP Education Services,4ED,New Construction n Conversion,PB,New Construction n Conversion,PBL5,23/10/2019,PAY01213384,EYRS,Early Years,2006.38,Capital,Allweather Roofing & Construction Ltd.
Brighton & Hove City Council,http://statistics.data.gov.uk/id/local-authority/00ML,Environment & Regulatory Serv,BVAERS,Environmental Health,EVH,Supplies and Services,E,Services,EF,30/10/2019,PAY01215671,SCOM,Safer Communties,2430,Revenue,Alphaguard K9 Ltd
Brighton & Hove City Council,http://statistics.data.gov.uk/id/local-authority/00ML,Children`s & Education Serv,BVAEDU,Child Srvcs - Othr LAC Svcs,FLX,Third Party Payments,F,Other Establishments,FH,09/10/2019,PAY01208618,AVFM,Agency Placements\VFM,9031.08,Revenue,Alternative Approach Ltd
Brighton & Hove City Council,http://statistics.data.gov.uk/id/local-authority/00ML,Adult Social Care,BVASOC,ASC Physical Support,PHY,Supplies and Services,E,Equip't Furniture n Materials,EA,25/10/2019,PAY01214512,RCOP,Resource Centres Older People,10,Revenue,Altodigital Networks Ltd
Brighton & Hove City Council,http://statistics.data.gov.uk/id/local-authority/00ML,Central Support and Overheads,BVACEN,Support Services (SSC),PPT,Supplies and Services,E,Communications n Computing,EH,25/10/2019,PAY01214512,ICTA,ICT,25893.42,Revenue,Altodigital Networks Ltd
Brighton & Hove City Council,http://statistics.data.gov.uk/id/local-authority/00ML,Housing Revenue Account,BVAHOU,Hsing Management - HRA,HGM,Supplies and Services,E,Services,EF,11/10/2019,PAY01208880,HPAI,Property & Investment,103.95,Revenue,AM Security Ltd t/a AM Fire & Security Group
Brighton & Hove City Council,http://statistics.data.gov.uk/id/local-authority/00ML,Non I&E,BVANON,CAP Mgmnt and Suppt Services,4PT,New Construction n Conversion,PB,New Construction n Conversion,PBL5,11/10/2019,PAY01208880,PROP,Property and Design,1179.19,Capital,AM Security Ltd t/a AM Fire & Security Group
Brighton & Hove City Council,http://statistics.data.gov.uk/id/local-authority/00ML,Central Support and Overheads,BVACEN,Support Services (SSC),PPT,Premises Related,C,Repair Maint n Alterations,CA,16/10/2019,PAY01210098,PROP,Property and Design,403.6,Revenue,AM Security Ltd t/a AM Fire & Security Group
Brighton & Hove City Council,http://statistics.data.gov.uk/id/local-authority/00ML,Non I&E,BVANON,Cap - Housing Services - HRA,4HR,New Construction n Conversion,PB,New Construction n Conversion,PBL5,16/10/2019,PAY01210098,HPAI,Property & Investment,13398.69,Capital,AM Security Ltd t/a AM Fire & Security Group
Brighton & Hove City Council,http://statistics.data.gov.uk/id/local-authority/00ML,Non I&E,BVANON,CAP Mgmnt and Suppt Services,4PT,Plant Machinery n Equipment,PE2,Plant Machinery n Equipment,PE2L5,16/10/2019,PAY01210098,PROP,Property and Design,154,Capital,AM Security Ltd t/a AM Fire & Security Group
Brighton & Hove City Council,http://statistics.data.gov.uk/id/local-authority/00ML,Central Support and Overheads,BVACEN,Support Services (SSC),PPT,Premises Related,C,Repair Maint n Alterations,CA,30/10/2019,PAY01215512,PROP,Property and Design,603.26,Revenue,AM Security Ltd t/a AM Fire & Security Group
Brighton & Hove City Council,http://statistics.data.gov.uk/id/local-authority/00ML,Non I&E,BVANON,Cap - Housing Services - HRA,4HR,New Construction n Conversion,PB,New Construction n Conversion,PBL5,30/10/2019,PAY01215512,HPAI,Property & Investment,2492.92,Capital,AM Security Ltd t/a AM Fire & Security Group
Brighton & Hove City Council,http://statistics.data.gov.uk/id/local-authority/00ML,Planning and Development,BVAPLA,Community Development,CDV,Supplies and Services,E,Grants n Subscriptions,EK,04/10/2019,PAY01207153,CMNY,Communities and Equalities,9100,Revenue,Amaze Brighton & Hove
Brighton & Hove City Council,http://statistics.data.gov.uk/id/local-authority/00ML,Planning and Development,BVAPLA,Community Development,CDV,Supplies and Services,E,Grants n Subscriptions,EK,09/10/2019,PAY01207996,CMNY,Communities and Equalities,12204,Revenue,Amaze Brighton & Hove
Brighton & Hove City Council,http://statistics.data.gov.uk/id/local-authority/00ML,Library Services,BVACUL,Library Service,LBR,Supplies and Services,E,Communications n Computing,EH,23/10/2019,PAY01213869,LIBS,Libraries,524.94,Revenue,Amazon Payments UK Ltd
Brighton & Hove City Council,http://statistics.data.gov.uk/id/local-authority/00ML,Central Support and Overheads,BVACEN,ORBIS Partnership,ORB,Supplies and Services,E,Communications n Computing,EH,25/10/2019,PAY01215174,ORBHPI,HR Policy & Initiatives- ORBIS,41.6,Revenue,Amazon Payments UK Ltd
Brighton & Hove City Council,http://statistics.data.gov.uk/id/local-authority/00ML,Central Support and Overheads,BVACEN,Support Services (SSC),PPT,Supplies and Services,E,Communications n Computing,EH,25/10/2019,PAY01215174,FINS,Financial Services,78.12,Revenue,Amazon Payments UK Ltd
Brighton & Hove City Council,http://statistics.data.gov.uk/id/local-authority/00ML,Central Support and Overheads,BVACEN,Support Services (SSC),PPT,Supplies and Services,E,Communications n Computing,EH,25/10/2019,PAY01215174,ICTA,ICT,277.69,Revenue,Amazon Payments UK Ltd
Brighton & Hove City Council,http://statistics.data.gov.uk/id/local-authority/00ML,Central Support and Overheads,BVACEN,Support Services (SSC),PPT,Supplies and Services,E,Print Stat & Gen Office Exps,ED,25/10/2019,PAY01215174,ICTA,ICT,59.32,Revenue,Amazon Payments UK Ltd
Brighton & Hove City Council,http://statistics.data.gov.uk/id/local-authority/00ML,Housing General Fund,BVAHOG,Hsing Strat Advice and RSLs,HGR,Supplies and Services,E,Communications n Computing,EH,25/10/2019,PAY01215174,HSAD,Housing Strategy & Enabling,114.15,Revenue,Amazon Payments UK Ltd
Brighton & Hove City Council,http://statistics.data.gov.uk/id/local-authority/00ML,Non I&E,BVANON,CAP Mgmnt and Suppt Services,4PT,Plant Machinery n Equipment,PE2,Plant Machinery n Equipment,PE2L5,25/10/2019,PAY01215174,PROP,Property and Design,191.39,Capital,Amazon Payments UK Ltd
Brighton & Hove City Council,http://statistics.data.gov.uk/id/local-authority/00ML,Adult Social Care,BVASOC,ASC Memory Cognition Support,MEM,Third Party Payments,F,Other Establishments,FH,25/10/2019,PAY01214180,COGN,Memory Cognition Support,2254.52,Revenue,Amberley Lodge Care Home Ltd
Brighton & Hove City Council,http://statistics.data.gov.uk/id/local-authority/00ML,Cultural and Related Serv,BVACUL,Open Spaces,PEN,Supplies and Services,E,Equip't Furniture n Materials,EA,16/10/2019,PAY01210097,CIPK,City Parks,1000,Revenue,AMP Groundcare Machinery Services Ltd
Brighton & Hove City Council,http://statistics.data.gov.uk/id/local-authority/00ML,Environment & Regulatory Serv,BVAERS,Management Services (DEC),MGT,Transport Related,D,Direct Transport Costs,DA,18/10/2019,PAY01211389,CICL,City Clean,1267.97,Revenue,AMP Groundcare Machinery Services Ltd
Brighton & Hove City Council,http://statistics.data.gov.uk/id/local-authority/00ML,Cultural and Related Serv,BVACUL,Culture and Heritage,CHG,Premises Related,C,Repair Maint n Alterations,CA,25/10/2019,PAY01214269,RPMU,Royal Pavilion and Museums,148.97,Revenue,AMP Groundcare Machinery Services Ltd
Brighton & Hove City Council,http://statistics.data.gov.uk/id/local-authority/00ML,Environment & Regulatory Serv,BVAERS,Management Services (DEC),MGT,Transport Related,D,Direct Transport Costs,DA,25/10/2019,PAY01214269,CICL,City Clean,310.96,Revenue,AMP Groundcare Machinery Services Ltd
Brighton & Hove City Council,http://statistics.data.gov.uk/id/local-authority/00ML,Housing Revenue Account,BVAHOU,Hsing Management - HRA,HGM,Supplies and Services,E,Equip't Furniture n Materials,EA,25/10/2019,PAY01214269,HTEN,Tenancy Services,750.64,Revenue,AMP Groundcare Machinery Services Ltd
Brighton & Hove City Council,http://statistics.data.gov.uk/id/local-authority/00ML,Environment & Regulatory Serv,BVAERS,Management Services (DEC),MGT,Transport Related,D,Direct Transport Costs,DA,30/10/2019,PAY01215511,CICL,City Clean,410.05,Revenue,AMP Groundcare Machinery Services Ltd
Brighton & Hove City Council,http://statistics.data.gov.uk/id/local-authority/00ML,Children`s & Education Serv,BVAEDU,Child Srvcs - Residential Svcs,FLR,Third Party Payments,F,Other Establishments,FH,16/10/2019,PAY01210436,AVFM,Agency Placements\VFM,32955.88,Revenue,Anderida Adolescent Care Ltd
Brighton & Hove City Council,http://statistics.data.gov.uk/id/local-authority/00ML,Children`s & Education Serv,BVAEDU,Child Srvcs - Fostering,FLF,Third Party Payments,F,Other Establishments,FH,02/10/2019,PAY01206831,AVFM,Agency Placements\VFM,630,Revenue,Andicars (Havant) Ltd
Brighton & Hove City Council,http://statistics.data.gov.uk/id/local-authority/00ML,Adult Social Care,BVASOC,ASC Physical Support,PHY,Customer n Client Receipts,M,Fees n Charges,MB,25/10/2019,PAY01215163,PHYS,Physical Support,-414.2,Revenue,Angel Healthcare Limited
Brighton & Hove City Council,http://statistics.data.gov.uk/id/local-authority/00ML,Adult Social Care,BVASOC,ASC Physical Support,PHY,Third Party Payments,F,Other Establishments,FH,25/10/2019,PAY01215163,PHYS,Physical Support,3400,Revenue,Angel Healthcare Limited
Brighton & Hove City Council,http://statistics.data.gov.uk/id/local-authority/00ML,Housing Revenue Account,BVAHOU,Hsing Management - HRA,HGM,Supplies and Services,E,Equip't Furniture n Materials,EA,18/10/2019,PAY01212441,HIII,Income Involvement Improvement,2166.12,Revenue,Angel Springs Ltd t/a Waterlogic
Brighton & Hove City Council,http://statistics.data.gov.uk/id/local-authority/00ML,Non I&E,BVANON,CAP Sport and Recreation,4RC,New Construction n Conversion,PB,New Construction n Conversion,PBL5,09/10/2019,PAY01208592,CIPK,City Parks,2100,Capital,Anna Cullum Ltd
Brighton & Hove City Council,http://statistics.data.gov.uk/id/local-authority/00ML,Central Support and Overheads,BVACEN,Support Services (SSC),PPT,Premises Related,C,Repair Maint n Alterations,CA,04/10/2019,PAY01207316,PROP,Property and Design,589.29,Revenue,Anti-Graffiti Systems Limited
Brighton & Hove City Council,http://statistics.data.gov.uk/id/local-authority/00ML,Children`s & Education Serv,BVAEDU,Child Srvcs - Othr LAC Svcs,FLX,Third Party Payments,F,Other Establishments,FH,16/10/2019,PAY01210820,AVFM,Agency Placements\VFM,17935.71,Revenue,Anytime Homes Ltd T/A Anytime Care 2020
Brighton & Hove City Council,http://statistics.data.gov.uk/id/local-authority/00ML,Library Services,BVACUL,Library Service,LBR,Supplies and Services,E,Services,EF,25/10/2019,PAY01214713,LIBS,Libraries,4715.18,Revenue,AP Security (APS) Ltd
Brighton & Hove City Council,http://statistics.data.gov.uk/id/local-authority/00ML,Adult Social Care,BVASOC,ASC Learning Disabilities,ALD,Third Party Payments,F,Other Establishments,FH,02/10/2019,PAY01206279,LDIS,Adults LD Community Care,33.58,Revenue,Apex Prime Care Ltd
Brighton & Hove City Council,http://statistics.data.gov.uk/id/local-authority/00ML,Adult Social Care,BVASOC,ASC Memory Cognition Support,MEM,Third Party Payments,F,Other Establishments,FH,02/10/2019,PAY01206279,COGN,Memory Cognition Support,1241.68,Revenue,Apex Prime Care Ltd
Brighton & Hove City Council,http://statistics.data.gov.uk/id/local-authority/00ML,Adult Social Care,BVASOC,ASC Mental Health Support,MHP,Third Party Payments,F,Other Establishments,FH,02/10/2019,PAY01206279,MENH,Mental Health Support,1008.21,Revenue,Apex Prime Care Ltd
Brighton & Hove City Council,http://statistics.data.gov.uk/id/local-authority/00ML,Adult Social Care,BVASOC,ASC Physical Support,PHY,Third Party Payments,F,Other Establishments,FH,02/10/2019,PAY01206279,PHYS,Physical Support,19857.77,Revenue,Apex Prime Care Ltd
Brighton & Hove City Council,http://statistics.data.gov.uk/id/local-authority/00ML,Adult Social Care,BVASOC,ASC Learning Disabilities,ALD,Third Party Payments,F,Other Establishments,FH,09/10/2019,PAY01208043,LDIS,Adults LD Community Care,85.6,Revenue,Apex Prime Care Ltd
Brighton & Hove City Council,http://statistics.data.gov.uk/id/local-authority/00ML,Adult Social Care,BVASOC,ASC Memory Cognition Support,MEM,Third Party Payments,F,Other Establishments,FH,09/10/2019,PAY01208043,COGN,Memory Cognition Support,1304.71,Revenue,Apex Prime Care Ltd
Brighton & Hove City Council,http://statistics.data.gov.uk/id/local-authority/00ML,Adult Social Care,BVASOC,ASC Mental Health Support,MHP,Third Party Payments,F,Other Establishments,FH,09/10/2019,PAY01208043,MENH,Mental Health Support,938.38,Revenue,Apex Prime Care Ltd
Brighton & Hove City Council,http://statistics.data.gov.uk/id/local-authority/00ML,Adult Social Care,BVASOC,ASC Physical Support,PHY,Third Party Payments,F,Other Establishments,FH,09/10/2019,PAY01208043,PHYS,Physical Support,15740.83,Revenue,Apex Prime Care Ltd
Brighton & Hove City Council,http://statistics.data.gov.uk/id/local-authority/00ML,Adult Social Care,BVASOC,ASC Learning Disabilities,ALD,Third Party Payments,F,Other Establishments,FH,11/10/2019,PAY01208840,LDIS,Adults LD Community Care,75.49,Revenue,Apex Prime Care Ltd
Brighton & Hove City Council,http://statistics.data.gov.uk/id/local-authority/00ML,Adult Social Care,BVASOC,ASC Memory Cognition Support,MEM,Third Party Payments,F,Other Establishments,FH,11/10/2019,PAY01208840,COGN,Memory Cognition Support,1254.81,Revenue,Apex Prime Care Ltd
Brighton & Hove City Council,http://statistics.data.gov.uk/id/local-authority/00ML,Adult Social Care,BVASOC,ASC Mental Health Support,MHP,Third Party Payments,F,Other Establishments,FH,11/10/2019,PAY01208840,MENH,Mental Health Support,961.86,Revenue,Apex Prime Care Ltd
Brighton & Hove City Council,http://statistics.data.gov.uk/id/local-authority/00ML,Adult Social Care,BVASOC,ASC Physical Support,PHY,Third Party Payments,F,Other Establishments,FH,11/10/2019,PAY01208840,PHYS,Physical Support,15756.22,Revenue,Apex Prime Care Ltd
Brighton & Hove City Council,http://statistics.data.gov.uk/id/local-authority/00ML,Adult Social Care,BVASOC,ASC Learning Disabilities,ALD,Third Party Payments,F,Other Establishments,FH,18/10/2019,PAY01211331,LDIS,Adults LD Community Care,91.82,Revenue,Apex Prime Care Ltd
Brighton & Hove City Council,http://statistics.data.gov.uk/id/local-authority/00ML,Adult Social Care,BVASOC,ASC Memory Cognition Support,MEM,Third Party Payments,F,Other Establishments,FH,18/10/2019,PAY01211331,COGN,Memory Cognition Support,861.18,Revenue,Apex Prime Care Ltd
Brighton & Hove City Council,http://statistics.data.gov.uk/id/local-authority/00ML,Adult Social Care,BVASOC,ASC Mental Health Support,MHP,Third Party Payments,F,Other Establishments,FH,18/10/2019,PAY01211331,MENH,Mental Health Support,610.76,Revenue,Apex Prime Care Ltd
Brighton & Hove City Council,http://statistics.data.gov.uk/id/local-authority/00ML,Adult Social Care,BVASOC,ASC Physical Support,PHY,Third Party Payments,F,Other Establishments,FH,18/10/2019,PAY01211331,PHYS,Physical Support,16415.71,Revenue,Apex Prime Care Ltd
Brighton & Hove City Council,http://statistics.data.gov.uk/id/local-authority/00ML,Adult Social Care,BVASOC,ASC Learning Disabilities,ALD,Third Party Payments,F,Other Establishments,FH,25/10/2019,PAY01214197,LDIS,Adults LD Community Care,89.45,Revenue,Apex Prime Care Ltd
Brighton & Hove City Council,http://statistics.data.gov.uk/id/local-authority/00ML,Adult Social Care,BVASOC,ASC Memory Cognition Support,MEM,Third Party Payments,F,Other Establishments,FH,25/10/2019,PAY01214197,COGN,Memory Cognition Support,740.4,Revenue,Apex Prime Care Ltd
Brighton & Hove City Council,http://statistics.data.gov.uk/id/local-authority/00ML,Adult Social Care,BVASOC,ASC Mental Health Support,MHP,Third Party Payments,F,Other Establishments,FH,25/10/2019,PAY01214197,MENH,Mental Health Support,965.7,Revenue,Apex Prime Care Ltd
Brighton & Hove City Council,http://statistics.data.gov.uk/id/local-authority/00ML,Adult Social Care,BVASOC,ASC Physical Support,PHY,Third Party Payments,F,Other Establishments,FH,25/10/2019,PAY01214197,PHYS,Physical Support,15952.26,Revenue,Apex Prime Care Ltd
Brighton & Hove City Council,http://statistics.data.gov.uk/id/local-authority/00ML,Library Services,BVACUL,Library Service,LBR,Supplies and Services,E,Services,EF,30/10/2019,PAY01215898,LIBS,Libraries,550,Revenue,Apollo Fundraising Ltd
Brighton & Hove City Council,http://statistics.data.gov.uk/id/local-authority/00ML,Non I&E,BVANON,CAP Mgmnt and Suppt Services,4PT,Plant Machinery n Equipment,PE2,Plant Machinery n Equipment,PE2L5,23/10/2019,PAY01213466,ICTA,ICT,1276.05,Capital,Apple Retail UK Ltd
Brighton & Hove City Council,http://statistics.data.gov.uk/id/local-authority/00ML,Housing General Fund,BVAHOG,Homelessness,HML,Premises Related,C,Rents Payable,CC,11/10/2019,PAY01209055,TAAS,Temp Accom and Allocations,1350,Revenue,Applegate Properties Ltd
Brighton & Hove City Council,http://statistics.data.gov.uk/id/local-authority/00ML,Highways and Transportation,BVAHRT,Parking Services,PRK,Supplies and Services,E,Equip't Furniture n Materials,EA,18/10/2019,PAY01211812,PARK,Parking Services,3270.8,Revenue,APS Aegis Limited
Brighton & Hove City Council,http://statistics.data.gov.uk/id/local-authority/00ML,Non I&E,BVANON,Cap - Housing Services - HRA,4HR,New Construction n Conversion,PB,New Construction n Conversion,PBL5,18/10/2019,PAY01211812,HPAI,Property & Investment,109806.81,Capital,APS Aegis Limited
Brighton & Hove City Council,http://statistics.data.gov.uk/id/local-authority/00ML,Highways and Transportation,BVAHRT,Parking Services,PRK,Supplies and Services,E,Equip't Furniture n Materials,EA,25/10/2019,PAY01214617,PARK,Parking Services,16954.64,Revenue,APS Aegis Limited
Brighton & Hove City Council,http://statistics.data.gov.uk/id/local-authority/00ML,Highways and Transportation,BVAHRT,Parking Services,PRK,Supplies and Services,E,Equip't Furniture n Materials,EA,02/10/2019,PAY01206297,PARK,Parking Services,1148.79,Revenue,APT Skidata Ltd
Brighton & Hove City Council,http://statistics.data.gov.uk/id/local-authority/00ML,Highways and Transportation,BVAHRT,Parking Services,PRK,Supplies and Services,E,Equip't Furniture n Materials,EA,09/10/2019,PAY01208057,PARK,Parking Services,9855.66,Revenue,APT Skidata Ltd
Brighton & Hove City Council,http://statistics.data.gov.uk/id/local-authority/00ML,Highways and Transportation,BVAHRT,Parking Services,PRK,Supplies and Services,E,Equip't Furniture n Materials,EA,16/10/2019,PAY01210055,PARK,Parking Services,741.6,Revenue,APT Skidata Ltd
Brighton & Hove City Council,http://statistics.data.gov.uk/id/local-authority/00ML,Highways and Transportation,BVAHRT,Parking Services,PRK,Supplies and Services,E,Equip't Furniture n Materials,EA,25/10/2019,PAY01214237,PARK,Parking Services,1010.5,Revenue,APT Skidata Ltd
Brighton & Hove City Council,http://statistics.data.gov.uk/id/local-authority/00ML,Children`s & Education Serv,BVAEDU,Child Srvcs Other,FAX,Supplies and Services,E,Miscellaneous Expenses,EM,16/10/2019,PAY01209917,YOTS,Youth Service,274.95,Revenue,AQA Education
Brighton & Hove City Council,http://statistics.data.gov.uk/id/local-authority/00ML,Children`s & Education Serv,BVAEDU,Ed Ed Other LA Attrib Sch,ELA,Third Party Payments,F,Other Establishments,FH,30/10/2019,PAY01215421,ACED,Access to Education,315,Revenue,AQA Education
Brighton & Hove City Council,http://statistics.data.gov.uk/id/local-authority/00ML,Central Support and Overheads,BVACEN,Support Services (SSC),PPT,Premises Related,C,Water Services,CE,16/10/2019,PAY01210644,PROP,Property and Design,1427.25,Revenue,Aquam Water Services
Brighton & Hove City Council,http://statistics.data.gov.uk/id/local-authority/00ML,Non I&E,BVANON,CAP Education Services,4ED,New Construction n Conversion,PB,New Construction n Conversion,PBL5,16/10/2019,PAY01210623,OEDS,Other Education Support,625,Capital,Aquatech Drain Services Ltd
Brighton & Hove City Council,http://statistics.data.gov.uk/id/local-authority/00ML,Public Health,BVAPHE,Public Health,PHE,Third Party Payments,F,Other Establishments,FH,25/10/2019,PAY01214974,PHCM,PH Commissioning,3461.75,Revenue,ARCH Health CIC
Brighton & Hove City Council,http://statistics.data.gov.uk/id/local-authority/00ML,Adult Social Care,BVASOC,ASC Memory Cognition Support,MEM,Customer n Client Receipts,M,Fees n Charges,MB,25/10/2019,PAY01214155,COGN,Memory Cognition Support,-1027,Revenue,Archmore Care Services Ltd T/A Birchwood Grove NH
Brighton & Hove City Council,http://statistics.data.gov.uk/id/local-authority/00ML,Adult Social Care,BVASOC,ASC Memory Cognition Support,MEM,Third Party Payments,F,Other Establishments,FH,25/10/2019,PAY01214155,COGN,Memory Cognition Support,2430.56,Revenue,Archmore Care Services Ltd T/A Birchwood Grove NH
Brighton & Hove City Council,http://statistics.data.gov.uk/id/local-authority/00ML,Adult Social Care,BVASOC,ASC Physical Support,PHY,Third Party Payments,F,Other Establishments,FH,25/10/2019,PAY01214155,PHYS,Physical Support,2430.56,Revenue,Archmore Care Services Ltd T/A Birchwood Grove NH
Brighton & Hove City Council,http://statistics.data.gov.uk/id/local-authority/00ML,Public Health,BVAPHE,Public Health,PHE,Third Party Payments,F,Other Establishments,FH,25/10/2019,PAY01214228,PHCM,PH Commissioning,6416.29,Revenue,Ardingly Court Surgery
Brighton & Hove City Council,http://statistics.data.gov.uk/id/local-authority/00ML,Housing Revenue Account,BVAHOU,Hsing Management - HRA,HGM,Supplies and Services,E,Equip't Furniture n Materials,EA,04/10/2019,PAY01207203,HTEN,Tenancy Services,144.6,Revenue,Argos Business Solutions Ltd
Brighton & Hove City Council,http://statistics.data.gov.uk/id/local-authority/00ML,Non I&E,BVANON,CAP Social Services,4RV,Plant Machinery n Equipment,PE2,Plant Machinery n Equipment,PE2L5,04/10/2019,PAY01207203,ASIT,Assessment and SIT,100.28,Capital,Argos Business Solutions Ltd
Brighton & Hove City Council,http://statistics.data.gov.uk/id/local-authority/00ML,Non I&E,BVANON,Trusts,TRT,Customer n Client Receipts,M,Fees n Charges,MB,04/10/2019,PAY01207203,NBHC,Non Council,267.83,Revenue,Argos Business Solutions Ltd
Brighton & Hove City Council,http://statistics.data.gov.uk/id/local-authority/00ML,Children`s & Education Serv,BVAEDU,Child Srvcs - Fostering,FLF,Third Party Payments,F,Other Establishments,FH,09/10/2019,PAY01208074,CHIC,Fostering and Adoption,359.98,Revenue,Argos Business Solutions Ltd
Brighton & Hove City Council,http://statistics.data.gov.uk/id/local-authority/00ML,Children`s & Education Serv,BVAEDU,Child Srvcs - Other Fam Supp,FFX,Transfer Payments,G,Other Transfer Payments,GD,09/10/2019,PAY01208074,FAMP,Families\Prevention,59.96,Revenue,Argos Business Solutions Ltd
Brighton & Hove City Council,http://statistics.data.gov.uk/id/local-authority/00ML,Housing General Fund,BVAHOG,Hsing Benefits,HGB,Transfer Payments,G,Other Transfer Payments,GD,09/10/2019,PAY01208074,REVS,Revenues and Benefits,193.99,Revenue,Argos Business Solutions Ltd
Brighton & Hove City Council,http://statistics.data.gov.uk/id/local-authority/00ML,Cultural and Related Serv,BVACUL,Culture and Heritage,CHG,Supplies and Services,E,Miscellaneous Expenses,EM,11/10/2019,PAY01208871,RPMU,Royal Pavilion and Museums,243.28,Revenue,Argos Business Solutions Ltd
Brighton & Hove City Council,http://statistics.data.gov.uk/id/local-authority/00ML,Housing General Fund,BVAHOG,Hsing Benefits,HGB,Transfer Payments,G,Other Transfer Payments,GD,11/10/2019,PAY01208871,REVS,Revenues and Benefits,509.22,Revenue,Argos Business Solutions Ltd
Brighton & Hove City Council,http://statistics.data.gov.uk/id/local-authority/00ML,Housing Revenue Account,BVAHOU,Hsing Management - HRA,HGM,Supplies and Services,E,Miscellaneous Expenses,EM,11/10/2019,PAY01208871,HTEN,Tenancy Services,247.26,Revenue,Argos Business Solutions Ltd
Brighton & Hove City Council,http://statistics.data.gov.uk/id/local-authority/00ML,Children`s & Education Serv,BVAEDU,Child Srvcs Leaving Care,FAL,Transfer Payments,G,Other Transfer Payments,GD,16/10/2019,PAY01210084,CARL,Care Leavers,354.48,Revenue,Argos Business Solutions Ltd
Brighton & Hove City Council,http://statistics.data.gov.uk/id/local-authority/00ML,Children`s & Education Serv,BVAEDU,Child Srvcs - Other Fam Supp,FFX,Transfer Payments,G,Other Transfer Payments,GD,16/10/2019,PAY01210084,FAMP,Families\Prevention,158.33,Revenue,Argos Business Solutions Ltd
Brighton & Hove City Council,http://statistics.data.gov.uk/id/local-authority/00ML,Children`s & Education Serv,BVAEDU,Child Srvcs Leaving Care,FAL,Transfer Payments,G,Other Transfer Payments,GD,23/10/2019,PAY01213352,CARL,Care Leavers,-23.66,Revenue,Argos Business Solutions Ltd
Brighton & Hove City Council,http://statistics.data.gov.uk/id/local-authority/00ML,Non I&E,BVANON,Trusts,TRT,Customer n Client Receipts,M,Fees n Charges,MB,23/10/2019,PAY01213352,NBHC,Non Council,1040.73,Revenue,Argos Business Solutions Ltd
Brighton & Hove City Council,http://statistics.data.gov.uk/id/local-authority/00ML,Central Support and Overheads,BVACEN,Support Services (SSC),PPT,Indirect Employees,B,Training,BM,11/10/2019,PAY01209381,LEGS,Legal Services,255,Revenue,ARK Conferences Ltd
Brighton & Hove City Council,http://statistics.data.gov.uk/id/local-authority/00ML,Adult Social Care,BVASOC,S Svcs Other Adult Services,ADT,Indirect Employees,B,Training,BM,11/10/2019,PAY01208848,ORGD,Organisational Development,672,Revenue,Artagent Ltd t/a David Taylor Training
Brighton & Hove City Council,http://statistics.data.gov.uk/id/local-authority/00ML,Central Support and Overheads,BVACEN,Support Services (SSC),PPT,Indirect Employees,B,Training,BM,11/10/2019,PAY01208848,ORGD,Organisational Development,728,Revenue,Artagent Ltd t/a David Taylor Training
Brighton & Hove City Council,http://statistics.data.gov.uk/id/local-authority/00ML,Adult Social Care,BVASOC,S Svcs Other Adult Services,ADT,Indirect Employees,B,Training,BM,23/10/2019,PAY01213337,ORGD,Organisational Development,336,Revenue,Artagent Ltd t/a David Taylor Training
Brighton & Hove City Council,http://statistics.data.gov.uk/id/local-authority/00ML,Central Support and Overheads,BVACEN,Support Services (SSC),PPT,Indirect Employees,B,Training,BM,23/10/2019,PAY01213337,ORGD,Organisational Development,364,Revenue,Artagent Ltd t/a David Taylor Training
Brighton & Hove City Council,http://statistics.data.gov.uk/id/local-authority/00ML,Adult Social Care,BVASOC,S Svcs Other Adult Services,ADT,Indirect Employees,B,Training,BM,25/10/2019,PAY01214209,ORGD,Organisational Development,403.2,Revenue,Artagent Ltd t/a David Taylor Training
Brighton & Hove City Council,http://statistics.data.gov.uk/id/local-authority/00ML,Central Support and Overheads,BVACEN,Support Services (SSC),PPT,Indirect Employees,B,Training,BM,25/10/2019,PAY01214209,ORGD,Organisational Development,86.8,Revenue,Artagent Ltd t/a David Taylor Training
Brighton & Hove City Council,http://statistics.data.gov.uk/id/local-authority/00ML,Non I&E,BVANON,CAP Libs Culture and Hertage,4LH,New Construction n Conversion,PB,New Construction n Conversion,PBL5,25/10/2019,PAY01215170,RPMU,Royal Pavilion and Museums,12735,Capital,Artelia UK
Brighton & Hove City Council,http://statistics.data.gov.uk/id/local-authority/00ML,Cultural and Related Serv,BVACUL,Culture and Heritage,CHG,Supplies and Services,E,Goods for Resale,EG,30/10/2019,PAY01216107,RPMU,Royal Pavilion and Museums,753.09,Revenue,Arthouse Unlimited
Brighton & Hove City Council,http://statistics.data.gov.uk/id/local-authority/00ML,Cultural and Related Serv,BVACUL,Tourism,TRM,Supplies and Services,E,Miscellaneous Expenses,EM,02/10/2019,PAY01206322,TOMA,Tourism and Marketing,313.33,Revenue,Artist Residence Brighton Ltd
Brighton & Hove City Council,http://statistics.data.gov.uk/id/local-authority/00ML,Central Support and Overheads,BVACEN,Support Services (SSC),PPT,Premises Related,C,Repair Maint n Alterations,CA,16/10/2019,PAY01210099,PROP,Property and Design,930,Revenue,Arun Pumps Ltd
Brighton & Hove City Council,http://statistics.data.gov.uk/id/local-authority/00ML,Adult Social Care,BVASOC,ASC Learning Disabilities,ALD,Third Party Payments,F,Other Establishments,FH,02/10/2019,PAY01206476,LDIS,Adults LD Community Care,24006.38,Revenue,Arundel Domiciliary Care Services
Brighton & Hove City Council,http://statistics.data.gov.uk/id/local-authority/00ML,Adult Social Care,BVASOC,ASC Learning Disabilities,ALD,Customer n Client Receipts,M,Fees n Charges,MB,23/10/2019,PAY01213455,LDIS,Adults LD Community Care,-3264,Revenue,Arundel Domiciliary Care Services
Brighton & Hove City Council,http://statistics.data.gov.uk/id/local-authority/00ML,Adult Social Care,BVASOC,ASC Learning Disabilities,ALD,Third Party Payments,F,Other Establishments,FH,23/10/2019,PAY01213455,LDIS,Adults LD Community Care,137395.08,Revenue,Arundel Domiciliary Care Services
Brighton & Hove City Council,http://statistics.data.gov.uk/id/local-authority/00ML,Cultural and Related Serv,BVACUL,Open Spaces,PEN,Third Party Payments,F,Private Contractors,FJ,23/10/2019,PAY01213534,CIPK,City Parks,2631.2,Revenue,Asbestos First Ltd
Brighton & Hove City Council,http://statistics.data.gov.uk/id/local-authority/00ML,Adult Social Care,BVASOC,ASC Learning Disabilities,ALD,Customer n Client Receipts,M,Fees n Charges,MB,25/10/2019,PAY01214129,LDIS,Adults LD Community Care,-414.2,Revenue,ASD Unique Services LLP
Brighton & Hove City Council,http://statistics.data.gov.uk/id/local-authority/00ML,Adult Social Care,BVASOC,ASC Learning Disabilities,ALD,Third Party Payments,F,Other Establishments,FH,25/10/2019,PAY01214129,LDIS,Adults LD Community Care,4591.44,Revenue,ASD Unique Services LLP
Brighton & Hove City Council,http://statistics.data.gov.uk/id/local-authority/00ML,Non I&E,BVANON,CAP Other Env Services,4EV,New Construction n Conversion,PB,New Construction n Conversion,PBL5,04/10/2019,PAY01207166,PROP,Property and Design,2590,Capital,Ashacre Scaffolding Ltd
Brighton & Hove City Council,http://statistics.data.gov.uk/id/local-authority/00ML,Non I&E,BVANON,CAP Other Env Services,4EV,New Construction n Conversion,PB,New Construction n Conversion,PBL5,11/10/2019,PAY01208811,PROP,Property and Design,280,Capital,Ashacre Scaffolding Ltd
Brighton & Hove City Council,http://statistics.data.gov.uk/id/local-authority/00ML,Housing General Fund,BVAHOG,Homelessness,HML,Premises Related,C,Rents Payable,CC,02/10/2019,PAY01206648,TAAS,Temp Accom and Allocations,2477.12,Revenue,Ashbee Estates Ltd 
Brighton & Hove City Council,http://statistics.data.gov.uk/id/local-authority/00ML,Housing General Fund,BVAHOG,Homelessness,HML,Premises Related,C,Repair Maint n Alterations,CA,02/10/2019,PAY01206648,TAAS,Temp Accom and Allocations,2215.38,Revenue,Ashbee Estates Ltd 
Brighton & Hove City Council,http://statistics.data.gov.uk/id/local-authority/00ML,Housing General Fund,BVAHOG,Homelessness,HML,Third Party Payments,F,Other Establishments,FH,02/10/2019,PAY01206648,HOPT,Housing Options,252.24,Revenue,Ashbee Estates Ltd 
Brighton & Hove City Council,http://statistics.data.gov.uk/id/local-authority/00ML,Housing General Fund,BVAHOG,Homelessness,HML,Premises Related,C,Rents Payable,CC,04/10/2019,PAY01207566,TAAS,Temp Accom and Allocations,1250,Revenue,Ashbee Estates Ltd 
Brighton & Hove City Council,http://statistics.data.gov.uk/id/local-authority/00ML,Housing General Fund,BVAHOG,Homelessness,HML,Premises Related,C,Rents Payable,CC,09/10/2019,PAY01208366,TAAS,Temp Accom and Allocations,1780,Revenue,Ashbee Estates Ltd 
Brighton & Hove City Council,http://statistics.data.gov.uk/id/local-authority/00ML,Housing General Fund,BVAHOG,Homelessness,HML,Premises Related,C,Rents Payable,CC,11/10/2019,PAY01209301,TAAS,Temp Accom and Allocations,1815,Revenue,Ashbee Estates Ltd 
Brighton & Hove City Council,http://statistics.data.gov.uk/id/local-authority/00ML,Housing General Fund,BVAHOG,Homelessness,HML,Third Party Payments,F,Other Establishments,FH,11/10/2019,PAY01209301,HOPT,Housing Options,1080,Revenue,Ashbee Estates Ltd 
Brighton & Hove City Council,http://statistics.data.gov.uk/id/local-authority/00ML,Housing General Fund,BVAHOG,Homelessness,HML,Premises Related,C,Rents Payable,CC,16/10/2019,PAY01210604,TAAS,Temp Accom and Allocations,890,Revenue,Ashbee Estates Ltd 
Brighton & Hove City Council,http://statistics.data.gov.uk/id/local-authority/00ML,Housing General Fund,BVAHOG,Homelessness,HML,Third Party Payments,F,Other Establishments,FH,16/10/2019,PAY01210604,HOPT,Housing Options,700,Revenue,Ashbee Estates Ltd 
Brighton & Hove City Council,http://statistics.data.gov.uk/id/local-authority/00ML,Housing General Fund,BVAHOG,Homelessness,HML,Third Party Payments,F,Other Establishments,FH,18/10/2019,PAY01212171,TAAS,Temp Accom and Allocations,347.88,Revenue,Ashbee Estates Ltd 
Brighton & Hove City Council,http://statistics.data.gov.uk/id/local-authority/00ML,Housing General Fund,BVAHOG,Homelessness,HML,Premises Related,C,Rents Payable,CC,23/10/2019,PAY01213608,TAAS,Temp Accom and Allocations,875,Revenue,Ashbee Estates Ltd 
Brighton & Hove City Council,http://statistics.data.gov.uk/id/local-authority/00ML,Housing General Fund,BVAHOG,Homelessness,HML,Premises Related,C,Repair Maint n Alterations,CA,23/10/2019,PAY01213608,TAAS,Temp Accom and Allocations,900,Revenue,Ashbee Estates Ltd 
Brighton & Hove City Council,http://statistics.data.gov.uk/id/local-authority/00ML,Housing General Fund,BVAHOG,Homelessness,HML,Premises Related,C,Rents Payable,CC,30/10/2019,PAY01215836,TAAS,Temp Accom and Allocations,1150,Revenue,Ashbee Estates Ltd 
Brighton & Hove City Council,http://statistics.data.gov.uk/id/local-authority/00ML,Cultural and Related Serv,BVACUL,Culture and Heritage,CHG,Premises Related,C,Repair Maint n Alterations,CA,18/10/2019,PAY01212972,RPMU,Royal Pavilion and Museums,515,Revenue,Ashcroft Thermo Clean
Brighton & Hove City Council,http://statistics.data.gov.uk/id/local-authority/00ML,Adult Social Care,BVASOC,ASC Mental Health Support,MHP,Third Party Payments,F,Other Establishments,FH,25/10/2019,PAY01214113,MENH,Mental Health Support,4280.32,Revenue,Ashford House Ltd
Brighton & Hove City Council,http://statistics.data.gov.uk/id/local-authority/00ML,Adult Social Care,BVASOC,ASC Memory Cognition Support,MEM,Customer n Client Receipts,M,Fees n Charges,MB,25/10/2019,PAY01214979,COGN,Memory Cognition Support,-569.4,Revenue,Ashley Gardens (UK) Ltd
Brighton & Hove City Council,http://statistics.data.gov.uk/id/local-authority/00ML,Adult Social Care,BVASOC,ASC Memory Cognition Support,MEM,Third Party Payments,F,Other Establishments,FH,25/10/2019,PAY01214979,COGN,Memory Cognition Support,2007.04,Revenue,Ashley Gardens (UK) Ltd
Brighton & Hove City Council,http://statistics.data.gov.uk/id/local-authority/00ML,Adult Social Care,BVASOC,ASC Learning Disabilities,ALD,Customer n Client Receipts,M,Fees n Charges,MB,09/10/2019,PAY01208236,LDIS,Adults LD Community Care,-664,Revenue,Ashmeadows House Ltd
Brighton & Hove City Council,http://statistics.data.gov.uk/id/local-authority/00ML,Adult Social Care,BVASOC,ASC Learning Disabilities,ALD,Third Party Payments,F,Other Establishments,FH,09/10/2019,PAY01208236,LDIS,Adults LD Community Care,3252.2,Revenue,Ashmeadows House Ltd
Brighton & Hove City Council,http://statistics.data.gov.uk/id/local-authority/00ML,Adult Social Care,BVASOC,ASC Mental Health Support,MHP,Third Party Payments,F,Other Establishments,FH,09/10/2019,PAY01208236,MENH,Mental Health Support,2134.35,Revenue,Ashmeadows House Ltd
Brighton & Hove City Council,http://statistics.data.gov.uk/id/local-authority/00ML,Environment & Regulatory Serv,BVAERS,Waste Management,WMT,Transport Related,D,Contract Hire n Operating Leas,DB,25/10/2019,PAY01214271,CICL,City Clean,1104.64,Revenue,Ashtead Plant Hire Company Ltd
Brighton & Hove City Council,http://statistics.data.gov.uk/id/local-authority/00ML,Adult Social Care,BVASOC,ASC Memory Cognition Support,MEM,Customer n Client Receipts,M,Fees n Charges,MB,25/10/2019,PAY01214194,COGN,Memory Cognition Support,-569.4,Revenue,Ashton Care
Brighton & Hove City Council,http://statistics.data.gov.uk/id/local-authority/00ML,Adult Social Care,BVASOC,ASC Memory Cognition Support,MEM,Third Party Payments,F,Other Establishments,FH,25/10/2019,PAY01214194,COGN,Memory Cognition Support,2275.96,Revenue,Ashton Care
Brighton & Hove City Council,http://statistics.data.gov.uk/id/local-authority/00ML,Adult Social Care,BVASOC,ASC Memory Cognition Support,MEM,Third Party Payments,F,Other Establishments,FH,25/10/2019,PAY01214807,COGN,Memory Cognition Support,7300,Revenue,Ashton House
Brighton & Hove City Council,http://statistics.data.gov.uk/id/local-authority/00ML,Adult Social Care,BVASOC,ASC Physical Support,PHY,Customer n Client Receipts,M,Fees n Charges,MB,25/10/2019,PAY01214807,PHYS,Physical Support,-1797.68,Revenue,Ashton House
Brighton & Hove City Council,http://statistics.data.gov.uk/id/local-authority/00ML,Adult Social Care,BVASOC,ASC Physical Support,PHY,Third Party Payments,F,Other Establishments,FH,25/10/2019,PAY01214807,PHYS,Physical Support,6230.56,Revenue,Ashton House
Brighton & Hove City Council,http://statistics.data.gov.uk/id/local-authority/00ML,Adult Social Care,BVASOC,ASC Memory Cognition Support,MEM,Third Party Payments,F,Other Establishments,FH,25/10/2019,PAY01214983,COGN,Memory Cognition Support,3400,Revenue,Ashtonleigh Homes Ltd T/A Ashton Grange NH
Brighton & Hove City Council,http://statistics.data.gov.uk/id/local-authority/00ML,Adult Social Care,BVASOC,ASC Physical Support,PHY,Customer n Client Receipts,M,Fees n Charges,MB,25/10/2019,PAY01214986,PHYS,Physical Support,-414.2,Revenue,Askham Village Community Ltd
Brighton & Hove City Council,http://statistics.data.gov.uk/id/local-authority/00ML,Adult Social Care,BVASOC,ASC Physical Support,PHY,Third Party Payments,F,Other Establishments,FH,25/10/2019,PAY01214986,PHYS,Physical Support,6084.68,Revenue,Askham Village Community Ltd
Brighton & Hove City Council,http://statistics.data.gov.uk/id/local-authority/00ML,Adult Social Care,BVASOC,ASC Memory Cognition Support,MEM,Customer n Client Receipts,M,Fees n Charges,MB,25/10/2019,PAY01214107,COGN,Memory Cognition Support,-5438.28,Revenue,Aspen House
Brighton & Hove City Council,http://statistics.data.gov.uk/id/local-authority/00ML,Adult Social Care,BVASOC,ASC Memory Cognition Support,MEM,Third Party Payments,F,Other Establishments,FH,25/10/2019,PAY01214107,COGN,Memory Cognition Support,19752,Revenue,Aspen House
Brighton & Hove City Council,http://statistics.data.gov.uk/id/local-authority/00ML,Adult Social Care,BVASOC,ASC Learning Disabilities,ALD,Customer n Client Receipts,M,Fees n Charges,MB,25/10/2019,PAY01214423,LDIS,Adults LD Community Care,-1603.4,Revenue,Aspens Charities
Brighton & Hove City Council,http://statistics.data.gov.uk/id/local-authority/00ML,Adult Social Care,BVASOC,ASC Learning Disabilities,ALD,Third Party Payments,F,Other Establishments,FH,25/10/2019,PAY01214423,LDIS,Adults LD Community Care,24697.6,Revenue,Aspens Charities
Brighton & Hove City Council,http://statistics.data.gov.uk/id/local-authority/00ML,Children`s & Education Serv,BVAEDU,Child Srvcs Leaving Care,FAL,Transfer Payments,G,Other Transfer Payments,GD,25/10/2019,PAY01214153,CARL,Care Leavers,2057.1,Revenue,Asphaleia Ltd
Brighton & Hove City Council,http://statistics.data.gov.uk/id/local-authority/00ML,Adult Social Care,BVASOC,ASC Learning Disabilities,ALD,Third Party Payments,F,Other Establishments,FH,09/10/2019,PAY01208141,LDIS,Adults LD Community Care,17195.29,Revenue,Aspirations Active
Brighton & Hove City Council,http://statistics.data.gov.uk/id/local-authority/00ML,Adult Social Care,BVASOC,ASC Learning Disabilities,ALD,Third Party Payments,F,Other Establishments,FH,18/10/2019,PAY01211493,LDIS,Adults LD Community Care,2500,Revenue,Aspirations Active
Brighton & Hove City Council,http://statistics.data.gov.uk/id/local-authority/00ML,Children`s & Education Serv,BVAEDU,Child Srvcs - Residential Svcs,FLR,Third Party Payments,F,Other Establishments,FH,02/10/2019,PAY01206728,DISS,Childrens Disability Services,34465,Revenue,Aspire Care & Education Services Ltd
Brighton & Hove City Council,http://statistics.data.gov.uk/id/local-authority/00ML,Planning and Development,BVAPLA,Community Development,CDV,Supplies and Services,E,Grants n Subscriptions,EK,11/10/2019,PAY01208857,CMNY,Communities and Equalities,8867,Revenue,Assert (B&H)
Brighton & Hove City Council,http://statistics.data.gov.uk/id/local-authority/00ML,Non I&E,BVANON,CAP Education Services,4ED,New Construction n Conversion,PB,New Construction n Conversion,PBL5,09/10/2019,PAY01208381,OEDS,Other Education Support,14615,Capital,Associated Systems 
Brighton & Hove City Council,http://statistics.data.gov.uk/id/local-authority/00ML,Non I&E,BVANON,CAP Housing Services GF,4HG,Capital Grants,PF,Capital Grants,PFL5,02/10/2019,PAY01206233,PSHG,Private Sector Housing,9265,Capital,Astor Bannerman (Medical) Ltd
Brighton & Hove City Council,http://statistics.data.gov.uk/id/local-authority/00ML,Cultural and Related Serv,BVACUL,Culture and Heritage,CHG,Premises Related,C,Cleaning n Domestic Supps,CH,02/10/2019,PAY01206487,RPMU,Royal Pavilion and Museums,375,Revenue,Astound Facilities Group Ltd
Brighton & Hove City Council,http://statistics.data.gov.uk/id/local-authority/00ML,Central Support and Overheads,BVACEN,Support Services (SSC),PPT,Premises Related,C,Repair Maint n Alterations,CA,02/10/2019,PAY01206894,SKEM,Skills and Employment,428.89,Revenue,Atlantic Tech Services Ltd
Brighton & Hove City Council,http://statistics.data.gov.uk/id/local-authority/00ML,Adult Social Care,BVASOC,ASC Learning Disabilities,ALD,Transport Related,D,Direct Transport Costs,DA,16/10/2019,PAY01210100,LDAS,Adults LD Accomodation Service,262.65,Revenue,ATS Euromaster Ltd
Brighton & Hove City Council,http://statistics.data.gov.uk/id/local-authority/00ML,Adult Social Care,BVASOC,ASC Learning Disabilities,ALD,Transport Related,D,Direct Transport Costs,DA,16/10/2019,PAY01210100,LDSE,Adults LD Day Services,211.52,Revenue,ATS Euromaster Ltd
Brighton & Hove City Council,http://statistics.data.gov.uk/id/local-authority/00ML,Central Support and Overheads,BVACEN,Support Services (SSC),PPT,Transport Related,D,Direct Transport Costs,DA,16/10/2019,PAY01210100,PROP,Property and Design,141.08,Revenue,ATS Euromaster Ltd
Brighton & Hove City Council,http://statistics.data.gov.uk/id/local-authority/00ML,Central Support and Overheads,BVACEN,Support Services (SSC),PPT,Transport Related,D,Direct Transport Costs,DA,16/10/2019,PAY01210100,SKEM,Skills and Employment,84.12,Revenue,ATS Euromaster Ltd
Brighton & Hove City Council,http://statistics.data.gov.uk/id/local-authority/00ML,Children`s & Education Serv,BVAEDU,Child Srvcs - Family Centres,FFF,Transport Related,D,Direct Transport Costs,DA,16/10/2019,PAY01210100,CONS,Contact Service,141.68,Revenue,ATS Euromaster Ltd
Brighton & Hove City Council,http://statistics.data.gov.uk/id/local-authority/00ML,Cultural and Related Serv,BVACUL,Open Spaces,PEN,Transport Related,D,Direct Transport Costs,DA,16/10/2019,PAY01210100,CIPK,City Parks,2371.4,Revenue,ATS Euromaster Ltd
Brighton & Hove City Council,http://statistics.data.gov.uk/id/local-authority/00ML,Environment & Regulatory Serv,BVAERS,Management Services (DEC),MGT,Transport Related,D,Direct Transport Costs,DA,16/10/2019,PAY01210100,CICL,City Clean,179.2,Revenue,ATS Euromaster Ltd
Brighton & Hove City Council,http://statistics.data.gov.uk/id/local-authority/00ML,Environment & Regulatory Serv,BVAERS,Street Cleansing,CLE,Transport Related,D,Direct Transport Costs,DA,16/10/2019,PAY01210100,CICL,City Clean,779.77,Revenue,ATS Euromaster Ltd
Brighton & Hove City Council,http://statistics.data.gov.uk/id/local-authority/00ML,Environment & Regulatory Serv,BVAERS,Waste Management,WMT,Transport Related,D,Direct Transport Costs,DA,16/10/2019,PAY01210100,CICL,City Clean,8867.55,Revenue,ATS Euromaster Ltd
Brighton & Hove City Council,http://statistics.data.gov.uk/id/local-authority/00ML,Adult Social Care,BVASOC,ASC Learning Disabilities,ALD,Customer n Client Receipts,M,Fees n Charges,MB,25/10/2019,PAY01215014,LDIS,Adults LD Community Care,-414.2,Revenue,Auckland Care Ltd
Brighton & Hove City Council,http://statistics.data.gov.uk/id/local-authority/00ML,Adult Social Care,BVASOC,ASC Learning Disabilities,ALD,Third Party Payments,F,Other Establishments,FH,25/10/2019,PAY01215014,LDIS,Adults LD Community Care,4316.64,Revenue,Auckland Care Ltd
Brighton & Hove City Council,http://statistics.data.gov.uk/id/local-authority/00ML,Public Health,BVAPHE,Public Health,PHE,Third Party Payments,F,Other Establishments,FH,30/10/2019,PAY01215482,PHCM,PH Commissioning,25000,Revenue,Audioactive 2
Brighton & Hove City Council,http://statistics.data.gov.uk/id/local-authority/00ML,Public Health,BVAPHE,Public Health,PHE,Third Party Payments,F,Other Establishments,FH,25/10/2019,PAY01214721,PHCM,PH Commissioning,884.17,Revenue,Aum Health Services Ltd T/A Harper`s Pharmacy
Brighton & Hove City Council,http://statistics.data.gov.uk/id/local-authority/00ML,Cultural and Related Serv,BVACUL,Culture and Heritage,CHG,Supplies and Services,E,Equip't Furniture n Materials,EA,16/10/2019,PAY01210293,VENU,Venues,465.4,Revenue,Aureo Group
Brighton & Hove City Council,http://statistics.data.gov.uk/id/local-authority/00ML,Library Services,BVACUL,Library Service,LBR,Supplies and Services,E,Goods for Resale,EG,04/10/2019,PAY01207407,LIBS,Libraries,453.39,Revenue,Aurora World UK Ltd.
Brighton & Hove City Council,http://statistics.data.gov.uk/id/local-authority/00ML,Non I&E,BVANON,CAP Libs Culture and Hertage,4LH,New Construction n Conversion,PB,New Construction n Conversion,PBL5,11/10/2019,PAY01209524,RPMU,Royal Pavilion and Museums,1150,Capital,Austins Cradles (Eastbourne) Ltd
Brighton & Hove City Council,http://statistics.data.gov.uk/id/local-authority/00ML,Non I&E,BVANON,CAP Libs Culture and Hertage,4LH,New Construction n Conversion,PB,New Construction n Conversion,PBL5,16/10/2019,PAY01210831,RPMU,Royal Pavilion and Museums,1150,Capital,Austins Cradles (Eastbourne) Ltd
Brighton & Hove City Council,http://statistics.data.gov.uk/id/local-authority/00ML,Adult Social Care,BVASOC,Commission & Service Delivery,CMM,Supplies and Services,E,Equip't Furniture n Materials,EA,02/10/2019,PAY01206531,LDMA,Adults LD Management,1270,Revenue,Autism Accreditation - National Autistic Society
Brighton & Hove City Council,http://statistics.data.gov.uk/id/local-authority/00ML,Environment & Regulatory Serv,BVAERS,Management Services (DEC),MGT,Indirect Employees,B,Training,BM,25/10/2019,PAY01215200,CICL,City Clean,2260.25,Revenue,Autoklima Ltd
Brighton & Hove City Council,http://statistics.data.gov.uk/id/local-authority/00ML,Adult Social Care,BVASOC,ASC Memory Cognition Support,MEM,Customer n Client Receipts,M,Fees n Charges,MB,25/10/2019,PAY01214413,COGN,Memory Cognition Support,-3394.16,Revenue,Autumn Lodge Hove Ltd
Brighton & Hove City Council,http://statistics.data.gov.uk/id/local-authority/00ML,Adult Social Care,BVASOC,ASC Memory Cognition Support,MEM,Third Party Payments,F,Other Establishments,FH,25/10/2019,PAY01214413,COGN,Memory Cognition Support,14225,Revenue,Autumn Lodge Hove Ltd
Brighton & Hove City Council,http://statistics.data.gov.uk/id/local-authority/00ML,Adult Social Care,BVASOC,ASC Physical Support,PHY,Customer n Client Receipts,M,Fees n Charges,MB,25/10/2019,PAY01214413,PHYS,Physical Support,-569.4,Revenue,Autumn Lodge Hove Ltd
Brighton & Hove City Council,http://statistics.data.gov.uk/id/local-authority/00ML,Adult Social Care,BVASOC,ASC Physical Support,PHY,Third Party Payments,F,Other Establishments,FH,25/10/2019,PAY01214413,PHYS,Physical Support,3900,Revenue,Autumn Lodge Hove Ltd
Brighton & Hove City Council,http://statistics.data.gov.uk/id/local-authority/00ML,Housing General Fund,BVAHOG,Homelessness,HML,Premises Related,C,Rents Payable,CC,04/10/2019,PAY01207191,TAAS,Temp Accom and Allocations,1100,Revenue,Avon Estates (London) Ltd
Brighton & Hove City Council,http://statistics.data.gov.uk/id/local-authority/00ML,Adult Social Care,BVASOC,ASC Physical Support,PHY,Customer n Client Receipts,M,Fees n Charges,MB,25/10/2019,PAY01214451,PHYS,Physical Support,-569.4,Revenue,Avon House (Balcombe) Ltd
Brighton & Hove City Council,http://statistics.data.gov.uk/id/local-authority/00ML,Adult Social Care,BVASOC,ASC Physical Support,PHY,Third Party Payments,F,Other Establishments,FH,25/10/2019,PAY01214451,PHYS,Physical Support,3200,Revenue,Avon House (Balcombe) Ltd
Brighton & Hove City Council,http://statistics.data.gov.uk/id/local-authority/00ML,Non I&E,BVANON,Cap - Housing Services - HRA,4HR,New Construction n Conversion,PB,New Construction n Conversion,PBL5,30/10/2019,PAY01215488,HPAI,Property & Investment,4644.2,Capital,Bailey Partnership (Consultants) LLP 
Brighton & Hove City Council,http://statistics.data.gov.uk/id/local-authority/00ML,Adult Social Care,BVASOC,Social Care Activities,ACM,Supplies and Services,E,Services,EF,16/10/2019,PAY01210719,ASIT,Assessment and SIT,1200,Revenue,Bairford Ltd
Brighton & Hove City Council,http://statistics.data.gov.uk/id/local-authority/00ML,Adult Social Care,BVASOC,ASC Learning Disabilities,ALD,Customer n Client Receipts,M,Fees n Charges,MB,25/10/2019,PAY01214543,LDIS,Adults LD Community Care,-347,Revenue,Ballater House
Brighton & Hove City Council,http://statistics.data.gov.uk/id/local-authority/00ML,Adult Social Care,BVASOC,ASC Learning Disabilities,ALD,Third Party Payments,F,Other Establishments,FH,25/10/2019,PAY01214543,LDIS,Adults LD Community Care,7534.8,Revenue,Ballater House
Brighton & Hove City Council,http://statistics.data.gov.uk/id/local-authority/00ML,Cultural and Related Serv,BVACUL,Recreation and Sport,REC,Supplies and Services,E,Miscellaneous Expenses,EM,18/10/2019,PAY01211695,SPLE,Sport and Leisure,1155,Revenue,Bandstand Brighton Ltd
Brighton & Hove City Council,http://statistics.data.gov.uk/id/local-authority/00ML,Environment & Regulatory Serv,BVAERS,Cem Crem and Mortuary Services,CCM,Supplies and Services,E,Equip't Furniture n Materials,EA,02/10/2019,PAY01206521,BERE,Bereavement,465.55,Revenue,Barber of Sheffield Ltd
Brighton & Hove City Council,http://statistics.data.gov.uk/id/local-authority/00ML,Adult Social Care,BVASOC,ASC Mental Health Support,MHP,Third Party Payments,F,Other Establishments,FH,25/10/2019,PAY01215079,MENH,Mental Health Support,6923.36,Revenue,Barchester Healthcare Homes Ltd (Kernow House)
Brighton & Hove City Council,http://statistics.data.gov.uk/id/local-authority/00ML,Adult Social Care,BVASOC,ASC Memory Cognition Support,MEM,Third Party Payments,F,Other Establishments,FH,25/10/2019,PAY01214256,COGN,Memory Cognition Support,7874.56,Revenue,Barchester Healthcare Ltd (Kingsland House)
Brighton & Hove City Council,http://statistics.data.gov.uk/id/local-authority/00ML,Adult Social Care,BVASOC,ASC Physical Support,PHY,Customer n Client Receipts,M,Fees n Charges,MB,25/10/2019,PAY01214256,PHYS,Physical Support,-1559.6,Revenue,Barchester Healthcare Ltd (Kingsland House)
Brighton & Hove City Council,http://statistics.data.gov.uk/id/local-authority/00ML,Adult Social Care,BVASOC,ASC Physical Support,PHY,Third Party Payments,F,Other Establishments,FH,25/10/2019,PAY01214256,PHYS,Physical Support,5779.8,Revenue,Barchester Healthcare Ltd (Kingsland House)
Brighton & Hove City Council,http://statistics.data.gov.uk/id/local-authority/00ML,Adult Social Care,BVASOC,ASC Memory Cognition Support,MEM,Third Party Payments,F,Other Establishments,FH,25/10/2019,PAY01214233,COGN,Memory Cognition Support,5179.8,Revenue,Barchester Healthcare Ltd (Red Oaks Care Home)
Brighton & Hove City Council,http://statistics.data.gov.uk/id/local-authority/00ML,Children`s & Education Serv,BVAEDU,Child Srvcs - Fostering,FLF,Third Party Payments,F,Other Establishments,FH,16/10/2019,PAY01209942,AVFM,Agency Placements\VFM,8054.68,Revenue,Barnardo`s
Brighton & Hove City Council,http://statistics.data.gov.uk/id/local-authority/00ML,Children`s & Education Serv,BVAEDU,Child Srvcs - Othr LAC Svcs,FLX,Transfer Payments,G,Other Transfer Payments,GD,16/10/2019,PAY01209942,AVFM,Agency Placements\VFM,848.56,Revenue,Barnardo`s
Brighton & Hove City Council,http://statistics.data.gov.uk/id/local-authority/00ML,Environment & Regulatory Serv,BVAERS,Management Services (DEC),MGT,Transport Related,D,Direct Transport Costs,DA,30/10/2019,PAY01215448,CICL,City Clean,274.14,Revenue,Barnes DAF
Brighton & Hove City Council,http://statistics.data.gov.uk/id/local-authority/00ML,Housing General Fund,BVAHOG,Homelessness,HML,Premises Related,C,Rents Payable,CC,02/10/2019,PAY01206578,TAAS,Temp Accom and Allocations,847.32,Revenue,Baron Developments Ltd
Brighton & Hove City Council,http://statistics.data.gov.uk/id/local-authority/00ML,Housing General Fund,BVAHOG,Homelessness,HML,Premises Related,C,Rents Payable,CC,04/10/2019,PAY01207478,TAAS,Temp Accom and Allocations,847.32,Revenue,Baron Developments Ltd
Brighton & Hove City Council,http://statistics.data.gov.uk/id/local-authority/00ML,Housing General Fund,BVAHOG,Homelessness,HML,Premises Related,C,Rents Payable,CC,09/10/2019,PAY01208284,TAAS,Temp Accom and Allocations,2722.46,Revenue,Baron Developments Ltd
Brighton & Hove City Council,http://statistics.data.gov.uk/id/local-authority/00ML,Housing General Fund,BVAHOG,Homelessness,HML,Premises Related,C,Rents Payable,CC,11/10/2019,PAY01209197,TAAS,Temp Accom and Allocations,2541.96,Revenue,Baron Developments Ltd
Brighton & Hove City Council,http://statistics.data.gov.uk/id/local-authority/00ML,Housing General Fund,BVAHOG,Homelessness,HML,Premises Related,C,Rents Payable,CC,16/10/2019,PAY01210514,TAAS,Temp Accom and Allocations,1875.14,Revenue,Baron Developments Ltd
Brighton & Hove City Council,http://statistics.data.gov.uk/id/local-authority/00ML,Housing General Fund,BVAHOG,Homelessness,HML,Premises Related,C,Rents Payable,CC,23/10/2019,PAY01213537,TAAS,Temp Accom and Allocations,847.32,Revenue,Baron Developments Ltd
Brighton & Hove City Council,http://statistics.data.gov.uk/id/local-authority/00ML,Housing General Fund,BVAHOG,Homelessness,HML,Premises Related,C,Rents Payable,CC,25/10/2019,PAY01214681,TAAS,Temp Accom and Allocations,1694.64,Revenue,Baron Developments Ltd
Brighton & Hove City Council,http://statistics.data.gov.uk/id/local-authority/00ML,Housing General Fund,BVAHOG,Homelessness,HML,Premises Related,C,Rents Payable,CC,30/10/2019,PAY01215757,TAAS,Temp Accom and Allocations,1694.64,Revenue,Baron Developments Ltd
Brighton & Hove City Council,http://statistics.data.gov.uk/id/local-authority/00ML,Housing General Fund,BVAHOG,Homelessness,HML,Premises Related,C,Rents Payable,CC,02/10/2019,PAY01206429,TAAS,Temp Accom and Allocations,847.32,Revenue,Baron Management Ltd
Brighton & Hove City Council,http://statistics.data.gov.uk/id/local-authority/00ML,Housing General Fund,BVAHOG,Homelessness,HML,Premises Related,C,Rents Payable,CC,09/10/2019,PAY01208172,TAAS,Temp Accom and Allocations,2100.79,Revenue,Baron Management Ltd
Brighton & Hove City Council,http://statistics.data.gov.uk/id/local-authority/00ML,Housing General Fund,BVAHOG,Homelessness,HML,Premises Related,C,Rents Payable,CC,11/10/2019,PAY01209027,TAAS,Temp Accom and Allocations,13968.18,Revenue,Baron Management Ltd
Brighton & Hove City Council,http://statistics.data.gov.uk/id/local-authority/00ML,Housing General Fund,BVAHOG,Homelessness,HML,Premises Related,C,Rents Payable,CC,18/10/2019,PAY01211542,TAAS,Temp Accom and Allocations,1027.82,Revenue,Baron Management Ltd
Brighton & Hove City Council,http://statistics.data.gov.uk/id/local-authority/00ML,Housing General Fund,BVAHOG,Homelessness,HML,Premises Related,C,Rents Payable,CC,23/10/2019,PAY01213414,TAAS,Temp Accom and Allocations,847.32,Revenue,Baron Management Ltd
Brighton & Hove City Council,http://statistics.data.gov.uk/id/local-authority/00ML,Housing General Fund,BVAHOG,Homelessness,HML,Premises Related,C,Rents Payable,CC,09/10/2019,PAY01208429,TAAS,Temp Accom and Allocations,3128.4,Revenue,Barons Bay Limited
Brighton & Hove City Council,http://statistics.data.gov.uk/id/local-authority/00ML,Adult Social Care,BVASOC,ASC Physical Support,PHY,Customer n Client Receipts,M,Fees n Charges,MB,25/10/2019,PAY01214081,PHYS,Physical Support,-347,Revenue,Barons Down Nursing Home
Brighton & Hove City Council,http://statistics.data.gov.uk/id/local-authority/00ML,Adult Social Care,BVASOC,ASC Physical Support,PHY,Third Party Payments,F,Other Establishments,FH,25/10/2019,PAY01214081,PHYS,Physical Support,6714.72,Revenue,Barons Down Nursing Home
Brighton & Hove City Council,http://statistics.data.gov.uk/id/local-authority/00ML,Adult Social Care,BVASOC,ASC Learning Disabilities,ALD,Customer n Client Receipts,M,Fees n Charges,MB,25/10/2019,PAY01214377,LDIS,Adults LD Community Care,-569.4,Revenue,Barrington House Ltd
Brighton & Hove City Council,http://statistics.data.gov.uk/id/local-authority/00ML,Adult Social Care,BVASOC,ASC Learning Disabilities,ALD,Third Party Payments,F,Other Establishments,FH,25/10/2019,PAY01214377,LDIS,Adults LD Community Care,1656,Revenue,Barrington House Ltd
Brighton & Hove City Council,http://statistics.data.gov.uk/id/local-authority/00ML,Cultural and Related Serv,BVACUL,Culture and Heritage,CHG,Supplies and Services,E,Services,EF,09/10/2019,PAY01208178,RPMU,Royal Pavilion and Museums,4785,Revenue,Bates Wells & Braithwaite London LLP
Brighton & Hove City Council,http://statistics.data.gov.uk/id/local-authority/00ML,Cultural and Related Serv,BVACUL,Culture and Heritage,CHG,Third Party Payments,F,Other Establishments,FH,18/10/2019,PAY01211577,RPMU,Royal Pavilion and Museums,2502,Revenue,Bates Wells & Braithwaite London LLP
Brighton & Hove City Council,http://statistics.data.gov.uk/id/local-authority/00ML,Cultural and Related Serv,BVACUL,Culture and Heritage,CHG,Supplies and Services,E,Miscellaneous Expenses,EM,16/10/2019,PAY01210043,RPMU,Royal Pavilion and Museums,2000,Revenue,Bay Media Ltd
Brighton & Hove City Council,http://statistics.data.gov.uk/id/local-authority/00ML,Cultural and Related Serv,BVACUL,Culture and Heritage,CHG,Supplies and Services,E,Goods for Resale,EG,04/10/2019,PAY01207476,RPMU,Royal Pavilion and Museums,348,Revenue,Bay Tree Food Company Ltd
Brighton & Hove City Council,http://statistics.data.gov.uk/id/local-authority/00ML,Adult Social Care,BVASOC,ASC Physical Support,PHY,Customer n Client Receipts,M,Fees n Charges,MB,25/10/2019,PAY01214124,PHYS,Physical Support,-867.8,Revenue,Baytrees Homes Ltd
Brighton & Hove City Council,http://statistics.data.gov.uk/id/local-authority/00ML,Adult Social Care,BVASOC,ASC Physical Support,PHY,Third Party Payments,F,Other Establishments,FH,25/10/2019,PAY01214124,PHYS,Physical Support,5192.28,Revenue,Baytrees Homes Ltd
Brighton & Hove City Council,http://statistics.data.gov.uk/id/local-authority/00ML,Non I&E,BVANON,Cap - Housing Services - HRA,4HR,New Construction n Conversion,PB,New Construction n Conversion,PBL5,09/10/2019,PAY01208201,HPAI,Property & Investment,2725,Capital,BBM Sustainable Design Ltd
Brighton & Hove City Council,http://statistics.data.gov.uk/id/local-authority/00ML,Non I&E,BVANON,Cap - Housing Services - HRA,4HR,New Construction n Conversion,PB,New Construction n Conversion,PBL5,30/10/2019,PAY01215668,HPAI,Property & Investment,1525,Capital,BBM Sustainable Design Ltd
Brighton & Hove City Council,http://statistics.data.gov.uk/id/local-authority/00ML,Central Support and Overheads,BVACEN,ORBIS Partnership,ORB,Supplies and Services,E,Miscellaneous Expenses,EM,04/10/2019,PAY01207556,ORBBUS,Business Operations - ORBIS,2150,Revenue,BDI Securities UK Ltd
Brighton & Hove City Council,http://statistics.data.gov.uk/id/local-authority/00ML,Cultural and Related Serv,BVACUL,Culture and Heritage,CHG,Supplies and Services,E,Miscellaneous Expenses,EM,04/10/2019,PAY01207556,RPMU,Royal Pavilion and Museums,900,Revenue,BDI Securities UK Ltd
Brighton & Hove City Council,http://statistics.data.gov.uk/id/local-authority/00ML,Cultural and Related Serv,BVACUL,Recreation and Sport,REC,Customer n Client Receipts,M,Fees n Charges,MB,04/10/2019,PAY01207556,SPLE,Sport and Leisure,650,Revenue,BDI Securities UK Ltd
Brighton & Hove City Council,http://statistics.data.gov.uk/id/local-authority/00ML,Highways and Transportation,BVAHRT,Parking Services,PRK,Customer n Client Receipts,M,Fees n Charges,MB,04/10/2019,PAY01207556,PARK,Parking Services,350,Revenue,BDI Securities UK Ltd
Brighton & Hove City Council,http://statistics.data.gov.uk/id/local-authority/00ML,Non-BHC Organisations,BVANON,Trusts,TRT,Supplies and Services,E,Miscellaneous Expenses,EM,04/10/2019,PAY01207556,NBHC,Non Council,3200,Revenue,BDI Securities UK Ltd
Brighton & Hove City Council,http://statistics.data.gov.uk/id/local-authority/00ML,Central Support and Overheads,BVACEN,ORBIS Partnership,ORB,Supplies and Services,E,Miscellaneous Expenses,EM,11/10/2019,PAY01209290,ORBBUS,Business Operations - ORBIS,2700,Revenue,BDI Securities UK Ltd
Brighton & Hove City Council,http://statistics.data.gov.uk/id/local-authority/00ML,Cultural and Related Serv,BVACUL,Recreation and Sport,REC,Customer n Client Receipts,M,Fees n Charges,MB,11/10/2019,PAY01209290,SPLE,Sport and Leisure,650,Revenue,BDI Securities UK Ltd
Brighton & Hove City Council,http://statistics.data.gov.uk/id/local-authority/00ML,Highways and Transportation,BVAHRT,Parking Services,PRK,Customer n Client Receipts,M,Fees n Charges,MB,11/10/2019,PAY01209290,PARK,Parking Services,350,Revenue,BDI Securities UK Ltd
Brighton & Hove City Council,http://statistics.data.gov.uk/id/local-authority/00ML,Non-BHC Organisations,BVANON,Trusts,TRT,Supplies and Services,E,Miscellaneous Expenses,EM,11/10/2019,PAY01209290,NBHC,Non Council,100,Revenue,BDI Securities UK Ltd
Brighton & Hove City Council,http://statistics.data.gov.uk/id/local-authority/00ML,Central Support and Overheads,BVACEN,ORBIS Partnership,ORB,Supplies and Services,E,Miscellaneous Expenses,EM,18/10/2019,PAY01212150,ORBBUS,Business Operations - ORBIS,2150,Revenue,BDI Securities UK Ltd
Brighton & Hove City Council,http://statistics.data.gov.uk/id/local-authority/00ML,Cultural and Related Serv,BVACUL,Culture and Heritage,CHG,Supplies and Services,E,Miscellaneous Expenses,EM,18/10/2019,PAY01212150,RPMU,Royal Pavilion and Museums,900,Revenue,BDI Securities UK Ltd
Brighton & Hove City Council,http://statistics.data.gov.uk/id/local-authority/00ML,Cultural and Related Serv,BVACUL,Recreation and Sport,REC,Customer n Client Receipts,M,Fees n Charges,MB,18/10/2019,PAY01212150,SPLE,Sport and Leisure,650,Revenue,BDI Securities UK Ltd
Brighton & Hove City Council,http://statistics.data.gov.uk/id/local-authority/00ML,Highways and Transportation,BVAHRT,Parking Services,PRK,Customer n Client Receipts,M,Fees n Charges,MB,18/10/2019,PAY01212150,PARK,Parking Services,350,Revenue,BDI Securities UK Ltd
Brighton & Hove City Council,http://statistics.data.gov.uk/id/local-authority/00ML,Non-BHC Organisations,BVANON,Trusts,TRT,Supplies and Services,E,Miscellaneous Expenses,EM,18/10/2019,PAY01212150,NBHC,Non Council,1720,Revenue,BDI Securities UK Ltd
Brighton & Hove City Council,http://statistics.data.gov.uk/id/local-authority/00ML,Central Support and Overheads,BVACEN,ORBIS Partnership,ORB,Supplies and Services,E,Miscellaneous Expenses,EM,25/10/2019,PAY01214792,ORBBUS,Business Operations - ORBIS,3450,Revenue,BDI Securities UK Ltd
Brighton & Hove City Council,http://statistics.data.gov.uk/id/local-authority/00ML,Cultural and Related Serv,BVACUL,Culture and Heritage,CHG,Supplies and Services,E,Miscellaneous Expenses,EM,25/10/2019,PAY01214792,RPMU,Royal Pavilion and Museums,600,Revenue,BDI Securities UK Ltd
Brighton & Hove City Council,http://statistics.data.gov.uk/id/local-authority/00ML,Highways and Transportation,BVAHRT,Parking Services,PRK,Customer n Client Receipts,M,Fees n Charges,MB,25/10/2019,PAY01214792,PARK,Parking Services,350,Revenue,BDI Securities UK Ltd
Brighton & Hove City Council,http://statistics.data.gov.uk/id/local-authority/00ML,Non-BHC Organisations,BVANON,Trusts,TRT,Supplies and Services,E,Miscellaneous Expenses,EM,25/10/2019,PAY01214792,NBHC,Non Council,750,Revenue,BDI Securities UK Ltd
Brighton & Hove City Council,http://statistics.data.gov.uk/id/local-authority/00ML,Cultural and Related Serv,BVACUL,Culture and Heritage,CHG,Supplies and Services,E,Services,EF,16/10/2019,PAY01210600,RPMU,Royal Pavilion and Museums,5886,Revenue,Beacon Facilities Management Limited
Brighton & Hove City Council,http://statistics.data.gov.uk/id/local-authority/00ML,Children`s & Education Serv,BVAEDU,Child Srvcs Adoption,FAA,Supplies and Services,E,Services,EF,16/10/2019,PAY01210667,CHIC,Fostering and Adoption,12096,Revenue,Beacon House Psychological Services
Brighton & Hove City Council,http://statistics.data.gov.uk/id/local-authority/00ML,Children`s & Education Serv,BVAEDU,Child Srvcs Adoption,FAA,Supplies and Services,E,Services,EF,18/10/2019,PAY01212466,CHIC,Fostering and Adoption,960,Revenue,Beacon House Psychological Services
Brighton & Hove City Council,http://statistics.data.gov.uk/id/local-authority/00ML,Public Health,BVAPHE,Public Health,PHE,Third Party Payments,F,Other Establishments,FH,25/10/2019,PAY01214293,PHCM,PH Commissioning,4186.99,Revenue,Beaconsfield Medical Practice
Brighton & Hove City Council,http://statistics.data.gov.uk/id/local-authority/00ML,Adult Social Care,BVASOC,ASC Physical Support,PHY,Customer n Client Receipts,M,Fees n Charges,MB,25/10/2019,PAY01214829,PHYS,Physical Support,-4856.92,Revenue,Beaumont NH Ltd
Brighton & Hove City Council,http://statistics.data.gov.uk/id/local-authority/00ML,Adult Social Care,BVASOC,ASC Physical Support,PHY,Third Party Payments,F,Other Establishments,FH,25/10/2019,PAY01214829,PHYS,Physical Support,17008.32,Revenue,Beaumont NH Ltd
Brighton & Hove City Council,http://statistics.data.gov.uk/id/local-authority/00ML,Adult Social Care,BVASOC,ASC Physical Support,PHY,Third Party Payments,F,Other Establishments,FH,30/10/2019,PAY01215853,PHYS,Physical Support,92.66,Revenue,Beaumont NH Ltd
Brighton & Hove City Council,http://statistics.data.gov.uk/id/local-authority/00ML,Central Support and Overheads,BVACEN,Support Services (SSC),PPT,Indirect Employees,B,Training,BM,11/10/2019,PAY01209548,ORGD,Organisational Development,950,Revenue,Beckwith Consulting Limited
Brighton & Hove City Council,http://statistics.data.gov.uk/id/local-authority/00ML,Adult Social Care,BVASOC,ASC Learning Disabilities,ALD,Customer n Client Receipts,M,Fees n Charges,MB,25/10/2019,PAY01214226,LDIS,Adults LD Community Care,-828.4,Revenue,Beech Lodge
Brighton & Hove City Council,http://statistics.data.gov.uk/id/local-authority/00ML,Adult Social Care,BVASOC,ASC Learning Disabilities,ALD,Third Party Payments,F,Other Establishments,FH,25/10/2019,PAY01214226,LDIS,Adults LD Community Care,10916.72,Revenue,Beech Lodge
Brighton & Hove City Council,http://statistics.data.gov.uk/id/local-authority/00ML,Adult Social Care,BVASOC,ASC Physical Support,PHY,Customer n Client Receipts,M,Fees n Charges,MB,25/10/2019,PAY01214226,PHYS,Physical Support,-414.2,Revenue,Beech Lodge
Brighton & Hove City Council,http://statistics.data.gov.uk/id/local-authority/00ML,Adult Social Care,BVASOC,ASC Physical Support,PHY,Third Party Payments,F,Other Establishments,FH,25/10/2019,PAY01214226,PHYS,Physical Support,5956.4,Revenue,Beech Lodge
Brighton & Hove City Council,http://statistics.data.gov.uk/id/local-authority/00ML,Children`s & Education Serv,BVAEDU,Child Srvcs Adoption,FAA,Supplies and Services,E,Services,EF,18/10/2019,PAY01211820,CHIC,Fostering and Adoption,350,Revenue,Belltree Music Therapy Centre CIC
Brighton & Hove City Council,http://statistics.data.gov.uk/id/local-authority/00ML,Children`s & Education Serv,BVAEDU,Child Srvcs Leaving Care,FAL,Transfer Payments,G,Other Transfer Payments,GD,02/10/2019,PAY01207025,CARL,Care Leavers,600,Revenue,Belvoir South
Brighton & Hove City Council,http://statistics.data.gov.uk/id/local-authority/00ML,Environment & Regulatory Serv,BVAERS,Agricultural and Fisheries,AGF,Third Party Payments,F,Private Contractors,FJ,16/10/2019,PAY01210629,PROP,Property and Design,4400,Revenue,Ben Hardy Construction
Brighton & Hove City Council,http://statistics.data.gov.uk/id/local-authority/00ML,Adult Social Care,BVASOC,ASC Mental Health Support,MHP,Third Party Payments,F,Other Establishments,FH,25/10/2019,PAY01215157,MENH,Mental Health Support,4975.36,Revenue,Ben Motor & Allied Trades Benevolent Fund
Brighton & Hove City Council,http://statistics.data.gov.uk/id/local-authority/00ML,Public Health,BVAPHE,Public Health,PHE,Third Party Payments,F,Other Establishments,FH,25/10/2019,PAY01214644,PHCM,PH Commissioning,4217.65,Revenue,Benfield Valley Healthcare Hub
Brighton & Hove City Council,http://statistics.data.gov.uk/id/local-authority/00ML,Cultural and Related Serv,BVACUL,Culture and Heritage,CHG,Supplies and Services,E,Goods for Resale,EG,04/10/2019,PAY01207830,RPMU,Royal Pavilion and Museums,541.29,Revenue,Bentley & Bo Interiors
Brighton & Hove City Council,http://statistics.data.gov.uk/id/local-authority/00ML,Non I&E,BVANON,CAP Housing Services GF,4HG,Capital Grants,PF,Capital Grants,PFL5,02/10/2019,PAY01206868,PSHG,Private Sector Housing,4008,Capital,Bentley Mobility Services Ltd
Brighton & Hove City Council,http://statistics.data.gov.uk/id/local-authority/00ML,Housing General Fund,BVAHOG,Homelessness,HML,Third Party Payments,F,Other Establishments,FH,25/10/2019,PAY01214917,HOPT,Housing Options,700,Revenue,Berege Lettings
Brighton & Hove City Council,http://statistics.data.gov.uk/id/local-authority/00ML,Environment & Regulatory Serv,BVAERS,Management Services (DEC),MGT,Supplies and Services,E,Clothing Uniforms n Laundry,EC,30/10/2019,PAY01215547,CICL,City Clean,1053.13,Revenue,Berendsen UK Ltd
Brighton & Hove City Council,http://statistics.data.gov.uk/id/local-authority/00ML,Housing Revenue Account,BVAHOU,Hsing Management - HRA,HGM,Premises Related,C,Repair Maint n Alterations,CA,11/10/2019,PAY01208882,HTEN,Tenancy Services,1300,Revenue,Betapest
Brighton & Hove City Council,http://statistics.data.gov.uk/id/local-authority/00ML,Central Support and Overheads,BVACEN,Support Services (SSC),PPT,Supplies and Services,E,Services,EF,23/10/2019,PAY01213426,LEGS,Legal Services,3418.9,Revenue,Bevan Brittan LLP
Brighton & Hove City Council,http://statistics.data.gov.uk/id/local-authority/00ML,Non I&E,BVANON,Non-Council,NNC,Supplies and Services,E,Services,EF,25/10/2019,PAY01214499,NBHC,Non Council,2518.39,Revenue,Bevan Brittan LLP
Brighton & Hove City Council,http://statistics.data.gov.uk/id/local-authority/00ML,Children`s & Education Serv,BVAEDU,Management Services (DEC),MGT,Supplies and Services,E,Miscellaneous Expenses,EM,11/10/2019,PAY01209610,SOCK,Social Work,2500,Revenue,Beyond The Care Leavers Trust
Brighton & Hove City Council,http://statistics.data.gov.uk/id/local-authority/00ML,Adult Social Care,BVASOC,ASC Memory Cognition Support,MEM,Supplies and Services,E,Catering,EB,02/10/2019,PAY01206325,RCOP,Resource Centres Older People,253.34,Revenue,BFS Group Ltd t/a Bidvest Foodservice
Brighton & Hove City Council,http://statistics.data.gov.uk/id/local-authority/00ML,Adult Social Care,BVASOC,ASC Physical Support,PHY,Supplies and Services,E,Catering,EB,02/10/2019,PAY01206325,RCOP,Resource Centres Older People,92.1,Revenue,BFS Group Ltd t/a Bidvest Foodservice
Brighton & Hove City Council,http://statistics.data.gov.uk/id/local-authority/00ML,Housing General Fund,BVAHOG,Homelessness,HML,Supplies and Services,E,Catering,EB,02/10/2019,PAY01206325,ASSA,Hostel Accommodation,384.96,Revenue,BFS Group Ltd t/a Bidvest Foodservice
Brighton & Hove City Council,http://statistics.data.gov.uk/id/local-authority/00ML,Adult Social Care,BVASOC,ASC Memory Cognition Support,MEM,Supplies and Services,E,Catering,EB,09/10/2019,PAY01208084,RCOP,Resource Centres Older People,258.32,Revenue,BFS Group Ltd t/a Bidvest Foodservice
Brighton & Hove City Council,http://statistics.data.gov.uk/id/local-authority/00ML,Adult Social Care,BVASOC,ASC Physical Support,PHY,Supplies and Services,E,Catering,EB,09/10/2019,PAY01208084,RCOP,Resource Centres Older People,92.51,Revenue,BFS Group Ltd t/a Bidvest Foodservice
Brighton & Hove City Council,http://statistics.data.gov.uk/id/local-authority/00ML,Housing General Fund,BVAHOG,Homelessness,HML,Supplies and Services,E,Catering,EB,09/10/2019,PAY01208084,ASSA,Hostel Accommodation,195.83,Revenue,BFS Group Ltd t/a Bidvest Foodservice
Brighton & Hove City Council,http://statistics.data.gov.uk/id/local-authority/00ML,Adult Social Care,BVASOC,ASC Memory Cognition Support,MEM,Supplies and Services,E,Catering,EB,16/10/2019,PAY01210103,RCOP,Resource Centres Older People,422.73,Revenue,BFS Group Ltd t/a Bidvest Foodservice
Brighton & Hove City Council,http://statistics.data.gov.uk/id/local-authority/00ML,Adult Social Care,BVASOC,ASC Physical Support,PHY,Supplies and Services,E,Catering,EB,16/10/2019,PAY01210103,RCOP,Resource Centres Older People,342.53,Revenue,BFS Group Ltd t/a Bidvest Foodservice
Brighton & Hove City Council,http://statistics.data.gov.uk/id/local-authority/00ML,Housing General Fund,BVAHOG,Homelessness,HML,Supplies and Services,E,Catering,EB,16/10/2019,PAY01210103,ASSA,Hostel Accommodation,191.57,Revenue,BFS Group Ltd t/a Bidvest Foodservice
Brighton & Hove City Council,http://statistics.data.gov.uk/id/local-authority/00ML,Adult Social Care,BVASOC,ASC Memory Cognition Support,MEM,Supplies and Services,E,Catering,EB,23/10/2019,PAY01213364,RCOP,Resource Centres Older People,232.88,Revenue,BFS Group Ltd t/a Bidvest Foodservice
Brighton & Hove City Council,http://statistics.data.gov.uk/id/local-authority/00ML,Adult Social Care,BVASOC,ASC Physical Support,PHY,Supplies and Services,E,Catering,EB,23/10/2019,PAY01213364,RCOP,Resource Centres Older People,258.39,Revenue,BFS Group Ltd t/a Bidvest Foodservice
Brighton & Hove City Council,http://statistics.data.gov.uk/id/local-authority/00ML,Adult Social Care,BVASOC,ASC Physical Support,PHY,Supplies and Services,E,Catering,EB,25/10/2019,PAY01214273,RCOP,Resource Centres Older People,10.04,Revenue,BFS Group Ltd t/a Bidvest Foodservice
Brighton & Hove City Council,http://statistics.data.gov.uk/id/local-authority/00ML,Housing General Fund,BVAHOG,Homelessness,HML,Supplies and Services,E,Catering,EB,25/10/2019,PAY01214273,ASSA,Hostel Accommodation,1196.19,Revenue,BFS Group Ltd t/a Bidvest Foodservice
Brighton & Hove City Council,http://statistics.data.gov.uk/id/local-authority/00ML,Adult Social Care,BVASOC,ASC Memory Cognition Support,MEM,Supplies and Services,E,Catering,EB,30/10/2019,PAY01215513,RCOP,Resource Centres Older People,445.69,Revenue,BFS Group Ltd t/a Bidvest Foodservice
Brighton & Hove City Council,http://statistics.data.gov.uk/id/local-authority/00ML,Public Health,BVAPHE,Public Health,PHE,Third Party Payments,F,Other Establishments,FH,04/10/2019,PAY01207215,PHCM,PH Commissioning,25000,Revenue,BHAFC Albion in the Community
Brighton & Hove City Council,http://statistics.data.gov.uk/id/local-authority/00ML,Planning and Development,BVAPLA,Community Development,CDV,Supplies and Services,E,Grants n Subscriptions,EK,09/10/2019,PAY01208089,CMNY,Communities and Equalities,5526,Revenue,BHAFC Albion in the Community
Brighton & Hove City Council,http://statistics.data.gov.uk/id/local-authority/00ML,Highways and Transportation,BVAHRT,Transport Plan Policy Strategy,TPP,Supplies and Services,E,Print Stat & Gen Office Exps,ED,16/10/2019,PAY01210526,TPRS,Transport Projects and Eng,1330,Revenue,Bike for Life (South) CIC
Brighton & Hove City Council,http://statistics.data.gov.uk/id/local-authority/00ML,Adult Social Care,BVASOC,ASC Memory Cognition Support,MEM,Customer n Client Receipts,M,Fees n Charges,MB,02/10/2019,PAY01206291,COGN,Memory Cognition Support,-2931.38,Revenue,Birchgrove Healthcare (Sussex) Ltd
Brighton & Hove City Council,http://statistics.data.gov.uk/id/local-authority/00ML,Adult Social Care,BVASOC,ASC Memory Cognition Support,MEM,Third Party Payments,F,Other Establishments,FH,02/10/2019,PAY01206291,COGN,Memory Cognition Support,10837.95,Revenue,Birchgrove Healthcare (Sussex) Ltd
Brighton & Hove City Council,http://statistics.data.gov.uk/id/local-authority/00ML,Adult Social Care,BVASOC,ASC Physical Support,PHY,Customer n Client Receipts,M,Fees n Charges,MB,02/10/2019,PAY01206291,PHYS,Physical Support,-8142.98,Revenue,Birchgrove Healthcare (Sussex) Ltd
Brighton & Hove City Council,http://statistics.data.gov.uk/id/local-authority/00ML,Adult Social Care,BVASOC,ASC Physical Support,PHY,Third Party Payments,F,Other Establishments,FH,02/10/2019,PAY01206291,PHYS,Physical Support,9585.71,Revenue,Birchgrove Healthcare (Sussex) Ltd
Brighton & Hove City Council,http://statistics.data.gov.uk/id/local-authority/00ML,Adult Social Care,BVASOC,ASC Mental Health Support,MHP,Customer n Client Receipts,M,Fees n Charges,MB,11/10/2019,PAY01208855,MENH,Mental Health Support,-2018.32,Revenue,Birchgrove Healthcare (Sussex) Ltd
Brighton & Hove City Council,http://statistics.data.gov.uk/id/local-authority/00ML,Adult Social Care,BVASOC,ASC Mental Health Support,MHP,Third Party Payments,F,Other Establishments,FH,11/10/2019,PAY01208855,MENH,Mental Health Support,8100,Revenue,Birchgrove Healthcare (Sussex) Ltd
Brighton & Hove City Council,http://statistics.data.gov.uk/id/local-authority/00ML,Adult Social Care,BVASOC,ASC Physical Support,PHY,Customer n Client Receipts,M,Fees n Charges,MB,16/10/2019,PAY01210030,PHYS,Physical Support,-659.38,Revenue,Birchgrove Healthcare (Sussex) Ltd
Brighton & Hove City Council,http://statistics.data.gov.uk/id/local-authority/00ML,Adult Social Care,BVASOC,ASC Physical Support,PHY,Third Party Payments,F,Other Establishments,FH,16/10/2019,PAY01210030,PHYS,Physical Support,4548.57,Revenue,Birchgrove Healthcare (Sussex) Ltd
Brighton & Hove City Council,http://statistics.data.gov.uk/id/local-authority/00ML,Adult Social Care,BVASOC,ASC Memory Cognition Support,MEM,Customer n Client Receipts,M,Fees n Charges,MB,25/10/2019,PAY01214221,COGN,Memory Cognition Support,-5639.36,Revenue,Birchgrove Healthcare (Sussex) Ltd
Brighton & Hove City Council,http://statistics.data.gov.uk/id/local-authority/00ML,Adult Social Care,BVASOC,ASC Memory Cognition Support,MEM,Third Party Payments,F,Other Establishments,FH,25/10/2019,PAY01214221,COGN,Memory Cognition Support,34460.84,Revenue,Birchgrove Healthcare (Sussex) Ltd
Brighton & Hove City Council,http://statistics.data.gov.uk/id/local-authority/00ML,Adult Social Care,BVASOC,ASC Mental Health Support,MHP,Customer n Client Receipts,M,Fees n Charges,MB,25/10/2019,PAY01214221,MENH,Mental Health Support,-648.8,Revenue,Birchgrove Healthcare (Sussex) Ltd
Brighton & Hove City Council,http://statistics.data.gov.uk/id/local-authority/00ML,Adult Social Care,BVASOC,ASC Mental Health Support,MHP,Third Party Payments,F,Other Establishments,FH,25/10/2019,PAY01214221,MENH,Mental Health Support,3600,Revenue,Birchgrove Healthcare (Sussex) Ltd
Brighton & Hove City Council,http://statistics.data.gov.uk/id/local-authority/00ML,Adult Social Care,BVASOC,ASC Physical Support,PHY,Customer n Client Receipts,M,Fees n Charges,MB,25/10/2019,PAY01214221,PHYS,Physical Support,-9696.04,Revenue,Birchgrove Healthcare (Sussex) Ltd
Brighton & Hove City Council,http://statistics.data.gov.uk/id/local-authority/00ML,Adult Social Care,BVASOC,ASC Physical Support,PHY,Third Party Payments,F,Other Establishments,FH,25/10/2019,PAY01214221,PHYS,Physical Support,49978.21,Revenue,Birchgrove Healthcare (Sussex) Ltd
Brighton & Hove City Council,http://statistics.data.gov.uk/id/local-authority/00ML,Adult Social Care,BVASOC,ASC Memory Cognition Support,MEM,Customer n Client Receipts,M,Fees n Charges,MB,30/10/2019,PAY01215478,COGN,Memory Cognition Support,308.77,Revenue,Birchgrove Healthcare (Sussex) Ltd
Brighton & Hove City Council,http://statistics.data.gov.uk/id/local-authority/00ML,Adult Social Care,BVASOC,ASC Memory Cognition Support,MEM,Third Party Payments,F,Other Establishments,FH,30/10/2019,PAY01215478,COGN,Memory Cognition Support,934.08,Revenue,Birchgrove Healthcare (Sussex) Ltd
Brighton & Hove City Council,http://statistics.data.gov.uk/id/local-authority/00ML,Adult Social Care,BVASOC,ASC Physical Support,PHY,Third Party Payments,F,Other Establishments,FH,30/10/2019,PAY01215478,PHYS,Physical Support,236.57,Revenue,Birchgrove Healthcare (Sussex) Ltd
Brighton & Hove City Council,http://statistics.data.gov.uk/id/local-authority/00ML,Non-BHC Organisations,BVANON,Trusts,TRT,Supplies and Services,E,Miscellaneous Expenses,EM,30/10/2019,PAY01215478,NBHC,Non Council,93.05,Revenue,Birchgrove Healthcare (Sussex) Ltd
Brighton & Hove City Council,http://statistics.data.gov.uk/id/local-authority/00ML,Adult Social Care,BVASOC,ASC Physical Support,PHY,Customer n Client Receipts,M,Fees n Charges,MB,25/10/2019,PAY01214935,PHYS,Physical Support,-414.2,Revenue,Black Swan International
Brighton & Hove City Council,http://statistics.data.gov.uk/id/local-authority/00ML,Adult Social Care,BVASOC,ASC Physical Support,PHY,Third Party Payments,F,Other Establishments,FH,25/10/2019,PAY01214935,PHYS,Physical Support,5853.6,Revenue,Black Swan International
Brighton & Hove City Council,http://statistics.data.gov.uk/id/local-authority/00ML,Adult Social Care,BVASOC,ASC Physical Support,PHY,Customer n Client Receipts,M,Fees n Charges,MB,16/10/2019,PAY01210717,PHYS,Physical Support,-573.32,Revenue,Blair House Limited
Brighton & Hove City Council,http://statistics.data.gov.uk/id/local-authority/00ML,Adult Social Care,BVASOC,ASC Physical Support,PHY,Third Party Payments,F,Other Establishments,FH,16/10/2019,PAY01210717,PHYS,Physical Support,2385.56,Revenue,Blair House Limited
Brighton & Hove City Council,http://statistics.data.gov.uk/id/local-authority/00ML,Non I&E,BVANON,CAP Education Services,4ED,New Construction n Conversion,PB,New Construction n Conversion,PBL5,30/10/2019,PAY01215460,EYRS,Early Years,1183.09,Capital,Blair Installations Ltd
Brighton & Hove City Council,http://statistics.data.gov.uk/id/local-authority/00ML,Adult Social Care,BVASOC,ASC Memory Cognition Support,MEM,Customer n Client Receipts,M,Fees n Charges,MB,25/10/2019,PAY01214658,COGN,Memory Cognition Support,-1575.32,Revenue,Blatchington Court
Brighton & Hove City Council,http://statistics.data.gov.uk/id/local-authority/00ML,Adult Social Care,BVASOC,ASC Memory Cognition Support,MEM,Third Party Payments,F,Other Establishments,FH,25/10/2019,PAY01214658,COGN,Memory Cognition Support,5168.28,Revenue,Blatchington Court
Brighton & Hove City Council,http://statistics.data.gov.uk/id/local-authority/00ML,Non I&E,BVANON,Cap - Housing Services - HRA,4HR,New Construction n Conversion,PB,New Construction n Conversion,PBL5,25/10/2019,PAY01214638,HPAI,Property & Investment,785,Capital,BLB Chartered Engineers Ltd
Brighton & Hove City Council,http://statistics.data.gov.uk/id/local-authority/00ML,Non I&E,BVANON,CAP Education Services,4ED,New Construction n Conversion,PB,New Construction n Conversion,PBL5,16/10/2019,PAY01210638,EYRS,Early Years,52063.7,Capital,Blenheim Roofing Service Ltd
Brighton & Hove City Council,http://statistics.data.gov.uk/id/local-authority/00ML,Central Support and Overheads,BVACEN,Holding Accounts,PPH,Premises Related,C,Repair Maint n Alterations,CA,16/10/2019,PAY01209945,PROP,Property and Design,1414,Revenue,Blockbusters Contracts Ltd
Brighton & Hove City Council,http://statistics.data.gov.uk/id/local-authority/00ML,Central Support and Overheads,BVACEN,Support Services (SSC),PPT,Premises Related,C,Repair Maint n Alterations,CA,16/10/2019,PAY01209945,PROP,Property and Design,340,Revenue,Blockbusters Contracts Ltd
Brighton & Hove City Council,http://statistics.data.gov.uk/id/local-authority/00ML,Central Support and Overheads,BVACEN,Support Services (SSC),PPT,Premises Related,C,Repair Maint n Alterations,CA,18/10/2019,PAY01211301,PROP,Property and Design,580,Revenue,Blockbusters Contracts Ltd
Brighton & Hove City Council,http://statistics.data.gov.uk/id/local-authority/00ML,Central Support and Overheads,BVACEN,Support Services (SSC),PPT,Premises Related,C,Repair Maint n Alterations,CA,30/10/2019,PAY01215435,PROP,Property and Design,204,Revenue,Blockbusters Contracts Ltd
Brighton & Hove City Council,http://statistics.data.gov.uk/id/local-authority/00ML,Non I&E,BVANON,CAP Education Services,4ED,New Construction n Conversion,PB,New Construction n Conversion,PBL5,30/10/2019,PAY01215435,EYRS,Early Years,11679,Capital,Blockbusters Contracts Ltd
Brighton & Hove City Council,http://statistics.data.gov.uk/id/local-authority/00ML,Public Health,BVAPHE,Public Health,PHE,Supplies and Services,E,Miscellaneous Expenses,EM,18/10/2019,PAY01212138,PHCM,PH Commissioning,250,Revenue,Blue Response Ltd
Brighton & Hove City Council,http://statistics.data.gov.uk/id/local-authority/00ML,Children`s & Education Serv,BVAEDU,Ed Ed Other Other,ENF,Third Party Payments,F,Other Establishments,FH,04/10/2019,PAY01207369,VSCH,Virtual School,1360,Revenue,Blue Sky Fostering Limited
Brighton & Hove City Council,http://statistics.data.gov.uk/id/local-authority/00ML,Children`s & Education Serv,BVAEDU,Child Srvcs - Fostering,FLF,Third Party Payments,F,Other Establishments,FH,16/10/2019,PAY01210366,AVFM,Agency Placements\VFM,27742,Revenue,Blue Sky Fostering Limited
Brighton & Hove City Council,http://statistics.data.gov.uk/id/local-authority/00ML,Children`s & Education Serv,BVAEDU,Child Srvcs - Fostering,FLF,Third Party Payments,F,Other Establishments,FH,16/10/2019,PAY01210366,DISS,Childrens Disability Services,5881.4,Revenue,Blue Sky Fostering Limited
Brighton & Hove City Council,http://statistics.data.gov.uk/id/local-authority/00ML,Children`s & Education Serv,BVAEDU,Child Srvcs - Residential Svcs,FLR,Premises Related,C,Cleaning n Domestic Supps,CH,18/10/2019,PAY01211489,DISS,Childrens Disability Services,313.92,Revenue,Blueleaf Ltd
Brighton & Hove City Council,http://statistics.data.gov.uk/id/local-authority/00ML,Housing General Fund,BVAHOG,Homelessness,HML,Premises Related,C,Rents Payable,CC,11/10/2019,PAY01209387,TAAS,Temp Accom and Allocations,775,Revenue,BN Property Services Limited
Brighton & Hove City Council,http://statistics.data.gov.uk/id/local-authority/00ML,Housing General Fund,BVAHOG,Homelessness,HML,Premises Related,C,Rents Payable,CC,16/10/2019,PAY01210666,TAAS,Temp Accom and Allocations,950,Revenue,BN Property Services Limited
Brighton & Hove City Council,http://statistics.data.gov.uk/id/local-authority/00ML,Housing General Fund,BVAHOG,Homelessness,HML,Premises Related,C,Rents Payable,CC,23/10/2019,PAY01213647,TAAS,Temp Accom and Allocations,975,Revenue,BN Property Services Limited
Brighton & Hove City Council,http://statistics.data.gov.uk/id/local-authority/00ML,Housing General Fund,BVAHOG,Homelessness,HML,Premises Related,C,Rents Payable,CC,25/10/2019,PAY01214902,TAAS,Temp Accom and Allocations,1500,Revenue,BN Property Services Limited
Brighton & Hove City Council,http://statistics.data.gov.uk/id/local-authority/00ML,Housing General Fund,BVAHOG,Homelessness,HML,Supplies and Services,E,Services,EF,02/10/2019,PAY01206910,TAAS,Temp Accom and Allocations,2160,Revenue,BNM Parkstone LLP t/a Fourways Residential
Brighton & Hove City Council,http://statistics.data.gov.uk/id/local-authority/00ML,Housing General Fund,BVAHOG,Homelessness,HML,Supplies and Services,E,Services,EF,09/10/2019,PAY01208630,TAAS,Temp Accom and Allocations,1475,Revenue,BNM Parkstone LLP t/a Fourways Residential
Brighton & Hove City Council,http://statistics.data.gov.uk/id/local-authority/00ML,Housing General Fund,BVAHOG,Homelessness,HML,Supplies and Services,E,Services,EF,18/10/2019,PAY01212986,TAAS,Temp Accom and Allocations,1735,Revenue,BNM Parkstone LLP t/a Fourways Residential
Brighton & Hove City Council,http://statistics.data.gov.uk/id/local-authority/00ML,Housing General Fund,BVAHOG,Homelessness,HML,Supplies and Services,E,Services,EF,23/10/2019,PAY01213862,TAAS,Temp Accom and Allocations,1755,Revenue,BNM Parkstone LLP t/a Fourways Residential
Brighton & Hove City Council,http://statistics.data.gov.uk/id/local-authority/00ML,Cultural and Related Serv,BVACUL,Recreation and Sport,REC,Supplies and Services,E,Equip't Furniture n Materials,EA,04/10/2019,PAY01207210,SPLE,Sport and Leisure,238.53,Revenue,BOC Ltd
Brighton & Hove City Council,http://statistics.data.gov.uk/id/local-authority/00ML,Public Health,BVAPHE,Public Health,PHE,Third Party Payments,F,Other Establishments,FH,25/10/2019,PAY01214667,PHCM,PH Commissioning,15174.04,Revenue,Boots UK Ltd
Brighton & Hove City Council,http://statistics.data.gov.uk/id/local-authority/00ML,Highways and Transportation,BVAHRT,Parking Services,PRK,Customer n Client Receipts,M,Fees n Charges,MB,04/10/2019,PAY01207136,PARK,Parking Services,312.5,Revenue,Boundless by CSMA
Brighton & Hove City Council,http://statistics.data.gov.uk/id/local-authority/00ML,Children`s & Education Serv,BVAEDU,Child Srvcs - Residential Svcs,FLR,Third Party Payments,F,Other Establishments,FH,23/10/2019,PAY01213407,AVFM,Agency Placements\VFM,2750,Revenue,Bournemouth Christchurch & Poole Council
Brighton & Hove City Council,http://statistics.data.gov.uk/id/local-authority/00ML,Children`s & Education Serv,BVAEDU,Child Srvcs Leaving Care,FAL,Transfer Payments,G,Other Transfer Payments,GD,09/10/2019,PAY01207984,CARL,Care Leavers,385,Revenue,Bournemouth University
Brighton & Hove City Council,http://statistics.data.gov.uk/id/local-authority/00ML,Children`s & Education Serv,BVAEDU,Child Srvcs Leaving Care,FAL,Transfer Payments,G,Other Transfer Payments,GD,30/10/2019,PAY01215372,CARL,Care Leavers,385,Revenue,Bournemouth University
Brighton & Hove City Council,http://statistics.data.gov.uk/id/local-authority/00ML,Non-BHC Organisations,BVANON,Trusts,TRT,Supplies and Services,E,Miscellaneous Expenses,EM,25/10/2019,PAY01215141,NBHC,Non Council,16907.42,Revenue,Boys & Maughan Solicitors
Brighton & Hove City Council,http://statistics.data.gov.uk/id/local-authority/00ML,Adult Social Care,BVASOC,ASC Learning Disabilities,ALD,Third Party Payments,F,Other Establishments,FH,25/10/2019,PAY01214519,LDIS,Adults LD Community Care,6900,Revenue,Bradfield House
Brighton & Hove City Council,http://statistics.data.gov.uk/id/local-authority/00ML,Adult Social Care,BVASOC,ASC Learning Disabilities,ALD,Supplies and Services,E,Catering,EB,25/10/2019,PAY01214137,RESP,Adults Respite Services,575.89,Revenue,Brake Bros Ltd t/a Brakes Catering Equip
Brighton & Hove City Council,http://statistics.data.gov.uk/id/local-authority/00ML,Non I&E,BVANON,CAP Education Services,4ED,New Construction n Conversion,PB,New Construction n Conversion,PBL5,09/10/2019,PAY01208145,EYRS,Early Years,24060.41,Capital,Bramber Construction Co Ltd
Brighton & Hove City Council,http://statistics.data.gov.uk/id/local-authority/00ML,Non I&E,BVANON,CAP Education Services,4ED,New Construction n Conversion,PB,New Construction n Conversion,PBL5,16/10/2019,PAY01210170,EYRS,Early Years,19952.77,Capital,Bramber Construction Co Ltd
Brighton & Hove City Council,http://statistics.data.gov.uk/id/local-authority/00ML,Non I&E,BVANON,CAP Mgmnt and Suppt Services,4PT,New Construction n Conversion,PB,New Construction n Conversion,PBL5,18/10/2019,PAY01211499,PROP,Property and Design,9481.76,Capital,Bramber Construction Co Ltd
Brighton & Hove City Council,http://statistics.data.gov.uk/id/local-authority/00ML,Non I&E,BVANON,CAP Social Services,4RV,New Construction n Conversion,PB,New Construction n Conversion,PBL5,18/10/2019,PAY01211499,PROP,Property and Design,28233.92,Capital,Bramber Construction Co Ltd
Brighton & Hove City Council,http://statistics.data.gov.uk/id/local-authority/00ML,Cultural and Related Serv,BVACUL,Culture and Heritage,CHG,Supplies and Services,E,Communications n Computing,EH,25/10/2019,PAY01214594,RPMU,Royal Pavilion and Museums,1185,Revenue,Bright Interactive Ltd
Brighton & Hove City Council,http://statistics.data.gov.uk/id/local-authority/00ML,Children`s & Education Serv,BVAEDU,Child Srvcs - Fostering,FLF,Third Party Payments,F,Other Establishments,FH,16/10/2019,PAY01210362,AVFM,Agency Placements\VFM,2960,Revenue,Brighter Futures Foster Care Ltd
Brighton & Hove City Council,http://statistics.data.gov.uk/id/local-authority/00ML,Adult Social Care,BVASOC,S Svcs Other Adult Services,ADT,Premises Related,C,Rents Payable,CC,16/10/2019,PAY01210108,ORGD,Organisational Development,558,Revenue,Brighthelm Trading Ltd
Brighton & Hove City Council,http://statistics.data.gov.uk/id/local-authority/00ML,Public Health,BVAPHE,Public Health,PHE,Premises Related,C,Rents Payable,CC,16/10/2019,PAY01210108,PHCM,PH Commissioning,108,Revenue,Brighthelm Trading Ltd
Brighton & Hove City Council,http://statistics.data.gov.uk/id/local-authority/00ML,Central Support and Overheads,BVACEN,Support Services (SSC),PPT,Indirect Employees,B,Training,BM,30/10/2019,PAY01215518,ORGD,Organisational Development,728,Revenue,Brighthelm Trading Ltd
Brighton & Hove City Council,http://statistics.data.gov.uk/id/local-authority/00ML,Cultural and Related Serv,BVACUL,Open Spaces,PEN,Supplies and Services,E,Grants n Subscriptions,EK,30/10/2019,PAY01215489,CIPK,City Parks,3113.74,Revenue,Brighton & Hove Allotment Federation
Brighton & Hove City Council,http://statistics.data.gov.uk/id/local-authority/00ML,Adult Social Care,BVASOC,ASC Physical Support,PHY,Customer n Client Receipts,M,Fees n Charges,MB,25/10/2019,PAY01214104,PHYS,Physical Support,-2913.92,Revenue,Brighton & Hove Bethesda Home
Brighton & Hove City Council,http://statistics.data.gov.uk/id/local-authority/00ML,Adult Social Care,BVASOC,ASC Physical Support,PHY,Third Party Payments,F,Other Establishments,FH,25/10/2019,PAY01214104,PHYS,Physical Support,7591.88,Revenue,Brighton & Hove Bethesda Home
Brighton & Hove City Council,http://statistics.data.gov.uk/id/local-authority/00ML,Adult Social Care,BVASOC,Social Care Activities,ACM,Transport Related,D,Public Transport,DD,02/10/2019,PAY01206416,ASIT,Assessment and SIT,600,Revenue,Brighton & Hove Bus and Coach Co Ltd
Brighton & Hove City Council,http://statistics.data.gov.uk/id/local-authority/00ML,Environment & Regulatory Serv,BVAERS,Environmental Health,EVH,Transport Related,D,Public Transport,DD,02/10/2019,PAY01206416,SCOM,Safer Communties,703,Revenue,Brighton & Hove Bus and Coach Co Ltd
Brighton & Hove City Council,http://statistics.data.gov.uk/id/local-authority/00ML,Children`s & Education Serv,BVAEDU,Child Srvcs Leaving Care,FAL,Transfer Payments,G,Other Transfer Payments,GD,04/10/2019,PAY01207308,CARL,Care Leavers,518.2,Revenue,Brighton & Hove Bus and Coach Co Ltd
Brighton & Hove City Council,http://statistics.data.gov.uk/id/local-authority/00ML,Children`s & Education Serv,BVAEDU,Child Srvcs - Yth Offender Tm,FYY,Transport Related,D,Public Transport,DD,04/10/2019,PAY01207308,ASER,Adolescent Service,376.5,Revenue,Brighton & Hove Bus and Coach Co Ltd
Brighton & Hove City Council,http://statistics.data.gov.uk/id/local-authority/00ML,Children`s & Education Serv,BVAEDU,Ed Ed Other LA Attrib Sch,ELA,Transport Related,D,Public Transport,DD,04/10/2019,PAY01207308,SCOR,School Organisation,145132.5,Revenue,Brighton & Hove Bus and Coach Co Ltd
Brighton & Hove City Council,http://statistics.data.gov.uk/id/local-authority/00ML,Children`s & Education Serv,BVAEDU,Child Srvcs - Other Fam Supp,FFX,Transport Related,D,Public Transport,DD,09/10/2019,PAY01208155,EYRS,Early Years,502,Revenue,Brighton & Hove Bus and Coach Co Ltd
Brighton & Hove City Council,http://statistics.data.gov.uk/id/local-authority/00ML,Environment & Regulatory Serv,BVAERS,Consumer Protection,CNP,Supplies and Services,E,Services,EF,09/10/2019,PAY01208155,SCOM,Safer Communties,251,Revenue,Brighton & Hove Bus and Coach Co Ltd
Brighton & Hove City Council,http://statistics.data.gov.uk/id/local-authority/00ML,Environment & Regulatory Serv,BVAERS,Environmental Health,EVH,Transport Related,D,Contract Hire n Operating Leas,DB,09/10/2019,PAY01208155,SCOM,Safer Communties,952.84,Revenue,Brighton & Hove Bus and Coach Co Ltd
Brighton & Hove City Council,http://statistics.data.gov.uk/id/local-authority/00ML,Adult Social Care,BVASOC,Social Care Activities,ACM,Transport Related,D,Public Transport,DD,11/10/2019,PAY01208999,ASIT,Assessment and SIT,200,Revenue,Brighton & Hove Bus and Coach Co Ltd
Brighton & Hove City Council,http://statistics.data.gov.uk/id/local-authority/00ML,Children`s & Education Serv,BVAEDU,Child Srvcs - Other Fam Supp,FFX,Transfer Payments,G,Other Transfer Payments,GD,11/10/2019,PAY01208999,FAMP,Families\Prevention,200.8,Revenue,Brighton & Hove Bus and Coach Co Ltd
Brighton & Hove City Council,http://statistics.data.gov.uk/id/local-authority/00ML,Housing General Fund,BVAHOG,Hsing Benefits,HGB,Transfer Payments,G,Other Transfer Payments,GD,11/10/2019,PAY01208999,REVS,Revenues and Benefits,251,Revenue,Brighton & Hove Bus and Coach Co Ltd
Brighton & Hove City Council,http://statistics.data.gov.uk/id/local-authority/00ML,Housing General Fund,BVAHOG,Hsing Benefits,HGB,Transport Related,D,Public Transport,DD,11/10/2019,PAY01208999,REVS,Revenues and Benefits,251,Revenue,Brighton & Hove Bus and Coach Co Ltd
Brighton & Hove City Council,http://statistics.data.gov.uk/id/local-authority/00ML,Adult Social Care,BVASOC,Social Care Activities,ACM,Transport Related,D,Public Transport,DD,16/10/2019,PAY01210179,ASIT,Assessment and SIT,400,Revenue,Brighton & Hove Bus and Coach Co Ltd
Brighton & Hove City Council,http://statistics.data.gov.uk/id/local-authority/00ML,Children`s & Education Serv,BVAEDU,Child Srvcs Leaving Care,FAL,Transfer Payments,G,Other Transfer Payments,GD,23/10/2019,PAY01213400,CARL,Care Leavers,1295.5,Revenue,Brighton & Hove Bus and Coach Co Ltd
Brighton & Hove City Council,http://statistics.data.gov.uk/id/local-authority/00ML,Children`s & Education Serv,BVAEDU,Ed Ed Other LA Attrib Sch,ELA,Transport Related,D,Public Transport,DD,23/10/2019,PAY01213400,SCOR,School Organisation,9366.32,Revenue,Brighton & Hove Bus and Coach Co Ltd
Brighton & Hove City Council,http://statistics.data.gov.uk/id/local-authority/00ML,Environment & Regulatory Serv,BVAERS,Environmental Health,EVH,Transport Related,D,Other Transport Costs,DG,23/10/2019,PAY01213400,HIGH,Traffic Management,227,Revenue,Brighton & Hove Bus and Coach Co Ltd
Brighton & Hove City Council,http://statistics.data.gov.uk/id/local-authority/00ML,Housing General Fund,BVAHOG,Homelessness,HML,Transport Related,D,Public Transport,DD,23/10/2019,PAY01213400,HOPT,Housing Options,1004,Revenue,Brighton & Hove Bus and Coach Co Ltd
Brighton & Hove City Council,http://statistics.data.gov.uk/id/local-authority/00ML,Housing Revenue Account,BVAHOU,Hsing Management - HRA,HGM,Supplies and Services,E,Services,EF,23/10/2019,PAY01213400,HTEN,Tenancy Services,327.6,Revenue,Brighton & Hove Bus and Coach Co Ltd
Brighton & Hove City Council,http://statistics.data.gov.uk/id/local-authority/00ML,Planning and Development,BVAPLA,Planning Policy,PLP,Transport Related,D,Public Transport,DD,23/10/2019,PAY01213400,DEVP,Development Planning,251,Revenue,Brighton & Hove Bus and Coach Co Ltd
Brighton & Hove City Council,http://statistics.data.gov.uk/id/local-authority/00ML,Children`s & Education Serv,BVAEDU,Child Srvcs - Other Fam Supp,FFX,Transfer Payments,G,Other Transfer Payments,GD,30/10/2019,PAY01215607,FAMP,Families\Prevention,668.8,Revenue,Brighton & Hove Bus and Coach Co Ltd
Brighton & Hove City Council,http://statistics.data.gov.uk/id/local-authority/00ML,Highways and Transportation,BVAHRT,Public Transport,PTR,Third Party Payments,F,Private Contractors,FJ,30/10/2019,PAY01215607,TPRS,Transport Projects and Eng,23586.1,Revenue,Brighton & Hove Bus and Coach Co Ltd
Brighton & Hove City Council,http://statistics.data.gov.uk/id/local-authority/00ML,Highways and Transportation,BVAHRT,Public Transport,PTR,Transport Related,D,Public Transport,DD,30/10/2019,PAY01215607,CONF,Concessionary Fares,810184.71,Revenue,Brighton & Hove Bus and Coach Co Ltd
Brighton & Hove City Council,http://statistics.data.gov.uk/id/local-authority/00ML,Planning and Development,BVAPLA,Community Development,CDV,Supplies and Services,E,Grants n Subscriptions,EK,04/10/2019,PAY01207213,CMNY,Communities and Equalities,235000,Revenue,Brighton & Hove Citizens Advice Bureau
Brighton & Hove City Council,http://statistics.data.gov.uk/id/local-authority/00ML,Children`s & Education Serv,BVAEDU,Ed Secondary Ed,EJE,Supplies and Services,E,Services,EF,23/10/2019,PAY01213333,OEDS,Other Education Support,273981.22,Revenue,Brighton & Hove City Schools Services Ltd
Brighton & Hove City Council,http://statistics.data.gov.uk/id/local-authority/00ML,Planning and Development,BVAPLA,Community Development,CDV,Supplies and Services,E,Grants n Subscriptions,EK,04/10/2019,PAY01207163,CMNY,Communities and Equalities,429863,Revenue,Brighton & Hove Community Works
Brighton & Hove City Council,http://statistics.data.gov.uk/id/local-authority/00ML,Housing Revenue Account,BVAHOU,Hsing Management - HRA,HGM,Supplies and Services,E,Services,EF,23/10/2019,PAY01213728,HPAI,Property & Investment,1980,Revenue,Brighton & Hove Energy Services Co-operative Ltd
Brighton & Hove City Council,http://statistics.data.gov.uk/id/local-authority/00ML,Planning and Development,BVAPLA,Economic Development,ECD,Supplies and Services,E,Grants n Subscriptions,EK,30/10/2019,PAY01215899,CMNY,Communities and Equalities,2000,Revenue,Brighton & Hove First Ladies
Brighton & Hove City Council,http://statistics.data.gov.uk/id/local-authority/00ML,Housing General Fund,BVAHOG,Hsing Welfare,HGW,Transfer Payments,G,Supporting People,GF,02/10/2019,PAY01206455,CONT,Contracts,1875,Revenue,Brighton & Hove Food Partnership
Brighton & Hove City Council,http://statistics.data.gov.uk/id/local-authority/00ML,Planning and Development,BVAPLA,Community Development,CDV,Supplies and Services,E,Grants n Subscriptions,EK,09/10/2019,PAY01208188,CMNY,Communities and Equalities,27435,Revenue,Brighton & Hove Food Partnership
Brighton & Hove City Council,http://statistics.data.gov.uk/id/local-authority/00ML,Housing General Fund,BVAHOG,Homelessness,HML,Premises Related,C,Rents Payable,CC,02/10/2019,PAY01206718,TAAS,Temp Accom and Allocations,1000,Revenue,Brighton & Hove Properties Ltd
Brighton & Hove City Council,http://statistics.data.gov.uk/id/local-authority/00ML,Housing General Fund,BVAHOG,Homelessness,HML,Premises Related,C,Rents Payable,CC,30/10/2019,PAY01215911,TAAS,Temp Accom and Allocations,1000,Revenue,Brighton & Hove Properties Ltd
Brighton & Hove City Council,http://statistics.data.gov.uk/id/local-authority/00ML,Children`s & Education Serv,BVAEDU,Ed Ed Other LA Attrib Sch,ELA,Transport Related,D,Public Transport,DD,09/10/2019,PAY01208154,SCOR,School Organisation,739.2,Revenue,Brighton & Hove Radio Cabs Ltd
Brighton & Hove City Council,http://statistics.data.gov.uk/id/local-authority/00ML,Children`s & Education Serv,BVAEDU,Support Services (SSC),PPT,Transport Related,D,Public Transport,DD,09/10/2019,PAY01208154,SCOR,School Organisation,3313,Revenue,Brighton & Hove Radio Cabs Ltd
Brighton & Hove City Council,http://statistics.data.gov.uk/id/local-authority/00ML,Non-BHC Organisations,BVANON,Trusts,TRT,Supplies and Services,E,Miscellaneous Expenses,EM,09/10/2019,PAY01208154,NBHC,Non Council,128,Revenue,Brighton & Hove Radio Cabs Ltd
Brighton & Hove City Council,http://statistics.data.gov.uk/id/local-authority/00ML,Highways and Transportation,BVAHRT,Public Transport,PTR,Transport Related,D,Public Transport,DD,11/10/2019,PAY01208997,PARK,Parking Services,393,Revenue,Brighton & Hove Radio Cabs Ltd
Brighton & Hove City Council,http://statistics.data.gov.uk/id/local-authority/00ML,Cultural and Related Serv,BVACUL,Culture and Heritage,CHG,Transport Related,D,Public Transport,DD,16/10/2019,PAY01210178,VENU,Venues,352,Revenue,Brighton & Hove Radio Cabs Ltd
Brighton & Hove City Council,http://statistics.data.gov.uk/id/local-authority/00ML,Children`s & Education Serv,BVAEDU,Support Services (SSC),PPT,Transport Related,D,Public Transport,DD,25/10/2019,PAY01214440,SCOR,School Organisation,1253.6,Revenue,Brighton & Hove Radio Cabs Ltd
Brighton & Hove City Council,http://statistics.data.gov.uk/id/local-authority/00ML,Housing Revenue Account,BVAHOU,Hsing Management - HRA,HGM,Supplies and Services,E,Grants n Subscriptions,EK,18/10/2019,PAY01211392,HIII,Income Involvement Improvement,279.57,Revenue,Brighton & Hove Social Welfare Educational Trust
Brighton & Hove City Council,http://statistics.data.gov.uk/id/local-authority/00ML,Planning and Development,BVAPLA,Community Development,CDV,Supplies and Services,E,Grants n Subscriptions,EK,09/10/2019,PAY01208020,CMNY,Communities and Equalities,27467,Revenue,Brighton & Hove Speak Out
Brighton & Hove City Council,http://statistics.data.gov.uk/id/local-authority/00ML,Highways and Transportation,BVAHRT,Public Transport,PTR,Transport Related,D,Public Transport,DD,02/10/2019,PAY01206326,PARK,Parking Services,987,Revenue,Brighton & Hove Streamline Taxis Ltd
Brighton & Hove City Council,http://statistics.data.gov.uk/id/local-authority/00ML,Housing Revenue Account,BVAHOU,Hsing Management - HRA,HGM,Transport Related,D,Public Transport,DD,02/10/2019,PAY01206326,HIII,Income Involvement Improvement,107.4,Revenue,Brighton & Hove Streamline Taxis Ltd
Brighton & Hove City Council,http://statistics.data.gov.uk/id/local-authority/00ML,Library Services,BVACUL,Library Service,LBR,Transport Related,D,Public Transport,DD,02/10/2019,PAY01206326,LIBS,Libraries,9.43,Revenue,Brighton & Hove Streamline Taxis Ltd
Brighton & Hove City Council,http://statistics.data.gov.uk/id/local-authority/00ML,Central Services to the Public,BVACEN,Reg - Birth Death and Marriage,RBD,Transport Related,D,Public Transport,DD,09/10/2019,PAY01208085,REGI,Registrars,23.78,Revenue,Brighton & Hove Streamline Taxis Ltd
Brighton & Hove City Council,http://statistics.data.gov.uk/id/local-authority/00ML,Central Support and Overheads,BVACEN,Support Services (SSC),PPT,Transport Related,D,Public Transport,DD,09/10/2019,PAY01208085,FINS,Financial Services,11.28,Revenue,Brighton & Hove Streamline Taxis Ltd
Brighton & Hove City Council,http://statistics.data.gov.uk/id/local-authority/00ML,Highways and Transportation,BVAHRT,Parking Services,PRK,Transport Related,D,Public Transport,DD,09/10/2019,PAY01208085,PARK,Parking Services,200.9,Revenue,Brighton & Hove Streamline Taxis Ltd
Brighton & Hove City Council,http://statistics.data.gov.uk/id/local-authority/00ML,Housing Revenue Account,BVAHOU,Hsing Management - HRA,HGM,Transport Related,D,Public Transport,DD,09/10/2019,PAY01208085,HIII,Income Involvement Improvement,51.15,Revenue,Brighton & Hove Streamline Taxis Ltd
Brighton & Hove City Council,http://statistics.data.gov.uk/id/local-authority/00ML,Central Support and Overheads,BVACEN,Support Services (SSC),PPT,Transport Related,D,Public Transport,DD,16/10/2019,PAY01210104,DEMO,Democratic Services,8,Revenue,Brighton & Hove Streamline Taxis Ltd
Brighton & Hove City Council,http://statistics.data.gov.uk/id/local-authority/00ML,Children`s & Education Serv,BVAEDU,Child Srvcs Other,FAX,Transport Related,D,Public Transport,DD,16/10/2019,PAY01210104,YOTS,Youth Service,213.1,Revenue,Brighton & Hove Streamline Taxis Ltd
Brighton & Hove City Council,http://statistics.data.gov.uk/id/local-authority/00ML,Highways and Transportation,BVAHRT,Parking Services,PRK,Transport Related,D,Public Transport,DD,16/10/2019,PAY01210104,PARK,Parking Services,293.36,Revenue,Brighton & Hove Streamline Taxis Ltd
Brighton & Hove City Council,http://statistics.data.gov.uk/id/local-authority/00ML,Housing General Fund,BVAHOG,Homelessness,HML,Transport Related,D,Public Transport,DD,16/10/2019,PAY01210104,ASSA,Hostel Accommodation,58.43,Revenue,Brighton & Hove Streamline Taxis Ltd
Brighton & Hove City Council,http://statistics.data.gov.uk/id/local-authority/00ML,Housing General Fund,BVAHOG,Management Services (DEC),MGT,Transport Related,D,Public Transport,DD,16/10/2019,PAY01210104,HOHG,Head of Housing GF,19.37,Revenue,Brighton & Hove Streamline Taxis Ltd
Brighton & Hove City Council,http://statistics.data.gov.uk/id/local-authority/00ML,Housing Revenue Account,BVAHOU,Hsing Management - HRA,HGM,Transport Related,D,Public Transport,DD,16/10/2019,PAY01210104,HIII,Income Involvement Improvement,386.04,Revenue,Brighton & Hove Streamline Taxis Ltd
Brighton & Hove City Council,http://statistics.data.gov.uk/id/local-authority/00ML,Library Services,BVACUL,Library Service,LBR,Transport Related,D,Public Transport,DD,16/10/2019,PAY01210104,LIBS,Libraries,66.5,Revenue,Brighton & Hove Streamline Taxis Ltd
Brighton & Hove City Council,http://statistics.data.gov.uk/id/local-authority/00ML,Highways and Transportation,BVAHRT,Public Transport,PTR,Transport Related,D,Public Transport,DD,18/10/2019,PAY01211396,PARK,Parking Services,1014,Revenue,Brighton & Hove Streamline Taxis Ltd
Brighton & Hove City Council,http://statistics.data.gov.uk/id/local-authority/00ML,Housing Revenue Account,BVAHOU,Hsing Management - HRA,HGM,Transport Related,D,Public Transport,DD,18/10/2019,PAY01211396,HIII,Income Involvement Improvement,69.5,Revenue,Brighton & Hove Streamline Taxis Ltd
Brighton & Hove City Council,http://statistics.data.gov.uk/id/local-authority/00ML,Children`s & Education Serv,BVAEDU,Ed Ed Other LA Attrib Sch,ELA,Transport Related,D,Other Transport Costs,DG,25/10/2019,PAY01214274,SCOR,School Organisation,6223,Revenue,Brighton & Hove Streamline Taxis Ltd
Brighton & Hove City Council,http://statistics.data.gov.uk/id/local-authority/00ML,Highways and Transportation,BVAHRT,Parking Services,PRK,Transport Related,D,Public Transport,DD,25/10/2019,PAY01214274,PARK,Parking Services,505.13,Revenue,Brighton & Hove Streamline Taxis Ltd
Brighton & Hove City Council,http://statistics.data.gov.uk/id/local-authority/00ML,Housing Revenue Account,BVAHOU,Hsing Management - HRA,HGM,Transport Related,D,Public Transport,DD,25/10/2019,PAY01214274,HIII,Income Involvement Improvement,95.71,Revenue,Brighton & Hove Streamline Taxis Ltd
Brighton & Hove City Council,http://statistics.data.gov.uk/id/local-authority/00ML,Library Services,BVACUL,Library Service,LBR,Transport Related,D,Public Transport,DD,25/10/2019,PAY01214274,LIBS,Libraries,43.26,Revenue,Brighton & Hove Streamline Taxis Ltd
Brighton & Hove City Council,http://statistics.data.gov.uk/id/local-authority/00ML,Children`s & Education Serv,BVAEDU,Child Srvcs - Other Fam Supp,FFX,Transfer Payments,G,Other Transfer Payments,GD,09/10/2019,PAY01208087,FAMP,Families\Prevention,73.5,Revenue,Brighton & Sussex University Hospitals NHS Trust
Brighton & Hove City Council,http://statistics.data.gov.uk/id/local-authority/00ML,Environment & Regulatory Serv,BVAERS,Court Services,CRT,Supplies and Services,E,Equip't Furniture n Materials,EA,09/10/2019,PAY01208087,CORO,Coroner,2650,Revenue,Brighton & Sussex University Hospitals NHS Trust
Brighton & Hove City Council,http://statistics.data.gov.uk/id/local-authority/00ML,Adult Social Care,BVASOC,Commission & Service Delivery,CMM,Supplies and Services,E,Services,EF,11/10/2019,PAY01208884,COMM,Commissioning,5408.28,Revenue,Brighton & Sussex University Hospitals NHS Trust
Brighton & Hove City Council,http://statistics.data.gov.uk/id/local-authority/00ML,Environment & Regulatory Serv,BVAERS,Court Services,CRT,Supplies and Services,E,Equip't Furniture n Materials,EA,11/10/2019,PAY01208884,CORO,Coroner,4120,Revenue,Brighton & Sussex University Hospitals NHS Trust
Brighton & Hove City Council,http://statistics.data.gov.uk/id/local-authority/00ML,Public Health,BVAPHE,Public Health,PHE,Third Party Payments,F,Health Authorities,FC,18/10/2019,PAY01211397,PHCM,PH Commissioning,16875,Revenue,Brighton & Sussex University Hospitals NHS Trust
Brighton & Hove City Council,http://statistics.data.gov.uk/id/local-authority/00ML,Adult Social Care,BVASOC,Commission & Service Delivery,CMM,Supplies and Services,E,Services,EF,25/10/2019,PAY01214275,COMM,Commissioning,5531.98,Revenue,Brighton & Sussex University Hospitals NHS Trust
Brighton & Hove City Council,http://statistics.data.gov.uk/id/local-authority/00ML,Cultural and Related Serv,BVACUL,Recreation and Sport,REC,Premises Related,C,Repair Maint n Alterations,CA,25/10/2019,PAY01214275,SPLE,Sport and Leisure,200.6,Revenue,Brighton & Sussex University Hospitals NHS Trust
Brighton & Hove City Council,http://statistics.data.gov.uk/id/local-authority/00ML,Public Health,BVAPHE,Public Health,PHE,Third Party Payments,F,Health Authorities,FC,30/10/2019,PAY01215515,PHCM,PH Commissioning,245000,Revenue,Brighton & Sussex University Hospitals NHS Trust
Brighton & Hove City Council,http://statistics.data.gov.uk/id/local-authority/00ML,Non I&E,BVANON,CAP Housing Services GF,4HG,Capital Grants,PF,Capital Grants,PFL5,16/10/2019,PAY01210289,PSHG,Private Sector Housing,5200,Capital,Brighton Able Ltd
Brighton & Hove City Council,http://statistics.data.gov.uk/id/local-authority/00ML,Housing General Fund,BVAHOG,Homelessness,HML,Customer n Client Receipts,M,Fees n Charges,MB,09/10/2019,PAY01208274,SSHS,Seaside Homes (BHSCH),364628,Revenue,Brighton and Hove Seaside Community Homes Ltd
Brighton & Hove City Council,http://statistics.data.gov.uk/id/local-authority/00ML,Adult Social Care,BVASOC,ASC Learning Disabilities,ALD,Customer n Client Receipts,M,Fees n Charges,MB,16/10/2019,PAY01210485,LDIS,Adults LD Community Care,-612,Revenue,Brighton and Sussex Care Ltd
Brighton & Hove City Council,http://statistics.data.gov.uk/id/local-authority/00ML,Adult Social Care,BVASOC,ASC Learning Disabilities,ALD,Third Party Payments,F,Other Establishments,FH,16/10/2019,PAY01210485,LDIS,Adults LD Community Care,20339.91,Revenue,Brighton and Sussex Care Ltd
Brighton & Hove City Council,http://statistics.data.gov.uk/id/local-authority/00ML,Adult Social Care,BVASOC,ASC Physical Support,PHY,Third Party Payments,F,Other Establishments,FH,16/10/2019,PAY01210485,PHYS,Physical Support,4465,Revenue,Brighton and Sussex Care Ltd
Brighton & Hove City Council,http://statistics.data.gov.uk/id/local-authority/00ML,Adult Social Care,BVASOC,ASC Mental Health Support,MHP,Third Party Payments,F,Other Establishments,FH,23/10/2019,PAY01213511,MENH,Mental Health Support,4125.92,Revenue,Brighton and Sussex Care Ltd
Brighton & Hove City Council,http://statistics.data.gov.uk/id/local-authority/00ML,Children`s & Education Serv,BVAEDU,Child Srvcs - Residential Svcs,FLR,Supplies and Services,E,Equip't Furniture n Materials,EA,16/10/2019,PAY01210065,DISS,Childrens Disability Services,381.67,Revenue,Brighton Bed Centre Ltd
Brighton & Hove City Council,http://statistics.data.gov.uk/id/local-authority/00ML,Non I&E,BVANON,Non-Council,NNC,Customer n Client Receipts,M,Fees n Charges,MB,11/10/2019,PAY01208876,DEVP,Development Planning,51166.67,Revenue,Brighton BID Limited
Brighton & Hove City Council,http://statistics.data.gov.uk/id/local-authority/00ML,Highways and Transportation,BVAHRT,Transport Plan Policy Strategy,TPP,Supplies and Services,E,Catering,EB,18/10/2019,PAY01211369,TPRS,Transport Projects and Eng,372.12,Revenue,Brighton Dome & Festival (Trading) Ltd
Brighton & Hove City Council,http://statistics.data.gov.uk/id/local-authority/00ML,Cultural and Related Serv,BVACUL,Culture and Heritage,CHG,Third Party Payments,F,Other Establishments,FH,04/10/2019,PAY01207158,ARTS,Arts,359778.78,Revenue,Brighton Dome & Festival Ltd
Brighton & Hove City Council,http://statistics.data.gov.uk/id/local-authority/00ML,Cultural and Related Serv,BVACUL,Tourism,TRM,Supplies and Services,E,Miscellaneous Expenses,EM,02/10/2019,PAY01206704,TOMA,Tourism and Marketing,264,Revenue,Brighton Harbour Hotel
Brighton & Hove City Council,http://statistics.data.gov.uk/id/local-authority/00ML,Public Health,BVAPHE,Public Health,PHE,Third Party Payments,F,Other Establishments,FH,25/10/2019,PAY01214133,PHCM,PH Commissioning,12684.5,Revenue,Brighton Health and Wellbeing Centre
Brighton & Hove City Council,http://statistics.data.gov.uk/id/local-authority/00ML,Adult Social Care,BVASOC,ASC Mental Health Support,MHP,Customer n Client Receipts,M,Fees n Charges,MB,25/10/2019,PAY01214278,MENH,Mental Health Support,-1171.8,Revenue,Brighton Housing Trust
Brighton & Hove City Council,http://statistics.data.gov.uk/id/local-authority/00ML,Adult Social Care,BVASOC,ASC Mental Health Support,MHP,Third Party Payments,F,Other Establishments,FH,25/10/2019,PAY01214278,MENH,Mental Health Support,19305.43,Revenue,Brighton Housing Trust
Brighton & Hove City Council,http://statistics.data.gov.uk/id/local-authority/00ML,Planning and Development,BVAPLA,Community Development,CDV,Supplies and Services,E,Grants n Subscriptions,EK,02/10/2019,PAY01206327,CMNY,Communities and Equalities,25000,Revenue,Brighton Housing Trust 
Brighton & Hove City Council,http://statistics.data.gov.uk/id/local-authority/00ML,Housing General Fund,BVAHOG,Hsing Welfare,HGW,Transfer Payments,G,Supporting People,GF,04/10/2019,PAY01207214,CONT,Contracts,116323.5,Revenue,Brighton Housing Trust 
Brighton & Hove City Council,http://statistics.data.gov.uk/id/local-authority/00ML,Planning and Development,BVAPLA,Community Development,CDV,Supplies and Services,E,Grants n Subscriptions,EK,04/10/2019,PAY01207214,CMNY,Communities and Equalities,12500,Revenue,Brighton Housing Trust 
Brighton & Hove City Council,http://statistics.data.gov.uk/id/local-authority/00ML,Planning and Development,BVAPLA,Community Development,CDV,Supplies and Services,E,Grants n Subscriptions,EK,09/10/2019,PAY01208088,CMNY,Communities and Equalities,17751,Revenue,Brighton Housing Trust 
Brighton & Hove City Council,http://statistics.data.gov.uk/id/local-authority/00ML,Adult Social Care,BVASOC,Social Care Activities,ACM,Third Party Payments,F,Other Establishments,FH,16/10/2019,PAY01210106,MENH,Mental Health Support,6102,Revenue,Brighton Housing Trust 
Brighton & Hove City Council,http://statistics.data.gov.uk/id/local-authority/00ML,Housing General Fund,BVAHOG,Hsing Welfare,HGW,Transfer Payments,G,Supporting People,GF,16/10/2019,PAY01210106,CONT,Contracts,72411.75,Revenue,Brighton Housing Trust 
Brighton & Hove City Council,http://statistics.data.gov.uk/id/local-authority/00ML,Adult Social Care,BVASOC,Social Care Activities,ACM,Third Party Payments,F,Other Establishments,FH,18/10/2019,PAY01211398,MENH,Mental Health Support,8350,Revenue,Brighton Housing Trust 
Brighton & Hove City Council,http://statistics.data.gov.uk/id/local-authority/00ML,Public Health,BVAPHE,Public Health,PHE,Third Party Payments,F,Other Establishments,FH,23/10/2019,PAY01213366,PHCM,PH Commissioning,78750,Revenue,Brighton Housing Trust 
Brighton & Hove City Council,http://statistics.data.gov.uk/id/local-authority/00ML,Planning and Development,BVAPLA,Community Development,CDV,Supplies and Services,E,Grants n Subscriptions,EK,09/10/2019,PAY01208034,CMNY,Communities and Equalities,15000,Revenue,Brighton Oasis Project
Brighton & Hove City Council,http://statistics.data.gov.uk/id/local-authority/00ML,Children`s & Education Serv,BVAEDU,Ed Ed Other Other,ENF,Premises Related,C,Repair Maint n Alterations,CA,18/10/2019,PAY01211471,SCOR,School Organisation,618.8,Revenue,Brighton Paper Round Ltd
Brighton & Hove City Council,http://statistics.data.gov.uk/id/local-authority/00ML,Planning and Development,BVAPLA,Economic Development,ECD,Supplies and Services,E,Grants n Subscriptions,EK,23/10/2019,PAY01213719,CMNY,Communities and Equalities,5000,Revenue,Brighton People`s Theatre
Brighton & Hove City Council,http://statistics.data.gov.uk/id/local-authority/00ML,Children`s & Education Serv,BVAEDU,Child Srvcs Com and Scl Work,FCW,Premises Related,C,Rents Payable,CC,09/10/2019,PAY01208012,SOCK,Social Work,435,Revenue,Brighton Quaker Meeting
Brighton & Hove City Council,http://statistics.data.gov.uk/id/local-authority/00ML,Housing General Fund,BVAHOG,Homelessness,HML,Indirect Employees,B,Training,BM,09/10/2019,PAY01208012,TAAS,Temp Accom and Allocations,122,Revenue,Brighton Quaker Meeting
Brighton & Hove City Council,http://statistics.data.gov.uk/id/local-authority/00ML,Children`s & Education Serv,BVAEDU,Ed Ed Other LA Attrib Sch,ELA,Transport Related,D,Other Transport Costs,DG,18/10/2019,PAY01212987,SCOR,School Organisation,6498,Revenue,Brighton Taxi 4U Ltd
Brighton & Hove City Council,http://statistics.data.gov.uk/id/local-authority/00ML,Non I&E,BVANON,CAP Libs Culture and Hertage,4LH,New Construction n Conversion,PB,New Construction n Conversion,PBL5,02/10/2019,PAY01206328,RPMU,Royal Pavilion and Museums,295.41,Capital,Brighton Tools & Fixings Ltd
Brighton & Hove City Council,http://statistics.data.gov.uk/id/local-authority/00ML,Environment & Regulatory Serv,BVAERS,Street Cleansing,CLE,Supplies and Services,E,Equip't Furniture n Materials,EA,11/10/2019,PAY01208885,CICL,City Clean,79.8,Revenue,Brighton Tools & Fixings Ltd
Brighton & Hove City Council,http://statistics.data.gov.uk/id/local-authority/00ML,Environment & Regulatory Serv,BVAERS,Waste Management,WMT,Third Party Payments,F,Private Contractors,FJ,11/10/2019,PAY01208885,CICL,City Clean,37.95,Revenue,Brighton Tools & Fixings Ltd
Brighton & Hove City Council,http://statistics.data.gov.uk/id/local-authority/00ML,Non I&E,BVANON,CAP Libs Culture and Hertage,4LH,New Construction n Conversion,PB,New Construction n Conversion,PBL5,11/10/2019,PAY01208885,RPMU,Royal Pavilion and Museums,1017.58,Capital,Brighton Tools & Fixings Ltd
Brighton & Hove City Council,http://statistics.data.gov.uk/id/local-authority/00ML,Non I&E,BVANON,CAP Libs Culture and Hertage,4LH,New Construction n Conversion,PB,New Construction n Conversion,PBL5,16/10/2019,PAY01210107,RPMU,Royal Pavilion and Museums,580.25,Capital,Brighton Tools & Fixings Ltd
Brighton & Hove City Council,http://statistics.data.gov.uk/id/local-authority/00ML,Cultural and Related Serv,BVACUL,Culture and Heritage,CHG,Premises Related,C,Repair Maint n Alterations,CA,23/10/2019,PAY01213367,VENU,Venues,164.22,Revenue,Brighton Tools & Fixings Ltd
Brighton & Hove City Council,http://statistics.data.gov.uk/id/local-authority/00ML,Non I&E,BVANON,CAP Libs Culture and Hertage,4LH,New Construction n Conversion,PB,New Construction n Conversion,PBL5,23/10/2019,PAY01213367,RPMU,Royal Pavilion and Museums,416.06,Capital,Brighton Tools & Fixings Ltd
Brighton & Hove City Council,http://statistics.data.gov.uk/id/local-authority/00ML,Cultural and Related Serv,BVACUL,Culture and Heritage,CHG,Premises Related,C,Repair Maint n Alterations,CA,25/10/2019,PAY01214277,VENU,Venues,103.04,Revenue,Brighton Tools & Fixings Ltd
Brighton & Hove City Council,http://statistics.data.gov.uk/id/local-authority/00ML,Environment & Regulatory Serv,BVAERS,Street Cleansing,CLE,Supplies and Services,E,Equip't Furniture n Materials,EA,25/10/2019,PAY01214277,CICL,City Clean,1080.46,Revenue,Brighton Tools & Fixings Ltd
Brighton & Hove City Council,http://statistics.data.gov.uk/id/local-authority/00ML,Adult Social Care,BVASOC,ASC Learning Disabilities,ALD,Customer n Client Receipts,M,Fees n Charges,MB,04/10/2019,PAY01207521,LDIS,Adults LD Community Care,-280,Revenue,Brighton Vision
Brighton & Hove City Council,http://statistics.data.gov.uk/id/local-authority/00ML,Adult Social Care,BVASOC,ASC Learning Disabilities,ALD,Third Party Payments,F,Other Establishments,FH,04/10/2019,PAY01207521,LDIS,Adults LD Community Care,4146.84,Revenue,Brighton Vision
Brighton & Hove City Council,http://statistics.data.gov.uk/id/local-authority/00ML,Adult Social Care,BVASOC,ASC Learning Disabilities,ALD,Customer n Client Receipts,M,Fees n Charges,MB,16/10/2019,PAY01210570,LDIS,Adults LD Community Care,-648,Revenue,Brighton Vision
Brighton & Hove City Council,http://statistics.data.gov.uk/id/local-authority/00ML,Adult Social Care,BVASOC,ASC Learning Disabilities,ALD,Third Party Payments,F,Other Establishments,FH,16/10/2019,PAY01210570,LDIS,Adults LD Community Care,5160.24,Revenue,Brighton Vision
Brighton & Hove City Council,http://statistics.data.gov.uk/id/local-authority/00ML,Public Health,BVAPHE,Community Safety,CMY,Government Grants,K,Specific Grants,KB,16/10/2019,PAY01210496,CMNY,Communities and Equalities,28959,Revenue,Brighton Voices in Exile
Brighton & Hove City Council,http://statistics.data.gov.uk/id/local-authority/00ML,Public Health,BVAPHE,Community Safety,CMY,Third Party Payments,F,Other Establishments,FH,25/10/2019,PAY01214650,CMNY,Communities and Equalities,39544.5,Revenue,Brighton Voices in Exile
Brighton & Hove City Council,http://statistics.data.gov.uk/id/local-authority/00ML,Planning and Development,BVAPLA,Community Development,CDV,Supplies and Services,E,Grants n Subscriptions,EK,09/10/2019,PAY01208086,CMNY,Communities and Equalities,15062,Revenue,Brighton Women`s Centre
Brighton & Hove City Council,http://statistics.data.gov.uk/id/local-authority/00ML,Children`s & Education Serv,BVAEDU,Ed Special Ed,EKE,Third Party Payments,F,Other Agencies,FL,02/10/2019,PAY01206857,SENS,Special Educational Needs,1264,Revenue,Brightteach Ltd
Brighton & Hove City Council,http://statistics.data.gov.uk/id/local-authority/00ML,Non I&E,BVANON,CAP Libs Culture and Hertage,4LH,New Construction n Conversion,PB,New Construction n Conversion,PBL5,11/10/2019,PAY01209606,RPMU,Royal Pavilion and Museums,5492.4,Capital,Brith Services Ltd
Brighton & Hove City Council,http://statistics.data.gov.uk/id/local-authority/00ML,Housing General Fund,BVAHOG,Hsing Benefits,HGB,Transfer Payments,G,Other Transfer Payments,GD,30/10/2019,PAY01215727,REVS,Revenues and Benefits,1869,Revenue,British Heart Foundation (Retail Division)
Brighton & Hove City Council,http://statistics.data.gov.uk/id/local-authority/00ML,Highways and Transportation,BVAHRT,Highways and Roads - Mntnce,HRM,Supplies and Services,E,Services,EF,25/10/2019,PAY01214127,TPRS,Transport Projects and Eng,2084,Revenue,British Standards Institution
Brighton & Hove City Council,http://statistics.data.gov.uk/id/local-authority/00ML,Non I&E,BVANON,CAP Mgmnt and Suppt Services,4PT,Plant Machinery n Equipment,PE2,Plant Machinery n Equipment,PE2L5,02/10/2019,PAY01206323,PROP,Property and Design,1441,Capital,Broxap Ltd
Brighton & Hove City Council,http://statistics.data.gov.uk/id/local-authority/00ML,Central Support and Overheads,BVACEN,Support Services (SSC),PPT,Supplies and Services,E,Equip't Furniture n Materials,EA,16/10/2019,PAY01210095,SKEM,Skills and Employment,2861,Revenue,Broxap Ltd
Brighton & Hove City Council,http://statistics.data.gov.uk/id/local-authority/00ML,Cultural and Related Serv,BVACUL,Open Spaces,PEN,Supplies and Services,E,Equip't Furniture n Materials,EA,16/10/2019,PAY01210095,CIPK,City Parks,1549.5,Revenue,Broxap Ltd
Brighton & Hove City Council,http://statistics.data.gov.uk/id/local-authority/00ML,Environment & Regulatory Serv,BVAERS,Management Services (DEC),MGT,Transport Related,D,Direct Transport Costs,DA,18/10/2019,PAY01211285,CICL,City Clean,367.86,Revenue,BTR Brakes (Sussex) Ltd
Brighton & Hove City Council,http://statistics.data.gov.uk/id/local-authority/00ML,Planning and Development,BVAPLA,Planning Policy,PLP,Supplies and Services,E,Services,EF,09/10/2019,PAY01208091,DEVP,Development Planning,1900,Revenue,Building Research Establishment Ltd
Brighton & Hove City Council,http://statistics.data.gov.uk/id/local-authority/00ML,Central Support and Overheads,BVACEN,Support Services (SSC),PPT,Premises Related,C,Cleaning n Domestic Supps,CH,25/10/2019,PAY01214836,PROP,Property and Design,1866.45,Revenue,Bunzl Uk Ltd  T/A Tri-Star Packaging Supplies Ltd
Brighton & Hove City Council,http://statistics.data.gov.uk/id/local-authority/00ML,Adult Social Care,BVASOC,ASC Physical Support,PHY,Customer n Client Receipts,M,Fees n Charges,MB,02/10/2019,PAY01206399,PHYS,Physical Support,-18069.76,Revenue,BUPA Care Services
Brighton & Hove City Council,http://statistics.data.gov.uk/id/local-authority/00ML,Adult Social Care,BVASOC,ASC Physical Support,PHY,Third Party Payments,F,Other Establishments,FH,02/10/2019,PAY01206399,PHYS,Physical Support,25535.71,Revenue,BUPA Care Services
Brighton & Hove City Council,http://statistics.data.gov.uk/id/local-authority/00ML,Adult Social Care,BVASOC,ASC Physical Support,PHY,Customer n Client Receipts,M,Fees n Charges,MB,11/10/2019,PAY01208981,PHYS,Physical Support,7774.97,Revenue,BUPA Care Services
Brighton & Hove City Council,http://statistics.data.gov.uk/id/local-authority/00ML,Adult Social Care,BVASOC,ASC Physical Support,PHY,Third Party Payments,F,Other Establishments,FH,11/10/2019,PAY01208981,PHYS,Physical Support,-8839.29,Revenue,BUPA Care Services
Brighton & Hove City Council,http://statistics.data.gov.uk/id/local-authority/00ML,Adult Social Care,BVASOC,ASC Memory Cognition Support,MEM,Customer n Client Receipts,M,Fees n Charges,MB,25/10/2019,PAY01214415,COGN,Memory Cognition Support,-4585.4,Revenue,BUPA Care Services
Brighton & Hove City Council,http://statistics.data.gov.uk/id/local-authority/00ML,Adult Social Care,BVASOC,ASC Memory Cognition Support,MEM,Third Party Payments,F,Other Establishments,FH,25/10/2019,PAY01214415,COGN,Memory Cognition Support,14859.2,Revenue,BUPA Care Services
Brighton & Hove City Council,http://statistics.data.gov.uk/id/local-authority/00ML,Adult Social Care,BVASOC,ASC Mental Health Support,MHP,Third Party Payments,F,Other Establishments,FH,25/10/2019,PAY01214415,MENH,Mental Health Support,11221.46,Revenue,BUPA Care Services
Brighton & Hove City Council,http://statistics.data.gov.uk/id/local-authority/00ML,Adult Social Care,BVASOC,ASC Physical Support,PHY,Customer n Client Receipts,M,Fees n Charges,MB,25/10/2019,PAY01214415,PHYS,Physical Support,-2369.64,Revenue,BUPA Care Services
Brighton & Hove City Council,http://statistics.data.gov.uk/id/local-authority/00ML,Adult Social Care,BVASOC,ASC Physical Support,PHY,Third Party Payments,F,Other Establishments,FH,25/10/2019,PAY01214415,PHYS,Physical Support,10347.68,Revenue,BUPA Care Services
Brighton & Hove City Council,http://statistics.data.gov.uk/id/local-authority/00ML,Adult Social Care,BVASOC,ASC Physical Support,PHY,Customer n Client Receipts,M,Fees n Charges,MB,30/10/2019,PAY01215587,PHYS,Physical Support,-3025.7,Revenue,BUPA Care Services
Brighton & Hove City Council,http://statistics.data.gov.uk/id/local-authority/00ML,Adult Social Care,BVASOC,ASC Physical Support,PHY,Third Party Payments,F,Other Establishments,FH,30/10/2019,PAY01215587,PHYS,Physical Support,3664.29,Revenue,BUPA Care Services
Brighton & Hove City Council,http://statistics.data.gov.uk/id/local-authority/00ML,Environment & Regulatory Serv,BVAERS,Management Services (DEC),MGT,Transport Related,D,Direct Transport Costs,DA,02/10/2019,PAY01206637,CICL,City Clean,398.86,Revenue,Burden Bros Agri Ltd
Brighton & Hove City Council,http://statistics.data.gov.uk/id/local-authority/00ML,Environment & Regulatory Serv,BVAERS,Management Services (DEC),MGT,Transport Related,D,Direct Transport Costs,DA,11/10/2019,PAY01209278,CICL,City Clean,1489.47,Revenue,Burden Bros Agri Ltd
Brighton & Hove City Council,http://statistics.data.gov.uk/id/local-authority/00ML,Environment & Regulatory Serv,BVAERS,Management Services (DEC),MGT,Transport Related,D,Direct Transport Costs,DA,30/10/2019,PAY01215822,CICL,City Clean,1470.12,Revenue,Burden Bros Agri Ltd
Brighton & Hove City Council,http://statistics.data.gov.uk/id/local-authority/00ML,Cultural and Related Serv,BVACUL,Culture and Heritage,CHG,Premises Related,C,Repair Maint n Alterations,CA,25/10/2019,PAY01214279,RPMU,Royal Pavilion and Museums,566.15,Revenue,Burlington Uniforms Limited
Brighton & Hove City Council,http://statistics.data.gov.uk/id/local-authority/00ML,Central Support and Overheads,BVACEN,Support Services (SSC),PPT,Supplies and Services,E,Communications n Computing,EH,16/10/2019,PAY01210520,ICTA,ICT,14300,Revenue,Business Web Software Ltd (Trading as Firmstep)
Brighton & Hove City Council,http://statistics.data.gov.uk/id/local-authority/00ML,Non I&E,BVANON,CAP Sport and Recreation,4RC,New Construction n Conversion,PB,New Construction n Conversion,PBL5,16/10/2019,PAY01210886,CIPK,City Parks,116813.57,Capital,Buxton Building Contractors Ltd
Brighton & Hove City Council,http://statistics.data.gov.uk/id/local-authority/00ML,Children`s & Education Serv,BVAEDU,Child Srvcs - Fostering,FLF,Third Party Payments,F,Other Establishments,FH,16/10/2019,PAY01210631,AVFM,Agency Placements\VFM,3905.2,Revenue,By The Bridge Ltd
Brighton & Hove City Council,http://statistics.data.gov.uk/id/local-authority/00ML,Cultural and Related Serv,BVACUL,Culture and Heritage,CHG,Premises Related,C,Cleaning n Domestic Supps,CH,30/10/2019,PAY01215459,VENU,Venues,300,Revenue,C & C Cleaning Services Ltd
Brighton & Hove City Council,http://statistics.data.gov.uk/id/local-authority/00ML,Housing General Fund,BVAHOG,Homelessness,HML,Third Party Payments,F,Other Establishments,FH,30/10/2019,PAY01215645,TAAS,Temp Accom and Allocations,506,Revenue,C & L Lettings
Brighton & Hove City Council,http://statistics.data.gov.uk/id/local-authority/00ML,Central Support and Overheads,BVACEN,Support Services (SSC),PPT,Premises Related,C,Repair Maint n Alterations,CA,30/10/2019,PAY01215521,PROP,Property and Design,425,Revenue,C & S Rubbish Clearance
Brighton & Hove City Council,http://statistics.data.gov.uk/id/local-authority/00ML,Housing Revenue Account,BVAHOU,Hsing Management - HRA,HGM,Premises Related,C,Repair Maint n Alterations,CA,04/10/2019,PAY01207216,HIII,Income Involvement Improvement,18.86,Revenue,C Brewer & Sons Ltd
Brighton & Hove City Council,http://statistics.data.gov.uk/id/local-authority/00ML,Non I&E,BVANON,CAP Other Env Services,4EV,New Construction n Conversion,PB,New Construction n Conversion,PBL5,04/10/2019,PAY01207216,CICL,City Clean,302.58,Capital,C Brewer & Sons Ltd
Brighton & Hove City Council,http://statistics.data.gov.uk/id/local-authority/00ML,Central Support and Overheads,BVACEN,Support Services (SSC),PPT,Supplies and Services,E,Equip't Furniture n Materials,EA,23/10/2019,PAY01213369,SKEM,Skills and Employment,104.99,Revenue,C Brewer & Sons Ltd
Brighton & Hove City Council,http://statistics.data.gov.uk/id/local-authority/00ML,Environment & Regulatory Serv,BVAERS,Street Cleansing,CLE,Supplies and Services,E,Print Stat & Gen Office Exps,ED,23/10/2019,PAY01213369,CICL,City Clean,15.96,Revenue,C Brewer & Sons Ltd
Brighton & Hove City Council,http://statistics.data.gov.uk/id/local-authority/00ML,Housing Revenue Account,BVAHOU,Hsing Management - HRA,HGM,Premises Related,C,Repair Maint n Alterations,CA,23/10/2019,PAY01213369,HTEN,Tenancy Services,24.58,Revenue,C Brewer & Sons Ltd
Brighton & Hove City Council,http://statistics.data.gov.uk/id/local-authority/00ML,Housing Revenue Account,BVAHOU,Hsing Management - HRA,HGM,Supplies and Services,E,Equip't Furniture n Materials,EA,23/10/2019,PAY01213369,HTEN,Tenancy Services,90.63,Revenue,C Brewer & Sons Ltd
Brighton & Hove City Council,http://statistics.data.gov.uk/id/local-authority/00ML,Non I&E,BVANON,CAP Other Env Services,4EV,New Construction n Conversion,PB,New Construction n Conversion,PBL5,23/10/2019,PAY01213369,CICL,City Clean,53.76,Capital,C Brewer & Sons Ltd
Brighton & Hove City Council,http://statistics.data.gov.uk/id/local-authority/00ML,Non I&E,BVANON,CAP Housing Services GF,4HG,Capital Grants,PF,Capital Grants,PFL5,09/10/2019,PAY01208575,PSHG,Private Sector Housing,1800,Capital,C Brown Design Services
Brighton & Hove City Council,http://statistics.data.gov.uk/id/local-authority/00ML,Non I&E,BVANON,CAP Housing Services GF,4HG,Capital Grants,PF,Capital Grants,PFL5,23/10/2019,PAY01213799,PSHG,Private Sector Housing,1800,Capital,C Brown Design Services
Brighton & Hove City Council,http://statistics.data.gov.uk/id/local-authority/00ML,Environment & Regulatory Serv,BVAERS,Flood Drainage and Coast Prtn,FDC,Premises Related,C,Repair Maint n Alterations,CA,16/10/2019,PAY01210175,TPRS,Transport Projects and Eng,1111.89,Revenue,C J Thorne & Co Ltd
Brighton & Hove City Council,http://statistics.data.gov.uk/id/local-authority/00ML,Highways and Transportation,BVAHRT,Highways and Roads - Mntnce,HRM,Premises Related,C,Repair Maint n Alterations,CA,16/10/2019,PAY01210175,TPRS,Transport Projects and Eng,2631.24,Revenue,C J Thorne & Co Ltd
Brighton & Hove City Council,http://statistics.data.gov.uk/id/local-authority/00ML,Highways and Transportation,BVAHRT,Highways and Roads - Mntnce,HRM,Supplies and Services,E,Services,EF,16/10/2019,PAY01210175,TPRS,Transport Projects and Eng,452.85,Revenue,C J Thorne & Co Ltd
Brighton & Hove City Council,http://statistics.data.gov.uk/id/local-authority/00ML,Non I&E,BVANON,CAP Other Env Services,4EV,New Construction n Conversion,PB,New Construction n Conversion,PBL5,18/10/2019,PAY01211505,PROP,Property and Design,19065.61,Capital,C J Thorne & Co Ltd
Brighton & Hove City Council,http://statistics.data.gov.uk/id/local-authority/00ML,Children`s & Education Serv,BVAEDU,Child Srvcs - Residential Svcs,FLR,Third Party Payments,F,Other Establishments,FH,09/10/2019,PAY01208502,AVFM,Agency Placements\VFM,8571.48,Revenue,Cambian Childcare Ltd
Brighton & Hove City Council,http://statistics.data.gov.uk/id/local-authority/00ML,Public Health,BVAPHE,Public Health,PHE,Third Party Payments,F,Other Establishments,FH,25/10/2019,PAY01214744,PHCM,PH Commissioning,4355.79,Revenue,Canterbury Pharmacies Ltd
Brighton & Hove City Council,http://statistics.data.gov.uk/id/local-authority/00ML,Children`s & Education Serv,BVAEDU,Child Srvcs - Other Fam Supp,FFX,Third Party Payments,F,Other Establishments,FH,25/10/2019,PAY01214266,SFSC,Troubled Families,2747.88,Revenue,Capita Business Services Ltd
Brighton & Hove City Council,http://statistics.data.gov.uk/id/local-authority/00ML,Environment & Regulatory Serv,BVAERS,Management Services (DEC),MGT,Transport Related,D,Contract Hire n Operating Leas,DB,30/10/2019,PAY01215736,CICL,City Clean,212.09,Revenue,Car Hire (Day of Swansea) Ltd t/a Days Fleet
Brighton & Hove City Council,http://statistics.data.gov.uk/id/local-authority/00ML,Public Health,BVAPHE,Public Health,PHE,Third Party Payments,F,Other Establishments,FH,25/10/2019,PAY01214632,PHCM,PH Commissioning,1972.19,Revenue,Carden Surgery
Brighton & Hove City Council,http://statistics.data.gov.uk/id/local-authority/00ML,Adult Social Care,BVASOC,ASC Learning Disabilities,ALD,Customer n Client Receipts,M,Fees n Charges,MB,25/10/2019,PAY01214397,LDIS,Adults LD Community Care,-414.2,Revenue,Care for Veterans
Brighton & Hove City Council,http://statistics.data.gov.uk/id/local-authority/00ML,Adult Social Care,BVASOC,ASC Learning Disabilities,ALD,Third Party Payments,F,Other Establishments,FH,25/10/2019,PAY01214397,LDIS,Adults LD Community Care,6400,Revenue,Care for Veterans
Brighton & Hove City Council,http://statistics.data.gov.uk/id/local-authority/00ML,Adult Social Care,BVASOC,ASC Physical Support,PHY,Customer n Client Receipts,M,Fees n Charges,MB,25/10/2019,PAY01214397,PHYS,Physical Support,-522.4,Revenue,Care for Veterans
Brighton & Hove City Council,http://statistics.data.gov.uk/id/local-authority/00ML,Adult Social Care,BVASOC,ASC Physical Support,PHY,Third Party Payments,F,Other Establishments,FH,25/10/2019,PAY01214397,PHYS,Physical Support,8633.16,Revenue,Care for Veterans
Brighton & Hove City Council,http://statistics.data.gov.uk/id/local-authority/00ML,Adult Social Care,BVASOC,ASC Memory Cognition Support,MEM,Third Party Payments,F,Other Establishments,FH,25/10/2019,PAY01214932,COGN,Memory Cognition Support,2859.6,Revenue,Care Homes (Scotland) Ltd
Brighton & Hove City Council,http://statistics.data.gov.uk/id/local-authority/00ML,Adult Social Care,BVASOC,ASC Learning Disabilities,ALD,Third Party Payments,F,Other Establishments,FH,02/10/2019,PAY01206491,LDIS,Adults LD Community Care,8.92,Revenue,Care Outlook
Brighton & Hove City Council,http://statistics.data.gov.uk/id/local-authority/00ML,Adult Social Care,BVASOC,ASC Memory Cognition Support,MEM,Third Party Payments,F,Other Establishments,FH,02/10/2019,PAY01206491,COGN,Memory Cognition Support,613.18,Revenue,Care Outlook
Brighton & Hove City Council,http://statistics.data.gov.uk/id/local-authority/00ML,Adult Social Care,BVASOC,ASC Mental Health Support,MHP,Third Party Payments,F,Other Establishments,FH,02/10/2019,PAY01206491,MENH,Mental Health Support,1055.95,Revenue,Care Outlook
Brighton & Hove City Council,http://statistics.data.gov.uk/id/local-authority/00ML,Adult Social Care,BVASOC,ASC Physical Support,PHY,Third Party Payments,F,Other Establishments,FH,02/10/2019,PAY01206491,PHYS,Physical Support,18002.96,Revenue,Care Outlook
Brighton & Hove City Council,http://statistics.data.gov.uk/id/local-authority/00ML,Adult Social Care,BVASOC,ASC Sensory Support,AHV,Third Party Payments,F,Other Establishments,FH,02/10/2019,PAY01206491,SORY,Sensory Support,329.59,Revenue,Care Outlook
Brighton & Hove City Council,http://statistics.data.gov.uk/id/local-authority/00ML,Adult Social Care,BVASOC,ASC Learning Disabilities,ALD,Third Party Payments,F,Other Establishments,FH,09/10/2019,PAY01208215,LDIS,Adults LD Community Care,4.46,Revenue,Care Outlook
Brighton & Hove City Council,http://statistics.data.gov.uk/id/local-authority/00ML,Adult Social Care,BVASOC,ASC Memory Cognition Support,MEM,Third Party Payments,F,Other Establishments,FH,09/10/2019,PAY01208215,COGN,Memory Cognition Support,209.23,Revenue,Care Outlook
Brighton & Hove City Council,http://statistics.data.gov.uk/id/local-authority/00ML,Adult Social Care,BVASOC,ASC Mental Health Support,MHP,Third Party Payments,F,Other Establishments,FH,09/10/2019,PAY01208215,MENH,Mental Health Support,544.49,Revenue,Care Outlook
Brighton & Hove City Council,http://statistics.data.gov.uk/id/local-authority/00ML,Adult Social Care,BVASOC,ASC Physical Support,PHY,Third Party Payments,F,Other Establishments,FH,09/10/2019,PAY01208215,PHYS,Physical Support,9498.79,Revenue,Care Outlook
Brighton & Hove City Council,http://statistics.data.gov.uk/id/local-authority/00ML,Adult Social Care,BVASOC,ASC Sensory Support,AHV,Third Party Payments,F,Other Establishments,FH,09/10/2019,PAY01208215,SORY,Sensory Support,166.74,Revenue,Care Outlook
Brighton & Hove City Council,http://statistics.data.gov.uk/id/local-authority/00ML,Adult Social Care,BVASOC,ASC Learning Disabilities,ALD,Third Party Payments,F,Other Establishments,FH,18/10/2019,PAY01211691,LDIS,Adults LD Community Care,4.46,Revenue,Care Outlook
Brighton & Hove City Council,http://statistics.data.gov.uk/id/local-authority/00ML,Adult Social Care,BVASOC,ASC Memory Cognition Support,MEM,Third Party Payments,F,Other Establishments,FH,18/10/2019,PAY01211691,COGN,Memory Cognition Support,199.43,Revenue,Care Outlook
Brighton & Hove City Council,http://statistics.data.gov.uk/id/local-authority/00ML,Adult Social Care,BVASOC,ASC Mental Health Support,MHP,Third Party Payments,F,Other Establishments,FH,18/10/2019,PAY01211691,MENH,Mental Health Support,531.72,Revenue,Care Outlook
Brighton & Hove City Council,http://statistics.data.gov.uk/id/local-authority/00ML,Adult Social Care,BVASOC,ASC Physical Support,PHY,Third Party Payments,F,Other Establishments,FH,18/10/2019,PAY01211691,PHYS,Physical Support,9447.01,Revenue,Care Outlook
Brighton & Hove City Council,http://statistics.data.gov.uk/id/local-authority/00ML,Adult Social Care,BVASOC,ASC Sensory Support,AHV,Third Party Payments,F,Other Establishments,FH,18/10/2019,PAY01211691,SORY,Sensory Support,163.75,Revenue,Care Outlook
Brighton & Hove City Council,http://statistics.data.gov.uk/id/local-authority/00ML,Adult Social Care,BVASOC,ASC Memory Cognition Support,MEM,Third Party Payments,F,Other Establishments,FH,23/10/2019,PAY01213463,COGN,Memory Cognition Support,1542.52,Revenue,Care Outlook
Brighton & Hove City Council,http://statistics.data.gov.uk/id/local-authority/00ML,Adult Social Care,BVASOC,ASC Mental Health Support,MHP,Third Party Payments,F,Other Establishments,FH,23/10/2019,PAY01213463,MENH,Mental Health Support,1495.32,Revenue,Care Outlook
Brighton & Hove City Council,http://statistics.data.gov.uk/id/local-authority/00ML,Adult Social Care,BVASOC,ASC Physical Support,PHY,Third Party Payments,F,Other Establishments,FH,23/10/2019,PAY01213463,PHYS,Physical Support,11348.84,Revenue,Care Outlook
Brighton & Hove City Council,http://statistics.data.gov.uk/id/local-authority/00ML,Adult Social Care,BVASOC,ASC Learning Disabilities,ALD,Third Party Payments,F,Other Establishments,FH,25/10/2019,PAY01214574,LDIS,Adults LD Community Care,8.92,Revenue,Care Outlook
Brighton & Hove City Council,http://statistics.data.gov.uk/id/local-authority/00ML,Adult Social Care,BVASOC,ASC Memory Cognition Support,MEM,Third Party Payments,F,Other Establishments,FH,25/10/2019,PAY01214574,COGN,Memory Cognition Support,613.8,Revenue,Care Outlook
Brighton & Hove City Council,http://statistics.data.gov.uk/id/local-authority/00ML,Adult Social Care,BVASOC,ASC Mental Health Support,MHP,Third Party Payments,F,Other Establishments,FH,25/10/2019,PAY01214574,MENH,Mental Health Support,998.34,Revenue,Care Outlook
Brighton & Hove City Council,http://statistics.data.gov.uk/id/local-authority/00ML,Adult Social Care,BVASOC,ASC Physical Support,PHY,Third Party Payments,F,Other Establishments,FH,25/10/2019,PAY01214574,PHYS,Physical Support,18283.84,Revenue,Care Outlook
Brighton & Hove City Council,http://statistics.data.gov.uk/id/local-authority/00ML,Adult Social Care,BVASOC,ASC Sensory Support,AHV,Third Party Payments,F,Other Establishments,FH,25/10/2019,PAY01214574,SORY,Sensory Support,351.9,Revenue,Care Outlook
Brighton & Hove City Council,http://statistics.data.gov.uk/id/local-authority/00ML,Public Health,BVAPHE,Public Health,PHE,Third Party Payments,F,Other Establishments,FH,25/10/2019,PAY01214655,PHCM,PH Commissioning,902.82,Revenue,Care UK Brighton Station Health Centre
Brighton & Hove City Council,http://statistics.data.gov.uk/id/local-authority/00ML,Adult Social Care,BVASOC,ASC Learning Disabilities,ALD,Third Party Payments,F,Other Establishments,FH,04/10/2019,PAY01207737,LDIS,Adults LD Community Care,108,Revenue,Care4you Homecare Ltd
Brighton & Hove City Council,http://statistics.data.gov.uk/id/local-authority/00ML,Adult Social Care,BVASOC,ASC Memory Cognition Support,MEM,Customer n Client Receipts,M,Fees n Charges,MB,04/10/2019,PAY01207737,COGN,Memory Cognition Support,-45,Revenue,Care4you Homecare Ltd
Brighton & Hove City Council,http://statistics.data.gov.uk/id/local-authority/00ML,Adult Social Care,BVASOC,ASC Memory Cognition Support,MEM,Third Party Payments,F,Other Establishments,FH,04/10/2019,PAY01207737,COGN,Memory Cognition Support,50,Revenue,Care4you Homecare Ltd
Brighton & Hove City Council,http://statistics.data.gov.uk/id/local-authority/00ML,Adult Social Care,BVASOC,ASC Physical Support,PHY,Customer n Client Receipts,M,Fees n Charges,MB,04/10/2019,PAY01207737,PHYS,Physical Support,-544,Revenue,Care4you Homecare Ltd
Brighton & Hove City Council,http://statistics.data.gov.uk/id/local-authority/00ML,Adult Social Care,BVASOC,ASC Physical Support,PHY,Third Party Payments,F,Other Establishments,FH,04/10/2019,PAY01207737,PHYS,Physical Support,2845.5,Revenue,Care4you Homecare Ltd
Brighton & Hove City Council,http://statistics.data.gov.uk/id/local-authority/00ML,Adult Social Care,BVASOC,ASC Learning Disabilities,ALD,Third Party Payments,F,Other Establishments,FH,11/10/2019,PAY01209478,LDIS,Adults LD Community Care,108,Revenue,Care4you Homecare Ltd
Brighton & Hove City Council,http://statistics.data.gov.uk/id/local-authority/00ML,Adult Social Care,BVASOC,ASC Memory Cognition Support,MEM,Customer n Client Receipts,M,Fees n Charges,MB,11/10/2019,PAY01209478,COGN,Memory Cognition Support,-45,Revenue,Care4you Homecare Ltd
Brighton & Hove City Council,http://statistics.data.gov.uk/id/local-authority/00ML,Adult Social Care,BVASOC,ASC Memory Cognition Support,MEM,Third Party Payments,F,Other Establishments,FH,11/10/2019,PAY01209478,COGN,Memory Cognition Support,62.5,Revenue,Care4you Homecare Ltd
Brighton & Hove City Council,http://statistics.data.gov.uk/id/local-authority/00ML,Adult Social Care,BVASOC,ASC Physical Support,PHY,Customer n Client Receipts,M,Fees n Charges,MB,11/10/2019,PAY01209478,PHYS,Physical Support,-582,Revenue,Care4you Homecare Ltd
Brighton & Hove City Council,http://statistics.data.gov.uk/id/local-authority/00ML,Adult Social Care,BVASOC,ASC Physical Support,PHY,Third Party Payments,F,Other Establishments,FH,11/10/2019,PAY01209478,PHYS,Physical Support,3029.4,Revenue,Care4you Homecare Ltd
Brighton & Hove City Council,http://statistics.data.gov.uk/id/local-authority/00ML,Adult Social Care,BVASOC,ASC Learning Disabilities,ALD,Third Party Payments,F,Other Establishments,FH,25/10/2019,PAY01215036,LDIS,Adults LD Community Care,108,Revenue,Care4you Homecare Ltd
Brighton & Hove City Council,http://statistics.data.gov.uk/id/local-authority/00ML,Adult Social Care,BVASOC,ASC Memory Cognition Support,MEM,Customer n Client Receipts,M,Fees n Charges,MB,25/10/2019,PAY01215036,COGN,Memory Cognition Support,-45,Revenue,Care4you Homecare Ltd
Brighton & Hove City Council,http://statistics.data.gov.uk/id/local-authority/00ML,Adult Social Care,BVASOC,ASC Memory Cognition Support,MEM,Third Party Payments,F,Other Establishments,FH,25/10/2019,PAY01215036,COGN,Memory Cognition Support,50,Revenue,Care4you Homecare Ltd
Brighton & Hove City Council,http://statistics.data.gov.uk/id/local-authority/00ML,Adult Social Care,BVASOC,ASC Physical Support,PHY,Customer n Client Receipts,M,Fees n Charges,MB,25/10/2019,PAY01215036,PHYS,Physical Support,-567,Revenue,Care4you Homecare Ltd
Brighton & Hove City Council,http://statistics.data.gov.uk/id/local-authority/00ML,Adult Social Care,BVASOC,ASC Physical Support,PHY,Third Party Payments,F,Other Establishments,FH,25/10/2019,PAY01215036,PHYS,Physical Support,2914.22,Revenue,Care4you Homecare Ltd
Brighton & Hove City Council,http://statistics.data.gov.uk/id/local-authority/00ML,Adult Social Care,BVASOC,ASC Memory Cognition Support,MEM,Customer n Client Receipts,M,Fees n Charges,MB,30/10/2019,PAY01215980,COGN,Memory Cognition Support,-45,Revenue,Care4you Homecare Ltd
Brighton & Hove City Council,http://statistics.data.gov.uk/id/local-authority/00ML,Adult Social Care,BVASOC,ASC Memory Cognition Support,MEM,Third Party Payments,F,Other Establishments,FH,30/10/2019,PAY01215980,COGN,Memory Cognition Support,62.5,Revenue,Care4you Homecare Ltd
Brighton & Hove City Council,http://statistics.data.gov.uk/id/local-authority/00ML,Adult Social Care,BVASOC,ASC Physical Support,PHY,Customer n Client Receipts,M,Fees n Charges,MB,30/10/2019,PAY01215980,PHYS,Physical Support,-524,Revenue,Care4you Homecare Ltd
Brighton & Hove City Council,http://statistics.data.gov.uk/id/local-authority/00ML,Adult Social Care,BVASOC,ASC Physical Support,PHY,Third Party Payments,F,Other Establishments,FH,30/10/2019,PAY01215980,PHYS,Physical Support,2434.36,Revenue,Care4you Homecare Ltd
Brighton & Hove City Council,http://statistics.data.gov.uk/id/local-authority/00ML,Adult Social Care,BVASOC,ASC Memory Cognition Support,MEM,Third Party Payments,F,Other Establishments,FH,16/10/2019,PAY01210892,COGN,Memory Cognition Support,420,Revenue,Caremark (Brighton & Hove)
Brighton & Hove City Council,http://statistics.data.gov.uk/id/local-authority/00ML,Adult Social Care,BVASOC,ASC Physical Support,PHY,Customer n Client Receipts,M,Fees n Charges,MB,16/10/2019,PAY01210892,PHYS,Physical Support,-429,Revenue,Caremark (Brighton & Hove)
Brighton & Hove City Council,http://statistics.data.gov.uk/id/local-authority/00ML,Adult Social Care,BVASOC,ASC Physical Support,PHY,Third Party Payments,F,Other Establishments,FH,16/10/2019,PAY01210892,PHYS,Physical Support,3283.08,Revenue,Caremark (Brighton & Hove)
Brighton & Hove City Council,http://statistics.data.gov.uk/id/local-authority/00ML,Environment & Regulatory Serv,BVAERS,Management Services (DEC),MGT,Transport Related,D,Direct Transport Costs,DA,18/10/2019,PAY01212031,CICL,City Clean,360,Revenue,Carglass Windscreens Ltd
Brighton & Hove City Council,http://statistics.data.gov.uk/id/local-authority/00ML,Planning and Development,BVAPLA,Community Development,CDV,Supplies and Services,E,Grants n Subscriptions,EK,09/10/2019,PAY01208094,CMNY,Communities and Equalities,13750,Revenue,Carousel Ltd
Brighton & Hove City Council,http://statistics.data.gov.uk/id/local-authority/00ML,Cultural and Related Serv,BVACUL,Culture and Heritage,CHG,Premises Related,C,Repair Maint n Alterations,CA,18/10/2019,PAY01212779,RPMU,Royal Pavilion and Museums,1080,Revenue,Carter & Faraday Associates Ltd
Brighton & Hove City Council,http://statistics.data.gov.uk/id/local-authority/00ML,Environment & Regulatory Serv,BVAERS,Environmental Health,EVH,Supplies and Services,E,Print Stat & Gen Office Exps,ED,16/10/2019,PAY01210581,SCOM,Safer Communties,520.4,Revenue,Cartridgesave Ltd
Brighton & Hove City Council,http://statistics.data.gov.uk/id/local-authority/00ML,Children`s & Education Serv,BVAEDU,Ed Ed Other Other,ENF,Premises Related,C,Repair Maint n Alterations,CA,23/10/2019,PAY01213765,SCOR,School Organisation,584.98,Revenue,Cater Link Ltd
Brighton & Hove City Council,http://statistics.data.gov.uk/id/local-authority/00ML,Children`s & Education Serv,BVAEDU,Ed Ed Other Other,ENF,Supplies and Services,E,Catering,EB,23/10/2019,PAY01213765,SCOR,School Organisation,5380.14,Revenue,Cater Link Ltd
Brighton & Hove City Council,http://statistics.data.gov.uk/id/local-authority/00ML,Central Support and Overheads,BVACEN,Holding Accounts,PPH,Premises Related,C,Repair Maint n Alterations,CA,09/10/2019,PAY01208153,PROP,Property and Design,115.5,Revenue,Catercraft Supplies Ltd
Brighton & Hove City Council,http://statistics.data.gov.uk/id/local-authority/00ML,Children`s & Education Serv,BVAEDU,Ed Ed Other Other,ENF,Premises Related,C,Repair Maint n Alterations,CA,09/10/2019,PAY01208153,SCOR,School Organisation,993.83,Revenue,Catercraft Supplies Ltd
Brighton & Hove City Council,http://statistics.data.gov.uk/id/local-authority/00ML,Children`s & Education Serv,BVAEDU,Ed Ed Other Other,ENF,Premises Related,C,Repair Maint n Alterations,CA,16/10/2019,PAY01210177,SCOR,School Organisation,5495.07,Revenue,Catercraft Supplies Ltd
Brighton & Hove City Council,http://statistics.data.gov.uk/id/local-authority/00ML,Children`s & Education Serv,BVAEDU,Ed Ed Other Other,ENF,Supplies and Services,E,Equip't Furniture n Materials,EA,16/10/2019,PAY01210177,SCOR,School Organisation,388.5,Revenue,Catercraft Supplies Ltd
Brighton & Hove City Council,http://statistics.data.gov.uk/id/local-authority/00ML,Non I&E,BVANON,CAP Education Services,4ED,Plant Machinery n Equipment,PE2,Plant Machinery n Equipment,PE2L5,16/10/2019,PAY01210177,OEDS,Other Education Support,1075,Capital,Catercraft Supplies Ltd
Brighton & Hove City Council,http://statistics.data.gov.uk/id/local-authority/00ML,Children`s & Education Serv,BVAEDU,Ed Ed Other Other,ENF,Premises Related,C,Repair Maint n Alterations,CA,18/10/2019,PAY01211506,SCOR,School Organisation,384.8,Revenue,Catercraft Supplies Ltd
Brighton & Hove City Council,http://statistics.data.gov.uk/id/local-authority/00ML,Children`s & Education Serv,BVAEDU,Ed Ed Other Other,ENF,Premises Related,C,Repair Maint n Alterations,CA,23/10/2019,PAY01213397,SCOR,School Organisation,21465.44,Revenue,Catercraft Supplies Ltd
Brighton & Hove City Council,http://statistics.data.gov.uk/id/local-authority/00ML,Central Support and Overheads,BVACEN,Holding Accounts,PPH,Premises Related,C,Repair Maint n Alterations,CA,25/10/2019,PAY01214436,PROP,Property and Design,259.1,Revenue,Catercraft Supplies Ltd
